Ref No,Fund Type,Dept,Cost Centre Description    ,Description    ,Creditor Name    ,GL Code Net Amount,Payment date        
1,Revenue,CCHD,Elderly Purchasing - South,Residential Homes,Ablecare Homes,935, 22-Feb-2011
2,Revenue,CCHD,Elderly Purchasing - South,Residential Homes,Ablecare Homes,1334.12, 22-Feb-2011
3,Revenue,CCHD,Elderly Purchasing - South,Residential Homes,Aspects &  Milestones Trust,4858.43, 22-Feb-2011
4,Revenue,CCHD,Elderly Purchasing - South,Residential Homes,Cepen Lodge Care Home,2120, 22-Feb-2011
5,Revenue,CCHD,Elderly Purchasing - South,Residential Homes,Cepen Lodge Care Home,6662.86, 22-Feb-2011
6,Revenue,CCHD,Elderly Purchasing - South,Residential Homes,Cleeve Lodge,1290.08, 22-Feb-2011
7,Revenue,CCHD,Elderly Purchasing - South,Residential Homes,Cleeve Lodge,1326.68, 22-Feb-2011
8,Revenue,CCHD,Elderly Purchasing - South,Residential Homes,Collingwood Residential Home,1023.4, 22-Feb-2011
9,Revenue,CCHD,Elderly Purchasing - South,Residential Homes,Collingwood Residential Home,1322.92, 22-Feb-2011
10,Revenue,CCHD,Elderly Purchasing - South,Residential Homes,Collingwood Residential Home,1230, 22-Feb-2011
11,Revenue,CCHD,Elderly Purchasing - South,Residential Homes,Collingwood Residential Home,1405.68, 22-Feb-2011
12,Revenue,CCHD,Elderly Purchasing - South,Residential Homes,Edgecumbe Lodge,1242.44, 22-Feb-2011
13,Revenue,CCHD,Elderly Purchasing - South,Residential Homes,Edgemont House Ltd,1088.52, 22-Feb-2011
14,Revenue,CCHD,Elderly Purchasing - South,Residential Homes,Edgemont House Ltd,1298.56, 22-Feb-2011
15,Revenue,CCHD,Elderly Purchasing - South,Residential Homes,Elmbridge Residential Home Ltd,1312.24, 22-Feb-2011
16,Revenue,CCHD,Elderly Purchasing - South,Residential Homes,Fairview House,1246.8, 22-Feb-2011
17,Revenue,CCHD,Elderly Purchasing - South,Residential Homes,Fairview House,1303.16, 22-Feb-2011
18,Revenue,CCHD,Elderly Purchasing - South,Residential Homes,Four Seasons Health Care,1183.72, 22-Feb-2011
19,Revenue,CCHD,Elderly Purchasing - South,Residential Homes,Four Seasons Health Care,1243, 22-Feb-2011
20,Revenue,CCHD,Elderly Purchasing - South,Residential Homes,Four Seasons Health Care,974.6, 22-Feb-2011
21,Revenue,CCHD,Elderly Purchasing - South,Residential Homes,Four Seasons Health Care,1129.6, 22-Feb-2011
22,Revenue,CCHD,Elderly Purchasing - South,Residential Homes,Four Seasons Health Care,585.77, 22-Feb-2011
23,Revenue,CCHD,Elderly Purchasing - South,Residential Homes,Four Seasons Health Care,1292.2, 22-Feb-2011
24,Revenue,CCHD,Elderly Purchasing - South,Residential Homes,Four Seasons Health Care,894.12, 22-Feb-2011
25,Revenue,CCHD,Elderly Purchasing - South,Residential Homes,Four Seasons Health Care,999.6, 22-Feb-2011
26,Revenue,CCHD,Elderly Purchasing - South,Residential Homes,Four Seasons Health Care,834.36, 22-Feb-2011
27,Revenue,CCHD,Elderly Purchasing - South,Residential Homes,Four Seasons Health Care,1133.92, 22-Feb-2011
28,Revenue,CCHD,Elderly Purchasing - South,Residential Homes,Four Seasons Health Care,1246.8, 22-Feb-2011
29,Revenue,CCHD,Elderly Purchasing - South,Residential Homes,Four Seasons Health Care,1180.56, 22-Feb-2011
30,Revenue,CCHD,Elderly Purchasing - South,Residential Homes,Gwendoline House,1167.24, 22-Feb-2011
31,Revenue,CCHD,Elderly Purchasing - South,Residential Homes,Gwendoline House,1246.8, 22-Feb-2011
32,Revenue,CCHD,Elderly Purchasing - South,Residential Homes,Gwendoline House,1138.12, 22-Feb-2011
33,Revenue,CCHD,Elderly Purchasing - South,Residential Homes,Gwendoline House,1025.28, 22-Feb-2011
34,Revenue,CCHD,Elderly Purchasing - South,Residential Homes,Harefield Hall,1514.08, 22-Feb-2011
35,Revenue,CCHD,Elderly Purchasing - South,Residential Homes,Harefield Hall,1274.56, 22-Feb-2011
36,Revenue,CCHD,Elderly Purchasing - South,Residential Homes,Jah-Jireh Charity Homes,1258.8, 22-Feb-2011
37,Revenue,CCHD,Elderly Purchasing - South,Residential Homes,Kenver House Residential Home,1638.8, 22-Feb-2011
38,Revenue,CCHD,Elderly Purchasing - South,Residential Homes,Kenver House Residential Home,1528.12, 22-Feb-2011
39,Revenue,CCHD,Elderly Purchasing - South,Residential Homes,Kenver House Residential Home,1269.08, 22-Feb-2011
40,Revenue,CCHD,Elderly Purchasing - South,Residential Homes,Leonard Cheshire  National Account Centr,4353.96, 22-Feb-2011
41,Revenue,CCHD,Elderly Purchasing - South,Residential Homes,Park Farm House,1487.24, 22-Feb-2011
42,Revenue,CCHD,Elderly Purchasing - South,Residential Homes,Quality Care Homes Ltd,1264.6, 22-Feb-2011
43,Revenue,CCHD,Elderly Purchasing - South,Residential Homes,Quality Care Homes Ltd,1250.8, 22-Feb-2011
44,Revenue,CCHD,Elderly Purchasing - South,Residential Homes,Quality Care Homes Ltd,1423.76, 22-Feb-2011
45,Revenue,CCHD,Elderly Purchasing - South,Residential Homes,Quality Care Homes Ltd,1138.56, 22-Feb-2011
46,Revenue,CCHD,Elderly Purchasing - South,Residential Homes,Quality Care Homes Ltd,1245.36, 22-Feb-2011
47,Revenue,CCHD,Elderly Purchasing - South,Residential Homes,The Beeches,1120.64, 22-Feb-2011
48,Revenue,CCHD,Elderly Purchasing - South,Residential Homes,The Gables Residential Home,1221, 22-Feb-2011
49,Revenue,CCHD,Elderly Purchasing - South,Residential Homes,The Gables Residential Home,1118.84, 22-Feb-2011
50,Revenue,CCHD,Elderly Purchasing - South,Residential Homes,The Manor Cottage,1246.8, 22-Feb-2011
51,Revenue,CCHD,Elderly Purchasing - South,Residential Homes,The Manor Cottage,1246.8, 22-Feb-2011
52,Revenue,CCHD,Elderly Purchasing - South,Residential Homes,The Manor Cottage,1157.74, 22-Feb-2011
53,Revenue,CCHD,Elderly Purchasing - South,Residential Homes,The Manor Cottage,1423.08, 22-Feb-2011
54,Revenue,CCHD,Elderly Purchasing - South,Residential Homes,The Manor Cottage,928.12, 22-Feb-2011
55,Revenue,CCHD,Elderly Purchasing - South,Residential Homes,Tracs Group Ltd,6837.48, 22-Feb-2011
56,Revenue,CCHD,Elderly Purchasing - South,Residential Homes,Wayside Residential Care Home,1231.84, 22-Feb-2011
57,Revenue,CCHD,Elderly Purchasing - South,Residential Homes,Willow Cottage,1319.1, 22-Feb-2011
58,Revenue,CCHD,Elderly Purchasing - South,Nursing Homes,Aabletone Nursing Home,1211.48, 22-Feb-2011
59,Revenue,CCHD,Elderly Purchasing - South,Nursing Homes,Brunelcare,12182.71, 03-Feb-2011
60,Revenue,CCHD,Elderly Purchasing - South,Nursing Homes,Dunkirk Memorial House,1201.44, 22-Feb-2011
61,Revenue,CCHD,Elderly Purchasing - South,Nursing Homes,Edgemont View Nursing Home,1422.8, 22-Feb-2011
62,Revenue,CCHD,Elderly Purchasing - South,Nursing Homes,Edgemont View Nursing Home,1260.32, 22-Feb-2011
63,Revenue,CCHD,Elderly Purchasing - South,Nursing Homes,Four Seasons Health Care,866.88, 22-Feb-2011
64,Revenue,CCHD,Elderly Purchasing - South,Nursing Homes,Four Seasons Health Care,1366.8, 22-Feb-2011
65,Revenue,CCHD,Elderly Purchasing - South,Nursing Homes,Four Seasons Health Care,865.92, 22-Feb-2011
66,Revenue,CCHD,Elderly Purchasing - South,Nursing Homes,Four Seasons Health Care,1394.8, 22-Feb-2011
67,Revenue,CCHD,Elderly Purchasing - South,Nursing Homes,Four Seasons Health Care,1366.8, 22-Feb-2011
68,Revenue,CCHD,Elderly Purchasing - South,Nursing Homes,Four Seasons Health Care,1116.52, 22-Feb-2011
69,Revenue,CCHD,Elderly Purchasing - South,Nursing Homes,Four Seasons Health Care,1149.77, 22-Feb-2011
70,Revenue,CCHD,Elderly Purchasing - South,Nursing Homes,Four Seasons Health Care,1366.8, 22-Feb-2011
71,Revenue,CCHD,Elderly Purchasing - South,Nursing Homes,Four Seasons Health Care,1310.12, 22-Feb-2011
72,Revenue,CCHD,Elderly Purchasing - South,Nursing Homes,Four Seasons Health Care,1308.56, 22-Feb-2011
73,Revenue,CCHD,Elderly Purchasing - South,Nursing Homes,Four Seasons Health Care,1359.48, 22-Feb-2011
74,Revenue,CCHD,Elderly Purchasing - South,Nursing Homes,Four Seasons Health Care,1229.2, 22-Feb-2011
75,Revenue,CCHD,Elderly Purchasing - South,Nursing Homes,Four Seasons Health Care,1366.8, 22-Feb-2011
76,Revenue,CCHD,Elderly Purchasing - South,Nursing Homes,Four Seasons Health Care,1480.84, 22-Feb-2011
77,Revenue,CCHD,Elderly Purchasing - South,Nursing Homes,Four Seasons Health Care,1366.8, 22-Feb-2011
78,Revenue,CCHD,Elderly Purchasing - South,Nursing Homes,Four Seasons Health Care,1808, 22-Feb-2011
79,Revenue,CCHD,Elderly Purchasing - South,Nursing Homes,Four Seasons Health Care,535.41, 22-Feb-2011
80,Revenue,CCHD,Elderly Purchasing - South,Nursing Homes,Four Seasons Health Care,1294.92, 22-Feb-2011
81,Revenue,CCHD,Elderly Purchasing - South,Nursing Homes,Four Seasons Health Care,1277.8, 22-Feb-2011
82,Revenue,CCHD,Elderly Purchasing - South,Nursing Homes,Four Seasons Health Care,1036.96, 22-Feb-2011
83,Revenue,CCHD,Elderly Purchasing - South,Nursing Homes,Four Seasons Health Care,1244.44, 22-Feb-2011
84,Revenue,CCHD,Elderly Purchasing - South,Nursing Homes,Four Seasons Health Care,1283.44, 22-Feb-2011
85,Revenue,CCHD,Elderly Purchasing - South,Nursing Homes,Four Seasons Health Care,1359.52, 22-Feb-2011
86,Revenue,CCHD,Elderly Purchasing - South,Nursing Homes,Four Seasons Health Care,1245.64, 22-Feb-2011
87,Revenue,CCHD,Elderly Purchasing - South,Nursing Homes,Four Seasons Health Care,3394.83, 22-Feb-2011
88,Revenue,CCHD,Elderly Purchasing - South,Nursing Homes,Four Seasons Health Care,987.28, 22-Feb-2011
89,Revenue,CCHD,Elderly Purchasing - South,Nursing Homes,Four Seasons Health Care,1366.8, 22-Feb-2011
90,Revenue,CCHD,Elderly Purchasing - South,Nursing Homes,Regent House,22296.49, 22-Feb-2011
91,Revenue,CCHD,Elderly Purchasing - South,Nursing Homes,Regent House,1638.6, 22-Feb-2011
92,Revenue,CCHD,Elderly Purchasing - South,Nursing Homes,Regent House,1634.8, 22-Feb-2011
93,Revenue,CCHD,Elderly Purchasing - South,Nursing Homes,Regent House,1646.6, 22-Feb-2011
94,Revenue,CCHD,Elderly Purchasing - South,Nursing Homes,Regent House,1230.2, 22-Feb-2011
95,Revenue,CCHD,Elderly Purchasing - South,Nursing Homes,Riversway Nursing Home,599.53, 22-Feb-2011
96,Revenue,CCHD,Elderly Purchasing - South,Nursing Homes,Riversway Nursing Home,1168.96, 22-Feb-2011
97,Revenue,CCHD,Elderly Purchasing - South,Nursing Homes,Southern Cross Healthcare,1308.28, 22-Feb-2011
98,Revenue,CCHD,Elderly Purchasing - South,Nursing Homes,St George Nursing Home,633.4, 22-Feb-2011
99,Revenue,CCHD,Elderly Purchasing - South,Nursing Homes,Sunnymede Nursing Home,1155.2, 22-Feb-2011
100,Revenue,CCHD,Elderly Purchasing - South,Nursing Homes,The Heathers,1302.8, 22-Feb-2011
101,Revenue,CCHD,Elderly Purchasing - North,Residential Homes,Ablecare Homes,846.72, 22-Feb-2011
102,Revenue,CCHD,Elderly Purchasing - North,Residential Homes,Ablecare Homes,1269.52, 22-Feb-2011
103,Revenue,CCHD,Elderly Purchasing - North,Residential Homes,Ablecare Homes,1246.84, 22-Feb-2011
104,Revenue,CCHD,Elderly Purchasing - North,Residential Homes,Beaufort House,1690.44, 22-Feb-2011
105,Revenue,CCHD,Elderly Purchasing - North,Residential Homes,Bridge House Care Home,1254.48, 22-Feb-2011
106,Revenue,CCHD,Elderly Purchasing - North,Residential Homes,Bridge House Care Home,1069, 22-Feb-2011
107,Revenue,CCHD,Elderly Purchasing - North,Residential Homes,Brook Lane Residential Home,1155.36, 22-Feb-2011
108,Revenue,CCHD,Elderly Purchasing - North,Residential Homes,Cleeve Lodge,1575.56, 22-Feb-2011
109,Revenue,CCHD,Elderly Purchasing - North,Residential Homes,Cleeve Lodge,1497.32, 22-Feb-2011
110,Revenue,CCHD,Elderly Purchasing - North,Residential Homes,Cleeve Lodge,1706.12, 22-Feb-2011
111,Revenue,CCHD,Elderly Purchasing - North,Residential Homes,Collingwood Residential Home,1117.68, 22-Feb-2011
112,Revenue,CCHD,Elderly Purchasing - North,Residential Homes,Faith House,928.4, 22-Feb-2011
113,Revenue,CCHD,Elderly Purchasing - North,Residential Homes,Faith House,4040, 22-Feb-2011
114,Revenue,CCHD,Elderly Purchasing - North,Residential Homes,Four Seasons Health Care,1015.08, 22-Feb-2011
115,Revenue,CCHD,Elderly Purchasing - North,Residential Homes,Four Seasons Health Care,739.32, 22-Feb-2011
116,Revenue,CCHD,Elderly Purchasing - North,Residential Homes,Four Seasons Health Care,1604.57, 22-Feb-2011
117,Revenue,CCHD,Elderly Purchasing - North,Residential Homes,Greensleeves,1313.88, 22-Feb-2011
118,Revenue,CCHD,Elderly Purchasing - North,Residential Homes,Hawkridge House,753.52, 22-Feb-2011
119,Revenue,CCHD,Elderly Purchasing - North,Residential Homes,Kingswood Care Centre,1238.28, 22-Feb-2011
120,Revenue,CCHD,Elderly Purchasing - North,Residential Homes,Newton House,887.84, 22-Feb-2011
121,Revenue,CCHD,Elderly Purchasing - North,Residential Homes,Osbourne Court,926.52, 22-Feb-2011
122,Revenue,CCHD,Elderly Purchasing - North,Residential Homes,Osbourne Court,1053.48, 22-Feb-2011
123,Revenue,CCHD,Elderly Purchasing - North,Residential Homes,Pennwood Lodge Nursing Home,1481.12, 22-Feb-2011
124,Revenue,CCHD,Elderly Purchasing - North,Residential Homes,Simeon Care For The Elderly,1468.44, 22-Feb-2011
125,Revenue,CCHD,Elderly Purchasing - North,Residential Homes,St Davids Lodge,3010.6, 22-Feb-2011
126,Revenue,CCHD,Elderly Purchasing - North,Residential Homes,St Monicas Trust,977.08, 22-Feb-2011
127,Revenue,CCHD,Elderly Purchasing - North,Residential Homes,The Manor Cottage,1218.4, 22-Feb-2011
128,Revenue,CCHD,Elderly Purchasing - North,Residential Homes,Westbury Nursing Home,1476.44, 22-Feb-2011
129,Revenue,CCHD,Elderly Purchasing - North,Residential Homes,Wickwar Nursing Home  Castle House,1143.56, 22-Feb-2011
130,Revenue,CCHD,Elderly Purchasing - North,Residential Homes,Wickwar Nursing Home  Castle House,1207.8, 22-Feb-2011
131,Revenue,CCHD,Elderly Purchasing - North,Residential Homes,Wickwar Nursing Home  Castle House,1379.04, 22-Feb-2011
132,Revenue,CCHD,Elderly Purchasing - North,Residential Homes,Wickwar Nursing Home  Castle House,1229.8, 22-Feb-2011
133,Revenue,CCHD,Elderly Purchasing - North,Residential Homes,Wickwar Nursing Home  Castle House,1384.52, 22-Feb-2011
134,Revenue,CCHD,Elderly Purchasing - North,Residential Homes,Willow Cottage,1960, 22-Feb-2011
135,Revenue,CCHD,Elderly Purchasing - North,Residential Homes,Willow Cottage,1922.96, 22-Feb-2011
136,Revenue,CCHD,Elderly Purchasing - North,Residential Homes,Willow Cottage,1286.08, 22-Feb-2011
137,Revenue,CCHD,Elderly Purchasing - North,Residential Homes,Windmill House,1128.6, 22-Feb-2011
138,Revenue,CCHD,Elderly Purchasing - North,Residential Homes,Windmill House,629.64, 22-Feb-2011
139,Revenue,CCHD,Elderly Purchasing - North,Residential Homes,Windmill House,635.71, 22-Feb-2011
140,Revenue,CCHD,Elderly Purchasing - North,Residential Homes,Windmill House,941.48, 22-Feb-2011
141,Revenue,CCHD,Elderly Purchasing - North,Nursing Homes,Beech House,1077.44, 22-Feb-2011
142,Revenue,CCHD,Elderly Purchasing - North,Nursing Homes,Beech House,1662.9, 22-Feb-2011
143,Revenue,CCHD,Elderly Purchasing - North,Nursing Homes,Beech House,1515.24, 22-Feb-2011
144,Revenue,CCHD,Elderly Purchasing - North,Nursing Homes,Beech House,1915.84, 22-Feb-2011
145,Revenue,CCHD,Elderly Purchasing - North,Nursing Homes,Beech House,1403.2, 22-Feb-2011
146,Revenue,CCHD,Elderly Purchasing - North,Nursing Homes,Beech House,1220, 22-Feb-2011
147,Revenue,CCHD,Elderly Purchasing - North,Nursing Homes,Brunelcare,3248.12, 03-Feb-2011
148,Revenue,CCHD,Elderly Purchasing - North,Nursing Homes,Edgemont View Nursing Home,1458.64, 22-Feb-2011
149,Revenue,CCHD,Elderly Purchasing - North,Nursing Homes,Four Seasons Health Care,866.6, 22-Feb-2011
150,Revenue,CCHD,Elderly Purchasing - North,Nursing Homes,Four Seasons Health Care,1330.8, 22-Feb-2011
151,Revenue,CCHD,Elderly Purchasing - North,Nursing Homes,Four Seasons Health Care,982.4, 22-Feb-2011
152,Revenue,CCHD,Elderly Purchasing - North,Nursing Homes,Four Seasons Health Care,3026.49, 22-Feb-2011
153,Revenue,CCHD,Elderly Purchasing - North,Nursing Homes,Four Seasons Health Care,1138.2, 22-Feb-2011
154,Revenue,CCHD,Elderly Purchasing - North,Nursing Homes,Four Seasons Health Care,757.92, 22-Feb-2011
155,Revenue,CCHD,Elderly Purchasing - North,Nursing Homes,Four Seasons Health Care,1498.88, 22-Feb-2011
156,Revenue,CCHD,Elderly Purchasing - North,Nursing Homes,Four Seasons Health Care,1338.72, 22-Feb-2011
157,Revenue,CCHD,Elderly Purchasing - North,Nursing Homes,Four Seasons Health Care,1434, 22-Feb-2011
158,Revenue,CCHD,Elderly Purchasing - North,Nursing Homes,Four Seasons Health Care,921, 22-Feb-2011
159,Revenue,CCHD,Elderly Purchasing - North,Nursing Homes,Four Seasons Health Care,1478.16, 22-Feb-2011
160,Revenue,CCHD,Elderly Purchasing - North,Nursing Homes,Four Seasons Health Care,1080.12, 22-Feb-2011
161,Revenue,CCHD,Elderly Purchasing - North,Nursing Homes,Four Seasons Health Care,1316.76, 22-Feb-2011
162,Revenue,CCHD,Elderly Purchasing - North,Nursing Homes,Four Seasons Health Care,682.86, 22-Feb-2011
163,Revenue,CCHD,Elderly Purchasing - North,Nursing Homes,Four Seasons Health Care,1146.28, 22-Feb-2011
164,Revenue,CCHD,Elderly Purchasing - North,Nursing Homes,Four Seasons Health Care,898.32, 22-Feb-2011
165,Revenue,CCHD,Elderly Purchasing - North,Nursing Homes,Four Seasons Health Care,1315.28, 22-Feb-2011
166,Revenue,CCHD,Elderly Purchasing - North,Nursing Homes,Four Seasons Health Care,2880.04, 22-Feb-2011
167,Revenue,CCHD,Elderly Purchasing - North,Nursing Homes,Glebe House Nursing Home,1284.16, 22-Feb-2011
168,Revenue,CCHD,Elderly Purchasing - North,Nursing Homes,Glebe House Nursing Home,849.34, 22-Feb-2011
169,Revenue,CCHD,Elderly Purchasing - North,Nursing Homes,Glebe House Nursing Home,1334.8, 22-Feb-2011
170,Revenue,CCHD,Elderly Purchasing - North,Nursing Homes,Horfield Care Limited,5800.65, 07-Feb-2011
171,Revenue,CCHD,Elderly Purchasing - North,Nursing Homes,Leonard Cheshire  National Account Centr,4531.24, 22-Feb-2011
172,Revenue,CCHD,Elderly Purchasing - North,Nursing Homes,Meadow Care Home,1404.24, 22-Feb-2011
173,Revenue,CCHD,Elderly Purchasing - North,Nursing Homes,St Monicas Trust,651.4, 22-Feb-2011
174,Revenue,CCHD,Elderly Purchasing - North,Nursing Homes,The Heathers,1110.84, 22-Feb-2011
175,Revenue,CCHD,Elderly Purchasing - North,Nursing Homes,The Heathers,1169.56, 22-Feb-2011
176,Revenue,CCHD,Elderly Purchasing - North,Nursing Homes,Wickwar Nursing Home  Castle House,1302.8, 22-Feb-2011
177,Revenue,CCHD,Elderly Purchasing - North,Nursing Homes,Wickwar Nursing Home  Castle House,1419.84, 22-Feb-2011
178,Revenue,CCHD,Elderly Purchasing - North,Nursing Homes,Wickwar Nursing Home  Castle House,1448.36, 22-Feb-2011
179,Revenue,CCHD,Elderly Purchasing - North,Nursing Homes,Wickwar Nursing Home  Castle House,1400.08, 22-Feb-2011
180,Revenue,CCHD,Elderly Purchasing - North,Nursing Homes,Willow Cottage,1945.44, 22-Feb-2011
181,Revenue,CCHD,Elderly Purchasing - North,Nursing Homes,Willow Cottage,1237.68, 22-Feb-2011
182,Revenue,CCHD,Elderly Purchasing - North,Nursing Homes,Woodlands Manor,1558.92, 22-Feb-2011
183,Revenue,CCHD,Elderly Purchasing - North,Nursing Homes,Woodlands Manor,929, 22-Feb-2011
184,Revenue,CCHD,Elderly Purchasing - North,Nursing Homes,Woodlands Manor,1677.28, 22-Feb-2011
185,Revenue,CCHD,Frenchay Hospital Purchasing,Residential Homes,Ablecare Homes,1322.6, 22-Feb-2011
186,Revenue,CCHD,Frenchay Hospital Purchasing,Residential Homes,Ablecare Homes,1249.96, 22-Feb-2011
187,Revenue,CCHD,Frenchay Hospital Purchasing,Residential Homes,Anbridge Care Home,779.88, 22-Feb-2011
188,Revenue,CCHD,Frenchay Hospital Purchasing,Residential Homes,Beaufort House,739.52, 22-Feb-2011
189,Revenue,CCHD,Frenchay Hospital Purchasing,Residential Homes,Beaufort House,1290.72, 22-Feb-2011
190,Revenue,CCHD,Frenchay Hospital Purchasing,Residential Homes,Beaufort House,1296.8, 22-Feb-2011
191,Revenue,CCHD,Frenchay Hospital Purchasing,Residential Homes,Beaufort House,1518.8, 22-Feb-2011
192,Revenue,CCHD,Frenchay Hospital Purchasing,Residential Homes,Cleeve Lodge,1830.6, 22-Feb-2011
193,Revenue,CCHD,Frenchay Hospital Purchasing,Residential Homes,Collingwood Residential Home,1231.88, 22-Feb-2011
194,Revenue,CCHD,Frenchay Hospital Purchasing,Residential Homes,Edgecumbe Lodge,1246.8, 22-Feb-2011
195,Revenue,CCHD,Frenchay Hospital Purchasing,Residential Homes,Edgemont House Ltd,1249.64, 22-Feb-2011
196,Revenue,CCHD,Frenchay Hospital Purchasing,Residential Homes,Edgemont House Ltd,1260.32, 22-Feb-2011
197,Revenue,CCHD,Frenchay Hospital Purchasing,Residential Homes,Fairview Court,1532.48, 22-Feb-2011
198,Revenue,CCHD,Frenchay Hospital Purchasing,Residential Homes,Fairview House,906.6, 22-Feb-2011
199,Revenue,CCHD,Frenchay Hospital Purchasing,Residential Homes,Fairview House,1290.72, 22-Feb-2011
200,Revenue,CCHD,Frenchay Hospital Purchasing,Residential Homes,Faith House,1302.84, 22-Feb-2011
201,Revenue,CCHD,Frenchay Hospital Purchasing,Residential Homes,Four Seasons Health Care,975.6, 22-Feb-2011
202,Revenue,CCHD,Frenchay Hospital Purchasing,Residential Homes,Four Seasons Health Care,1086.84, 22-Feb-2011
203,Revenue,CCHD,Frenchay Hospital Purchasing,Residential Homes,Four Seasons Health Care,1246.8, 22-Feb-2011
204,Revenue,CCHD,Frenchay Hospital Purchasing,Residential Homes,Four Seasons Health Care,1245.8, 22-Feb-2011
205,Revenue,CCHD,Frenchay Hospital Purchasing,Residential Homes,Four Seasons Health Care,1218.32, 22-Feb-2011
206,Revenue,CCHD,Frenchay Hospital Purchasing,Residential Homes,Four Seasons Health Care,1114.28, 22-Feb-2011
207,Revenue,CCHD,Frenchay Hospital Purchasing,Residential Homes,Four Seasons Health Care,1260.64, 22-Feb-2011
208,Revenue,CCHD,Frenchay Hospital Purchasing,Residential Homes,Kenver House Residential Home,1406.8, 22-Feb-2011
209,Revenue,CCHD,Frenchay Hospital Purchasing,Residential Homes,Kenver House Residential Home,1614.04, 22-Feb-2011
210,Revenue,CCHD,Frenchay Hospital Purchasing,Residential Homes,Kenver House Residential Home,1079.52, 22-Feb-2011
211,Revenue,CCHD,Frenchay Hospital Purchasing,Residential Homes,Kenver House Residential Home,1568.12, 22-Feb-2011
212,Revenue,CCHD,Frenchay Hospital Purchasing,Residential Homes,Kingswood Care Centre,1121.48, 22-Feb-2011
213,Revenue,CCHD,Frenchay Hospital Purchasing,Residential Homes,Leonard Cheshire  National Account Centr,3698.2, 22-Feb-2011
214,Revenue,CCHD,Frenchay Hospital Purchasing,Residential Homes,Milburn Finance,1052.6, 22-Feb-2011
215,Revenue,CCHD,Frenchay Hospital Purchasing,Residential Homes,Quality Care Homes Ltd,1270.8, 22-Feb-2011
216,Revenue,CCHD,Frenchay Hospital Purchasing,Residential Homes,Quality Care Homes Ltd,1071.4, 22-Feb-2011
217,Revenue,CCHD,Frenchay Hospital Purchasing,Residential Homes,Quality Care Homes Ltd,1036.36, 22-Feb-2011
218,Revenue,CCHD,Frenchay Hospital Purchasing,Residential Homes,Roundham Court,1246.8, 22-Feb-2011
219,Revenue,CCHD,Frenchay Hospital Purchasing,Residential Homes,St Monicas Trust,1249.96, 22-Feb-2011
220,Revenue,CCHD,Frenchay Hospital Purchasing,Residential Homes,Stonebow House Residential Home,1238.84, 22-Feb-2011
221,Revenue,CCHD,Frenchay Hospital Purchasing,Residential Homes,The Gables Residential Home,1246.8, 22-Feb-2011
222,Revenue,CCHD,Frenchay Hospital Purchasing,Residential Homes,The Grove,1246.48, 22-Feb-2011
223,Revenue,CCHD,Frenchay Hospital Purchasing,Residential Homes,The Grove,1306.31, 22-Feb-2011
224,Revenue,CCHD,Frenchay Hospital Purchasing,Residential Homes,The Grove,847.52, 22-Feb-2011
225,Revenue,CCHD,Frenchay Hospital Purchasing,Residential Homes,The Grove,10425, 22-Feb-2011
226,Revenue,CCHD,Frenchay Hospital Purchasing,Residential Homes,The Worthies,606.92, 22-Feb-2011
227,Revenue,CCHD,Frenchay Hospital Purchasing,Residential Homes,Walton-On-Thames Charity,1246.8, 22-Feb-2011
228,Revenue,CCHD,Frenchay Hospital Purchasing,Residential Homes,Wayside Residential Care Home,1326.32, 22-Feb-2011
229,Revenue,CCHD,Frenchay Hospital Purchasing,Residential Homes,Willow Cottage,1079.52, 22-Feb-2011
230,Revenue,CCHD,Frenchay Hospital Purchasing,Residential Homes,Willow Cottage,1315.16, 22-Feb-2011
231,Revenue,CCHD,Frenchay Hospital Purchasing,Residential Homes,Windmill House,2493.6, 22-Feb-2011
232,Revenue,CCHD,Frenchay Hospital Purchasing,Residential Homes,Windmill House,522.03, 22-Feb-2011
233,Revenue,CCHD,Frenchay Hospital Purchasing,Residential Homes,Wisteria House,1246.8, 22-Feb-2011
234,Revenue,CCHD,Frenchay Hospital Purchasing,Nursing Homes,Beech House,1132.8, 22-Feb-2011
235,Revenue,CCHD,Frenchay Hospital Purchasing,Nursing Homes,Beech House,1563.12, 22-Feb-2011
236,Revenue,CCHD,Frenchay Hospital Purchasing,Nursing Homes,Brunel Care,1439.6, 22-Feb-2011
237,Revenue,CCHD,Frenchay Hospital Purchasing,Nursing Homes,Brunelcare,6402.22, 03-Feb-2011
238,Revenue,CCHD,Frenchay Hospital Purchasing,Nursing Homes,Bupa Care Services  Bridge House,702.56, 22-Feb-2011
239,Revenue,CCHD,Frenchay Hospital Purchasing,Nursing Homes,Caring Homes Group Ltd,1390.44, 22-Feb-2011
240,Revenue,CCHD,Frenchay Hospital Purchasing,Nursing Homes,Cedar Care Homes Ltd,1082.68, 22-Feb-2011
241,Revenue,CCHD,Frenchay Hospital Purchasing,Nursing Homes,Desai Care Homes  C/O Waltham House,1195.08, 22-Feb-2011
242,Revenue,CCHD,Frenchay Hospital Purchasing,Nursing Homes,Edgemont View Nursing Home,1340.24, 22-Feb-2011
243,Revenue,CCHD,Frenchay Hospital Purchasing,Nursing Homes,Edgemont View Nursing Home,654.6, 22-Feb-2011
244,Revenue,CCHD,Frenchay Hospital Purchasing,Nursing Homes,Edgemont View Nursing Home,1373.96, 22-Feb-2011
245,Revenue,CCHD,Frenchay Hospital Purchasing,Nursing Homes,Elmwood Nursing Home,2332.12, 22-Feb-2011
246,Revenue,CCHD,Frenchay Hospital Purchasing,Nursing Homes,Four Seasons Health Care,1513.24, 22-Feb-2011
247,Revenue,CCHD,Frenchay Hospital Purchasing,Nursing Homes,Four Seasons Health Care,1366.8, 22-Feb-2011
248,Revenue,CCHD,Frenchay Hospital Purchasing,Nursing Homes,Four Seasons Health Care,901.92, 22-Feb-2011
249,Revenue,CCHD,Frenchay Hospital Purchasing,Nursing Homes,Four Seasons Health Care,1366.8, 22-Feb-2011
250,Revenue,CCHD,Frenchay Hospital Purchasing,Nursing Homes,Four Seasons Health Care,1366.8, 22-Feb-2011
251,Revenue,CCHD,Frenchay Hospital Purchasing,Nursing Homes,Four Seasons Health Care,1166.04, 22-Feb-2011
252,Revenue,CCHD,Frenchay Hospital Purchasing,Nursing Homes,Four Seasons Health Care,1361, 22-Feb-2011
253,Revenue,CCHD,Frenchay Hospital Purchasing,Nursing Homes,Four Seasons Health Care,1366.8, 22-Feb-2011
254,Revenue,CCHD,Frenchay Hospital Purchasing,Nursing Homes,Four Seasons Health Care,1374.8, 22-Feb-2011
255,Revenue,CCHD,Frenchay Hospital Purchasing,Nursing Homes,Four Seasons Health Care,757.84, 22-Feb-2011
256,Revenue,CCHD,Frenchay Hospital Purchasing,Nursing Homes,Four Seasons Health Care,1534.8, 22-Feb-2011
257,Revenue,CCHD,Frenchay Hospital Purchasing,Nursing Homes,Four Seasons Health Care,1056, 22-Feb-2011
258,Revenue,CCHD,Frenchay Hospital Purchasing,Nursing Homes,Four Seasons Health Care,2230.69, 22-Feb-2011
259,Revenue,CCHD,Frenchay Hospital Purchasing,Nursing Homes,Four Seasons Health Care,1283.64, 22-Feb-2011
260,Revenue,CCHD,Frenchay Hospital Purchasing,Nursing Homes,Four Seasons Health Care,1253.12, 22-Feb-2011
261,Revenue,CCHD,Frenchay Hospital Purchasing,Nursing Homes,Four Seasons Health Care,1343.12, 22-Feb-2011
262,Revenue,CCHD,Frenchay Hospital Purchasing,Nursing Homes,Four Seasons Health Care,1221.6, 22-Feb-2011
263,Revenue,CCHD,Frenchay Hospital Purchasing,Nursing Homes,Four Seasons Health Care,1240.96, 22-Feb-2011
264,Revenue,CCHD,Frenchay Hospital Purchasing,Nursing Homes,Four Seasons Health Care,1366.8, 22-Feb-2011
265,Revenue,CCHD,Frenchay Hospital Purchasing,Nursing Homes,Four Seasons Health Care,1854.94, 22-Feb-2011
266,Revenue,CCHD,Frenchay Hospital Purchasing,Nursing Homes,Four Seasons Health Care,1366.8, 22-Feb-2011
267,Revenue,CCHD,Frenchay Hospital Purchasing,Nursing Homes,Four Seasons Health Care,3496.49, 22-Feb-2011
268,Revenue,CCHD,Frenchay Hospital Purchasing,Nursing Homes,Four Seasons Health Care,1341.12, 22-Feb-2011
269,Revenue,CCHD,Frenchay Hospital Purchasing,Nursing Homes,Four Seasons Health Care,1173.04, 22-Feb-2011
270,Revenue,CCHD,Frenchay Hospital Purchasing,Nursing Homes,Four Seasons Health Care,1297.12, 22-Feb-2011
271,Revenue,CCHD,Frenchay Hospital Purchasing,Nursing Homes,Four Seasons Health Care,829.88, 22-Feb-2011
272,Revenue,CCHD,Frenchay Hospital Purchasing,Nursing Homes,Four Seasons Health Care,1390.8, 22-Feb-2011
273,Revenue,CCHD,Frenchay Hospital Purchasing,Nursing Homes,Four Seasons Health Care,1366.8, 22-Feb-2011
274,Revenue,CCHD,Frenchay Hospital Purchasing,Nursing Homes,Four Seasons Health Care,1366.8, 22-Feb-2011
275,Revenue,CCHD,Frenchay Hospital Purchasing,Nursing Homes,Four Seasons Health Care,1382.8, 22-Feb-2011
276,Revenue,CCHD,Frenchay Hospital Purchasing,Nursing Homes,Four Seasons Health Care,1808, 22-Feb-2011
277,Revenue,CCHD,Frenchay Hospital Purchasing,Nursing Homes,Four Seasons Health Care,1366.8, 22-Feb-2011
278,Revenue,CCHD,Frenchay Hospital Purchasing,Nursing Homes,Four Seasons Health Care,1336.28, 22-Feb-2011
279,Revenue,CCHD,Frenchay Hospital Purchasing,Nursing Homes,Four Seasons Health Care,881.92, 22-Feb-2011
280,Revenue,CCHD,Frenchay Hospital Purchasing,Nursing Homes,Four Seasons Health Care,1216.92, 22-Feb-2011
281,Revenue,CCHD,Frenchay Hospital Purchasing,Nursing Homes,Four Seasons Health Care,1363.84, 22-Feb-2011
282,Revenue,CCHD,Frenchay Hospital Purchasing,Nursing Homes,Four Seasons Health Care,807.52, 22-Feb-2011
283,Revenue,CCHD,Frenchay Hospital Purchasing,Nursing Homes,Four Seasons Health Care,2652.13, 22-Feb-2011
284,Revenue,CCHD,Frenchay Hospital Purchasing,Nursing Homes,Frenchay Park Nursing Home,1222.36, 22-Feb-2011
285,Revenue,CCHD,Frenchay Hospital Purchasing,Nursing Homes,Holmwood House,1314.92, 22-Feb-2011
286,Revenue,CCHD,Frenchay Hospital Purchasing,Nursing Homes,Horfield Care Limited,3938.5, 07-Feb-2011
287,Revenue,CCHD,Frenchay Hospital Purchasing,Nursing Homes,Sedbury Park Care Centre,1301.88, 22-Feb-2011
288,Revenue,CCHD,Frenchay Hospital Purchasing,Nursing Homes,St George Nursing Home,1302.8, 22-Feb-2011
289,Revenue,CCHD,Frenchay Hospital Purchasing,Nursing Homes,St George Nursing Home,5025.09, 22-Feb-2011
290,Revenue,CCHD,Frenchay Hospital Purchasing,Nursing Homes,St George Nursing Home,1302.8, 22-Feb-2011
291,Revenue,CCHD,Frenchay Hospital Purchasing,Nursing Homes,The Heathers,1314.8, 22-Feb-2011
292,Revenue,CCHD,Frenchay Hospital Purchasing,Nursing Homes,The Heathers,744.76, 22-Feb-2011
293,Revenue,CCHD,Frenchay Hospital Purchasing,Nursing Homes,The Heathers,1306.04, 22-Feb-2011
294,Revenue,CCHD,Frenchay Hospital Purchasing,Nursing Homes,The Heathers,1235.88, 22-Feb-2011
295,Revenue,CCHD,Frenchay Hospital Purchasing,Nursing Homes,The Heathers,905.6, 22-Feb-2011
296,Revenue,CCHD,Frenchay Hospital Purchasing,Nursing Homes,Wickwar Nursing Home  Castle House,1000.56, 22-Feb-2011
297,Revenue,CCHD,Frenchay Hospital Purchasing,Nursing Homes,Wickwar Nursing Home  Castle House,1539.24, 22-Feb-2011
298,Revenue,CCHD,Frenchay Hospital Purchasing,Nursing Homes,Willow Cottage,1645.6, 22-Feb-2011
299,Revenue,CCHD,Frenchay Hospital Purchasing,Nursing Homes,Willow Cottage,1320.72, 22-Feb-2011
300,Revenue,CCHD,Southmead Hospital Purchasing,Residential Homes,Ablecare Homes,1462.88, 22-Feb-2011
301,Revenue,CCHD,Southmead Hospital Purchasing,Residential Homes,Beaufort House,1053.44, 22-Feb-2011
302,Revenue,CCHD,Southmead Hospital Purchasing,Residential Homes,Brunel Care,1263.64, 22-Feb-2011
303,Revenue,CCHD,Southmead Hospital Purchasing,Residential Homes,Brunel Care,5843.41, 22-Feb-2011
304,Revenue,CCHD,Southmead Hospital Purchasing,Residential Homes,Chatsworth House,1032.12, 22-Feb-2011
305,Revenue,CCHD,Southmead Hospital Purchasing,Residential Homes,Cleeve Lodge,1169.56, 22-Feb-2011
306,Revenue,CCHD,Southmead Hospital Purchasing,Residential Homes,Cleeve Lodge,1469.44, 22-Feb-2011
307,Revenue,CCHD,Southmead Hospital Purchasing,Residential Homes,Edgecumbe Lodge,789.81, 22-Feb-2011
308,Revenue,CCHD,Southmead Hospital Purchasing,Residential Homes,Fairview Court,1679.84, 22-Feb-2011
309,Revenue,CCHD,Southmead Hospital Purchasing,Residential Homes,Fairview House,1246.8, 22-Feb-2011
310,Revenue,CCHD,Southmead Hospital Purchasing,Residential Homes,Four Seasons Health Care,1129.04, 22-Feb-2011
311,Revenue,CCHD,Southmead Hospital Purchasing,Residential Homes,Four Seasons Health Care,1366.8, 22-Feb-2011
312,Revenue,CCHD,Southmead Hospital Purchasing,Residential Homes,Four Seasons Health Care,629.8, 22-Feb-2011
313,Revenue,CCHD,Southmead Hospital Purchasing,Residential Homes,Four Seasons Health Care,1257.6, 22-Feb-2011
314,Revenue,CCHD,Southmead Hospital Purchasing,Residential Homes,Four Seasons Health Care,756.99, 22-Feb-2011
315,Revenue,CCHD,Southmead Hospital Purchasing,Residential Homes,Four Seasons Health Care,1870.2, 22-Feb-2011
316,Revenue,CCHD,Southmead Hospital Purchasing,Residential Homes,Four Seasons Health Care,1170.64, 22-Feb-2011
317,Revenue,CCHD,Southmead Hospital Purchasing,Residential Homes,Four Seasons Health Care,1246.8, 22-Feb-2011
318,Revenue,CCHD,Southmead Hospital Purchasing,Residential Homes,Kenver House Residential Home,1638.8, 22-Feb-2011
319,Revenue,CCHD,Southmead Hospital Purchasing,Residential Homes,Mostyn Lodge Residential Home,1246.8, 22-Feb-2011
320,Revenue,CCHD,Southmead Hospital Purchasing,Residential Homes,Park Farm House,1584.2, 22-Feb-2011
321,Revenue,CCHD,Southmead Hospital Purchasing,Residential Homes,Quality Care Homes Ltd,1220.48, 22-Feb-2011
322,Revenue,CCHD,Southmead Hospital Purchasing,Residential Homes,Quality Care Homes Ltd,1249.96, 22-Feb-2011
323,Revenue,CCHD,Southmead Hospital Purchasing,Residential Homes,The Grove,1339.72, 22-Feb-2011
324,Revenue,CCHD,Southmead Hospital Purchasing,Residential Homes,The Manor Cottage,912.72, 22-Feb-2011
325,Revenue,CCHD,Southmead Hospital Purchasing,Residential Homes,Vaughan Lee House,1187.04, 22-Feb-2011
326,Revenue,CCHD,Southmead Hospital Purchasing,Residential Homes,Wayside Residential Care Home,1273.68, 22-Feb-2011
327,Revenue,CCHD,Southmead Hospital Purchasing,Residential Homes,Willow Cottage,1403.08, 22-Feb-2011
328,Revenue,CCHD,Southmead Hospital Purchasing,Residential Homes,Willow Cottage,1410.32, 22-Feb-2011
329,Revenue,CCHD,Southmead Hospital Purchasing,Residential Homes,Willow Cottage,1482.92, 22-Feb-2011
330,Revenue,CCHD,Southmead Hospital Purchasing,Residential Homes,Willow Cottage,1115.2, 22-Feb-2011
331,Revenue,CCHD,Southmead Hospital Purchasing,Nursing Homes,Beech House,1589.2, 22-Feb-2011
332,Revenue,CCHD,Southmead Hospital Purchasing,Nursing Homes,Beech House,1593.2, 22-Feb-2011
333,Revenue,CCHD,Southmead Hospital Purchasing,Nursing Homes,Fairview Court Care Home,1286.72, 02-Feb-2011
334,Revenue,CCHD,Southmead Hospital Purchasing,Nursing Homes,Four Seasons Health Care,1366.8, 22-Feb-2011
335,Revenue,CCHD,Southmead Hospital Purchasing,Nursing Homes,Four Seasons Health Care,1274.12, 22-Feb-2011
336,Revenue,CCHD,Southmead Hospital Purchasing,Nursing Homes,Four Seasons Health Care,1093.96, 22-Feb-2011
337,Revenue,CCHD,Southmead Hospital Purchasing,Nursing Homes,Four Seasons Health Care,1012.52, 22-Feb-2011
338,Revenue,CCHD,Southmead Hospital Purchasing,Nursing Homes,Four Seasons Health Care,1366.8, 22-Feb-2011
339,Revenue,CCHD,Southmead Hospital Purchasing,Nursing Homes,Four Seasons Health Care,809.64, 22-Feb-2011
340,Revenue,CCHD,Southmead Hospital Purchasing,Nursing Homes,Four Seasons Health Care,1355.4, 22-Feb-2011
341,Revenue,CCHD,Southmead Hospital Purchasing,Nursing Homes,Four Seasons Health Care,1366.8, 22-Feb-2011
342,Revenue,CCHD,Southmead Hospital Purchasing,Nursing Homes,Four Seasons Health Care,1281.64, 22-Feb-2011
343,Revenue,CCHD,Southmead Hospital Purchasing,Nursing Homes,Four Seasons Health Care,709.6, 22-Feb-2011
344,Revenue,CCHD,Southmead Hospital Purchasing,Nursing Homes,Four Seasons Health Care,1366.8, 22-Feb-2011
345,Revenue,CCHD,Southmead Hospital Purchasing,Nursing Homes,Four Seasons Health Care,1366.8, 22-Feb-2011
346,Revenue,CCHD,Southmead Hospital Purchasing,Nursing Homes,Four Seasons Health Care,1126.56, 22-Feb-2011
347,Revenue,CCHD,Southmead Hospital Purchasing,Nursing Homes,Four Seasons Health Care,1336.64, 22-Feb-2011
348,Revenue,CCHD,Southmead Hospital Purchasing,Nursing Homes,Four Seasons Health Care,4069.38, 22-Feb-2011
349,Revenue,CCHD,Southmead Hospital Purchasing,Nursing Homes,Four Seasons Health Care,1294.8, 22-Feb-2011
350,Revenue,CCHD,Southmead Hospital Purchasing,Nursing Homes,Four Seasons Health Care,760.4, 22-Feb-2011
351,Revenue,CCHD,Southmead Hospital Purchasing,Nursing Homes,Glebe House Nursing Home,1664.84, 22-Feb-2011
352,Revenue,CCHD,Southmead Hospital Purchasing,Nursing Homes,Horfield Care Limited,1937.49, 07-Feb-2011
353,Revenue,CCHD,Southmead Hospital Purchasing,Nursing Homes,Leonard Cheshire  National Account Centr,2910.28, 22-Feb-2011
354,Revenue,CCHD,Southmead Hospital Purchasing,Nursing Homes,Majestic 3 Limited,1052.32, 22-Feb-2011
355,Revenue,CCHD,Southmead Hospital Purchasing,Nursing Homes,Mimosa Healthcare Holdings Ltd,855.64, 22-Feb-2011
356,Revenue,CCHD,Southmead Hospital Purchasing,Nursing Homes,Regent House,1384.8, 22-Feb-2011
357,Revenue,CCHD,Southmead Hospital Purchasing,Nursing Homes,Riversway Nursing Home,1009.14, 22-Feb-2011
358,Revenue,CCHD,Southmead Hospital Purchasing,Nursing Homes,Riversway Nursing Home,1362.52, 22-Feb-2011
359,Revenue,CCHD,Southmead Hospital Purchasing,Nursing Homes,Riversway Nursing Home,1708, 22-Feb-2011
360,Revenue,CCHD,Southmead Hospital Purchasing,Nursing Homes,Southern Cross Healthcare,1604, 22-Feb-2011
361,Revenue,CCHD,Southmead Hospital Purchasing,Nursing Homes,St George Nursing Home,1413.2, 22-Feb-2011
362,Revenue,CCHD,Southmead Hospital Purchasing,Nursing Homes,Sunnymede Nursing Home,1302.8, 22-Feb-2011
363,Revenue,CCHD,Southmead Hospital Purchasing,Nursing Homes,The Heathers,1034.68, 22-Feb-2011
364,Revenue,CCHD,Southmead Hospital Purchasing,Nursing Homes,The Heathers,1302.8, 22-Feb-2011
365,Revenue,CCHD,Southmead Hospital Purchasing,Nursing Homes,The Laurels Nursing Home,1382.28, 22-Feb-2011
366,Revenue,CCHD,Southmead Hospital Purchasing,Nursing Homes,Wickwar Nursing Home  Castle House,751.52, 22-Feb-2011
367,Revenue,CCHD,Southmead Hospital Purchasing,Nursing Homes,Wickwar Nursing Home  Castle House,1133.2, 22-Feb-2011
368,Revenue,CCHD,Southmead Hospital Purchasing,Nursing Homes,Willow Cottage,1461.96, 22-Feb-2011
369,Revenue,CCHD,Southmead Hospital Purchasing,Nursing Homes,Willow Cottage,2202.29, 22-Feb-2011
370,Revenue,CCHD,Southmead Hospital Purchasing,Nursing Homes,Willow Cottage,1312.76, 22-Feb-2011
371,Revenue,CCHD,Cash for Change Discharges,Nursing Homes,Four Seasons Health Care,1366.8, 22-Feb-2011
372,Revenue,CCHD,Cash for Change Discharges,Nursing Homes,Wickwar Nursing Home  Castle House,1371.72, 22-Feb-2011
373,Revenue,CCHD,South Glos Users in South Glos Homes,Nursing Homes,Beech House,3028.07, 22-Feb-2011
374,Revenue,CCHD,South Glos Users in South Glos Homes,Nursing Homes,Brunelcare,10901.07, 03-Feb-2011
375,Revenue,CCHD,South Glos Users in South Glos Homes,Nursing Homes,Fairview Court,1739.2, 22-Feb-2011
376,Revenue,CCHD,South Glos Users in South Glos Homes,Nursing Homes,Fairview Court Care Home,2406.93, 02-Feb-2011
377,Revenue,CCHD,South Glos Users in South Glos Homes,Nursing Homes,Four Seasons Health Care,1024.89, 22-Feb-2011
378,Revenue,CCHD,South Glos Users in South Glos Homes,Nursing Homes,Four Seasons Health Care,1211.23, 22-Feb-2011
379,Revenue,CCHD,South Glos Users in South Glos Homes,Nursing Homes,Four Seasons Health Care,1599.44, 22-Feb-2011
380,Revenue,CCHD,South Glos Users in South Glos Homes,Nursing Homes,Four Seasons Health Care,1956.6, 22-Feb-2011
381,Revenue,CCHD,South Glos Users in South Glos Homes,Nursing Homes,Four Seasons Health Care,1894.49, 22-Feb-2011
382,Revenue,CCHD,South Glos Users in South Glos Homes,Nursing Homes,Four Seasons Health Care,1055.94, 22-Feb-2011
383,Revenue,CCHD,South Glos Users in South Glos Homes,Nursing Homes,Four Seasons Health Care,1350.99, 22-Feb-2011
384,Revenue,CCHD,South Glos Users in South Glos Homes,Nursing Homes,Four Seasons Health Care,2251.64, 22-Feb-2011
385,Revenue,CCHD,South Glos Users in South Glos Homes,Nursing Homes,Four Seasons Health Care,1583.91, 22-Feb-2011
386,Revenue,CCHD,South Glos Users in South Glos Homes,Nursing Homes,Holmwood House,1304.4, 22-Feb-2011
387,Revenue,CCHD,South Glos Users in South Glos Homes,Nursing Homes,Regent House,2236.11, 22-Feb-2011
388,Revenue,CCHD,South Glos Users in South Glos Homes,Nursing Homes,The Heathers,1754.73, 22-Feb-2011
389,Revenue,CCHD,South Glos Users in South Glos Homes,Nursing Homes,Woodlands Manor,1273.34, 22-Feb-2011
390,Revenue,CCHD,South Glos Users in all other LA Homes,Nursing Homes,Bupa Care Services  Bridge House,598.4, 22-Feb-2011
391,Revenue,CCHD,South Glos Users in all other LA Homes,Nursing Homes,Leonard Cheshire  National Account Centr,598.4, 22-Feb-2011
392,Revenue,CCHD,CHC Client Contribution,Nursing Homes,Aspects and Milestones Trust,1827.83, 03-Feb-2011
393,Revenue,CCHD,Home Care Purch South,Other Small Contracts,Bradley House Home Care Services,90.51, 11-Feb-2011
394,Revenue,CCHD,Home Care Purch South,Other Small Contracts,Bradley House Home Care Services,90.51, 01-Feb-2011
395,Revenue,CCHD,Home Care Purch South,Other Small Contracts,Bradley House Home Care Services,94.82, 07-Feb-2011
396,Revenue,CCHD,Home Care Purch South,Other Small Contracts,Chrysalis Community Care Group Ltd,336.6, 02-Feb-2011
397,Revenue,CCHD,Home Care Purch South,Other Small Contracts,Chrysalis Community Care Group Ltd,346.8, 01-Feb-2011
398,Revenue,CCHD,Home Care Purch South,Other Small Contracts,DoCare Ltd,1799.55, 24-Feb-2011
399,Revenue,CCHD,Home Care Purch South,Other Small Contracts,DoCare Ltd,1953, 11-Feb-2011
400,Revenue,CCHD,Home Care Purch South,Other Small Contracts,DoCare Ltd,1701.9, 24-Feb-2011
401,Revenue,CCHD,Home Care Purch South,Other Small Contracts,DoCare Ltd,1994.85, 24-Feb-2011
402,Revenue,CCHD,Home Care Purch South,Other Small Contracts,Guardian Homecare (Bristol & Avon) Ltd,2809.88, 07-Feb-2011
403,Revenue,CCHD,Home Care Purch South,Other Small Contracts,Guardian Homecare (Bristol & Avon) Ltd,2786, 11-Feb-2011
404,Revenue,CCHD,Home Care Purch South,Other Small Contracts,Guardian Homecare (Bristol & Avon) Ltd,2742.22, 21-Feb-2011
405,Revenue,CCHD,Home Care Purch South,Other Small Contracts,Lloyds TSB Commercial Finance Limited,214.48, 16-Feb-2011
406,Revenue,CCHD,Home Care Purch South,Other Small Contracts,Mears Care,2129.1, 01-Feb-2011
407,Revenue,CCHD,Home Care Purch South,Other Small Contracts,Mears Care,2105.6, 10-Feb-2011
408,Revenue,CCHD,Home Care Purch South,Other Small Contracts,Mears Care,1771.9, 11-Feb-2011
409,Revenue,CCHD,Home Care Purch South,Other Small Contracts,Mears Care,1828.3, 24-Feb-2011
410,Revenue,CCHD,Home Care Purch South,Other Small Contracts,Mears Care,1635.6, 24-Feb-2011
411,Revenue,CCHD,Home Care Purch South,Other Small Contracts,On the Up,413.1, 01-Feb-2011
412,Revenue,CCHD,Home Care Purch South,Other Small Contracts,On the Up,403.38, 01-Feb-2011
413,Revenue,CCHD,Home Care Purch South,Other Small Contracts,On the Up,403.38, 21-Feb-2011
414,Revenue,CCHD,Home Care Purch South,Other Small Contracts,Tender Home Care Limited,1333.42, 02-Feb-2011
415,Revenue,CCHD,Home Care Purch South,Other Small Contracts,Tender Home Care Limited,1366.86, 09-Feb-2011
416,Revenue,CCHD,Home Care Purch North,Private & Voluntary Home Care,Housing 21,35222.9, 10-Feb-2011
417,Revenue,CCHD,Home Care Purch North,Private & Voluntary Day Care,Lloyds TSB Commercial Finance Limited,38.3, 02-Feb-2011
418,Revenue,CCHD,Home Care Purch North,Other Small Contracts,3 Trees Community Support Ltd,625.8, 18-Feb-2011
419,Revenue,CCHD,Home Care Purch North,Other Small Contracts,Agincare UK Limited,799.96, 04-Feb-2011
420,Revenue,CCHD,Home Care Purch North,Other Small Contracts,Agincare UK Limited,799.96, 04-Feb-2011
421,Revenue,CCHD,Home Care Purch North,Other Small Contracts,Agincare UK Limited,799.96, 04-Feb-2011
422,Revenue,CCHD,Home Care Purch North,Other Small Contracts,Agincare UK Limited,799.96, 04-Feb-2011
423,Revenue,CCHD,Home Care Purch North,Other Small Contracts,Agincare UK Limited,1190.14, 04-Feb-2011
424,Revenue,CCHD,Home Care Purch North,Other Small Contracts,Agincare UK Limited,800.03, 18-Feb-2011
425,Revenue,CCHD,Home Care Purch North,Other Small Contracts,Agincare UK Limited,799.96, 04-Feb-2011
426,Revenue,CCHD,Home Care Purch North,Other Small Contracts,Agincare UK Limited,799.96, 04-Feb-2011
427,Revenue,CCHD,Home Care Purch North,Other Small Contracts,Allied  Healthcare Group Limited,3454.08, 04-Feb-2011
428,Revenue,CCHD,Home Care Purch North,Other Small Contracts,Allied  Healthcare Group Limited,3454.08, 04-Feb-2011
429,Revenue,CCHD,Home Care Purch North,Other Small Contracts,Bradley House Home Care Services,2767.02, 11-Feb-2011
430,Revenue,CCHD,Home Care Purch North,Other Small Contracts,Bradley House Home Care Services,2732.54, 01-Feb-2011
431,Revenue,CCHD,Home Care Purch North,Other Small Contracts,Bradley House Home Care Services,2732.54, 07-Feb-2011
432,Revenue,CCHD,Home Care Purch North,Other Small Contracts,Chrysalis Community Care Group Ltd,1694.28, 02-Feb-2011
433,Revenue,CCHD,Home Care Purch North,Other Small Contracts,Chrysalis Community Care Group Ltd,1863.92, 01-Feb-2011
434,Revenue,CCHD,Home Care Purch North,Other Small Contracts,DoCare Ltd,2924.85, 24-Feb-2011
435,Revenue,CCHD,Home Care Purch North,Other Small Contracts,DoCare Ltd,3454.95, 11-Feb-2011
436,Revenue,CCHD,Home Care Purch North,Other Small Contracts,DoCare Ltd,3296.85, 24-Feb-2011
437,Revenue,CCHD,Home Care Purch North,Other Small Contracts,DoCare Ltd,3096.9, 24-Feb-2011
438,Revenue,CCHD,Home Care Purch North,Other Small Contracts,Guardian Homecare (Bristol & Avon) Ltd,3247.68, 07-Feb-2011
439,Revenue,CCHD,Home Care Purch North,Other Small Contracts,Guardian Homecare (Bristol & Avon) Ltd,3331.26, 11-Feb-2011
440,Revenue,CCHD,Home Care Purch North,Other Small Contracts,Guardian Homecare (Bristol & Avon) Ltd,3251.66, 21-Feb-2011
441,Revenue,CCHD,Home Care Purch North,Other Small Contracts,Kumari Care Limited,659.43, 01-Feb-2011
442,Revenue,CCHD,Home Care Purch North,Other Small Contracts,Kumari Care Limited,809.87, 09-Feb-2011
443,Revenue,CCHD,Home Care Purch North,Other Small Contracts,Kumari Care Limited,809.87, 09-Feb-2011
444,Revenue,CCHD,Home Care Purch North,Other Small Contracts,Kumari Care Limited,809.87, 18-Feb-2011
445,Revenue,CCHD,Home Care Purch North,Other Small Contracts,Lloyds TSB Commercial Finance Limited,3485.3, 16-Feb-2011
446,Revenue,CCHD,Home Care Purch North,Other Small Contracts,Lloyds TSB Commercial Finance Limited,4755.15, 16-Feb-2011
447,Revenue,CCHD,Home Care Purch North,Other Small Contracts,Lloyds TSB Commercial Finance Limited,2669.51, 16-Feb-2011
448,Revenue,CCHD,Home Care Purch North,Other Small Contracts,Lloyds TSB Commercial Finance Limited,3205.71, 09-Feb-2011
449,Revenue,CCHD,Home Care Purch North,Other Small Contracts,Lloyds TSB Commercial Finance Limited,3620.84, 16-Feb-2011
450,Revenue,CCHD,Home Care Purch North,Other Small Contracts,Lloyds TSB Commercial Finance Limited,4432.59, 09-Feb-2011
451,Revenue,CCHD,Home Care Purch North,Other Small Contracts,Lloyds TSB Commercial Finance Limited,3366.57, 09-Feb-2011
452,Revenue,CCHD,Home Care Purch North,Other Small Contracts,Lloyds TSB Commercial Finance Limited,3358.06, 16-Feb-2011
453,Revenue,CCHD,Home Care Purch North,Other Small Contracts,Lloyds TSB Commercial Finance Limited,3096.13, 16-Feb-2011
454,Revenue,CCHD,Home Care Purch North,Other Small Contracts,Lloyds TSB Commercial Finance Limited,3346.57, 16-Feb-2011
455,Revenue,CCHD,Home Care Purch North,Other Small Contracts,Lloyds TSB Commercial Finance Limited,3485.58, 16-Feb-2011
456,Revenue,CCHD,Home Care Purch North,Other Small Contracts,Lloyds TSB Commercial Finance Limited,3966.18, 03-Feb-2011
457,Revenue,CCHD,Home Care Purch North,Other Small Contracts,Lloyds TSB Commercial Finance Limited,2926.12, 02-Feb-2011
458,Revenue,CCHD,Home Care Purch North,Other Small Contracts,Lloyds TSB Commercial Finance Limited,2654.19, 03-Feb-2011
459,Revenue,CCHD,Home Care Purch North,Other Small Contracts,Mears Care,11388.1, 01-Feb-2011
460,Revenue,CCHD,Home Care Purch North,Other Small Contracts,Mears Care,11016.8, 10-Feb-2011
461,Revenue,CCHD,Home Care Purch North,Other Small Contracts,Mears Care,10913.4, 11-Feb-2011
462,Revenue,CCHD,Home Care Purch North,Other Small Contracts,Mears Care,10791.2, 24-Feb-2011
463,Revenue,CCHD,Home Care Purch North,Other Small Contracts,Mears Care,10471.6, 24-Feb-2011
464,Revenue,CCHD,Home Care Purch North,Other Small Contracts,Medico Nursing & Homecare Ltd,1945.77, 04-Feb-2011
465,Revenue,CCHD,Home Care Purch North,Other Small Contracts,Medico Nursing & Homecare Ltd,1780.55, 04-Feb-2011
466,Revenue,CCHD,Home Care Purch North,Other Small Contracts,Medico Nursing & Homecare Ltd,1927.73, 04-Feb-2011
467,Revenue,CCHD,Home Care Purch North,Other Small Contracts,Medico Nursing & Homecare Ltd,1302.41, 03-Feb-2011
468,Revenue,CCHD,Home Care Purch North,Other Small Contracts,Medico Nursing & Homecare Ltd,2407.24, 01-Feb-2011
469,Revenue,CCHD,Home Care Purch North,Other Small Contracts,Medico Nursing & Homecare Ltd,2407.24, 03-Feb-2011
470,Revenue,CCHD,Home Care Purch North,Other Small Contracts,Medico Nursing & Homecare Ltd,1498.49, 01-Feb-2011
471,Revenue,CCHD,Home Care Purch North,Other Small Contracts,Medico Nursing & Homecare Ltd,1157.94, 03-Feb-2011
472,Revenue,CCHD,Home Care Purch North,Other Small Contracts,Medico Nursing & Homecare Ltd,2436.92, 01-Feb-2011
473,Revenue,CCHD,Home Care Purch North,Other Small Contracts,Medico Nursing & Homecare Ltd,1894.28, 03-Feb-2011
474,Revenue,CCHD,Home Care Purch North,Other Small Contracts,Medico Nursing & Homecare Ltd,1927.73, 01-Feb-2011
475,Revenue,CCHD,Home Care Purch North,Other Small Contracts,Medico Nursing & Homecare Ltd,1927.73, 01-Feb-2011
476,Revenue,CCHD,Home Care Purch North,Other Small Contracts,Medico Nursing & Homecare Ltd,1927.73, 28-Feb-2011
477,Revenue,CCHD,Home Care Purch North,Other Small Contracts,Premier Homecare Limited,8519.03, 09-Feb-2011
478,Revenue,CCHD,Home Care Purch North,Other Small Contracts,Premier Homecare Limited,8763.84, 21-Feb-2011
479,Revenue,CCHD,Home Care Purch North,Other Small Contracts,Premier Homecare Limited,8981.44, 09-Feb-2011
480,Revenue,CCHD,Home Care Purch North,Other Small Contracts,Premier Homecare Limited,8927.04, 21-Feb-2011
481,Revenue,CCHD,Home Care Purch North,Other Small Contracts,Premier Homecare Limited,8791.04, 23-Feb-2011
482,Revenue,CCHD,Home Care Purch North,Other Small Contracts,Tender Home Care Limited,2090, 02-Feb-2011
483,Revenue,CCHD,Home Care Purch North,Other Small Contracts,Tender Home Care Limited,2177.78, 09-Feb-2011
484,Revenue,CCHD,Home Care Purch North,Other Small Contracts,The Royal Bank of Scotland Commercial,782.14, 11-Feb-2011
485,Revenue,CCHD,Home Care Purch North,Other Small Contracts,The Royal Bank of Scotland Commercial,1095, 18-Feb-2011
486,Revenue,CCHD,Day Care - South,Private & Voluntary Day Care,Action for Blind People,2891.65, 04-Feb-2011
487,Revenue,CCHD,Day Care - South,Private & Voluntary Day Care,Action for Blind People,1014.95, 03-Feb-2011
488,Revenue,CCHD,Day Care - South,Private & Voluntary Day Care,Action for Blind People,2815.05, 15-Feb-2011
489,Revenue,CCHD,Day Care - South,Private & Voluntary Day Care,Action for Blind People,1206.45, 15-Feb-2011
490,Revenue,CCHD,Day Care - South,Private & Voluntary Day Care,Aspects and Milestones Trust,514.05, 28-Feb-2011
491,Revenue,CCHD,Day Care - South,Private & Voluntary Day Care,Aspects and Milestones Trust,1017.2, 28-Feb-2011
492,Revenue,CCHD,Day Care - South,Private & Voluntary Day Care,Aspects and Milestones Trust,580.3, 28-Feb-2011
493,Revenue,CCHD,Day Care - South,Private & Voluntary Day Care,Aspects and Milestones Trust,1008.65, 28-Feb-2011
494,Revenue,CCHD,Day Care - South,Private & Voluntary Day Care,Aspects and Milestones Trust,828.4, 28-Feb-2011
495,Revenue,CCHD,Day Care - South,Private & Voluntary Day Care,Aspects and Milestones Trust,990, 28-Feb-2011
496,Revenue,CCHD,Day Care - South,Private & Voluntary Day Care,Aspects and Milestones Trust,792, 28-Feb-2011
497,Revenue,CCHD,Day Care - South,Private & Voluntary Day Care,Aspects and Milestones Trust,845.2, 28-Feb-2011
498,Revenue,CCHD,Day Care - South,Private & Voluntary Day Care,Aspects and Milestones Trust,792, 28-Feb-2011
499,Revenue,CCHD,Day Care - South,Private & Voluntary Day Care,Bradley House Home Care Services,60.34, 11-Feb-2011
500,Revenue,CCHD,Day Care - South,Private & Voluntary Day Care,Bradley House Home Care Services,60.34, 07-Feb-2011
501,Revenue,CCHD,Day Care - South,Private & Voluntary Day Care,Care Horizons Limited,510.6, 03-Feb-2011
502,Revenue,CCHD,Day Care - South,Private & Voluntary Day Care,Care Horizons Limited,700.6, 03-Feb-2011
503,Revenue,CCHD,Day Care - South,Private & Voluntary Day Care,Care Horizons Limited,709.4, 04-Feb-2011
504,Revenue,CCHD,Day Care - South,Private & Voluntary Day Care,Deafblind UK,965.97, 03-Feb-2011
505,Revenue,CCHD,Day Care - South,Private & Voluntary Day Care,Deafblind UK,1815, 03-Feb-2011
506,Revenue,CCHD,Day Care - South,Private & Voluntary Day Care,Deafblind UK,1750, 22-Feb-2011
507,Revenue,CCHD,Day Care - South,Private & Voluntary Day Care,Deafblind UK,729.12, 22-Feb-2011
508,Revenue,CCHD,Day Care - South,Private & Voluntary Day Care,Dhek Bhal,1285.2, 03-Feb-2011
509,Revenue,CCHD,Day Care - South,Private & Voluntary Day Care,Dhek Bhal,1461.6, 22-Feb-2011
510,Revenue,CCHD,Day Care - South,Private & Voluntary Day Care,DoCare Ltd,106.95, 24-Feb-2011
511,Revenue,CCHD,Day Care - South,Private & Voluntary Day Care,DoCare Ltd,111.6, 11-Feb-2011
512,Revenue,CCHD,Day Care - South,Private & Voluntary Day Care,DoCare Ltd,120.9, 24-Feb-2011
513,Revenue,CCHD,Day Care - South,Private & Voluntary Day Care,DoCare Ltd,120.9, 24-Feb-2011
514,Revenue,CCHD,Day Care - South,Private & Voluntary Day Care,Guardian Homecare (Bristol & Avon) Ltd,212.74, 07-Feb-2011
515,Revenue,CCHD,Day Care - South,Private & Voluntary Day Care,Guardian Homecare (Bristol & Avon) Ltd,212.18, 11-Feb-2011
516,Revenue,CCHD,Day Care - South,Private & Voluntary Day Care,Guardian Homecare (Bristol & Avon) Ltd,216.16, 21-Feb-2011
517,Revenue,CCHD,Day Care - South,Private & Voluntary Day Care,Headway Bristol,786.06, 15-Feb-2011
518,Revenue,CCHD,Day Care - South,Private & Voluntary Day Care,Headway Bristol,1142.41, 15-Feb-2011
519,Revenue,CCHD,Day Care - South,Private & Voluntary Day Care,Headway Bristol,786.06, 24-Feb-2011
520,Revenue,CCHD,Day Care - South,Private & Voluntary Day Care,Headway Bristol,1889.72, 24-Feb-2011
521,Revenue,CCHD,Day Care - South,Private & Voluntary Day Care,Mears Care,230.3, 01-Feb-2011
522,Revenue,CCHD,Day Care - South,Private & Voluntary Day Care,Mears Care,230.3, 10-Feb-2011
523,Revenue,CCHD,Day Care - South,Private & Voluntary Day Care,Mears Care,230.3, 11-Feb-2011
524,Revenue,CCHD,Day Care - South,Private & Voluntary Day Care,Mears Care,192.7, 24-Feb-2011
525,Revenue,CCHD,Day Care - South,Private & Voluntary Day Care,Mears Care,230.3, 24-Feb-2011
526,Revenue,CCHD,Day Care - South,Private & Voluntary Day Care,Mrs B Kimber,913.02, 03-Feb-2011
527,Revenue,CCHD,Day Care - South,Private & Voluntary Day Care,Mrs B Kimber,1108.35, 22-Feb-2011
528,Revenue,CCHD,Day Care - South,Private & Voluntary Day Care,On the Up,63.18, 01-Feb-2011
529,Revenue,CCHD,Day Care - South,Private & Voluntary Day Care,On the Up,63.18, 01-Feb-2011
530,Revenue,CCHD,Day Care - South,Private & Voluntary Day Care,On the Up,63.18, 21-Feb-2011
531,Revenue,CCHD,Day Care - South,Private & Voluntary Day Care,South Gloucestershire Crossroads,1382.33, 04-Feb-2011
532,Revenue,CCHD,Day Care - South,Private & Voluntary Day Care,Tender Home Care Limited,25.08, 02-Feb-2011
533,Revenue,CCHD,Day Care - South,Private & Voluntary Day Care,Tender Home Care Limited,29.26, 09-Feb-2011
534,Revenue,CCHD,Day Care - South,Private & Voluntary Day Care,The Brandon Trust,777.75, 03-Feb-2011
535,Revenue,CCHD,Day Care - South,Private & Voluntary Day Care,The Brandon Trust,622.2, 03-Feb-2011
536,Revenue,CCHD,Day Care - North,Private & Voluntary Day Care,Action for Blind People,2795.9, 07-Feb-2011
537,Revenue,CCHD,Day Care - North,Private & Voluntary Day Care,Bradley House Home Care Services,275.84, 11-Feb-2011
538,Revenue,CCHD,Day Care - North,Private & Voluntary Day Care,Bradley House Home Care Services,323.25, 01-Feb-2011
539,Revenue,CCHD,Day Care - North,Private & Voluntary Day Care,Bradley House Home Care Services,323.25, 07-Feb-2011
540,Revenue,CCHD,Day Care - North,Private & Voluntary Day Care,Bristol Houses UK Ltd,1543.13, 09-Feb-2011
541,Revenue,CCHD,Day Care - North,Private & Voluntary Day Care,Bristol Houses UK Ltd,1264.56, 09-Feb-2011
542,Revenue,CCHD,Day Care - North,Private & Voluntary Day Care,Bristol Houses UK Ltd,1406, 21-Feb-2011
543,Revenue,CCHD,Day Care - North,Private & Voluntary Day Care,Bristol Houses UK Ltd,2958.38, 09-Feb-2011
544,Revenue,CCHD,Day Care - North,Private & Voluntary Day Care,Bristol Houses UK Ltd,2027.99, 09-Feb-2011
545,Revenue,CCHD,Day Care - North,Private & Voluntary Day Care,Bristol Houses UK Ltd,2370.99, 21-Feb-2011
546,Revenue,CCHD,Day Care - North,Private & Voluntary Day Care,Chrysalis Community Care Group Ltd,47.6, 02-Feb-2011
547,Revenue,CCHD,Day Care - North,Private & Voluntary Day Care,Chrysalis Community Care Group Ltd,54.4, 01-Feb-2011
548,Revenue,CCHD,Day Care - North,Private & Voluntary Day Care,Deafblind UK,1181.18, 07-Feb-2011
549,Revenue,CCHD,Day Care - North,Private & Voluntary Day Care,DoCare Ltd,488.25, 24-Feb-2011
550,Revenue,CCHD,Day Care - North,Private & Voluntary Day Care,DoCare Ltd,437.1, 11-Feb-2011
551,Revenue,CCHD,Day Care - North,Private & Voluntary Day Care,DoCare Ltd,446.4, 24-Feb-2011
552,Revenue,CCHD,Day Care - North,Private & Voluntary Day Care,DoCare Ltd,441.75, 24-Feb-2011
553,Revenue,CCHD,Day Care - North,Private & Voluntary Day Care,Guardian Homecare (Bristol & Avon) Ltd,788.04, 07-Feb-2011
554,Revenue,CCHD,Day Care - North,Private & Voluntary Day Care,Guardian Homecare (Bristol & Avon) Ltd,760.18, 11-Feb-2011
555,Revenue,CCHD,Day Care - North,Private & Voluntary Day Care,Guardian Homecare (Bristol & Avon) Ltd,716.4, 21-Feb-2011
556,Revenue,CCHD,Day Care - North,Private & Voluntary Day Care,Headway Bristol,750.33, 09-Feb-2011
557,Revenue,CCHD,Day Care - North,Private & Voluntary Day Care,Headway Bristol,535.95, 09-Feb-2011
558,Revenue,CCHD,Day Care - North,Private & Voluntary Day Care,Headway Bristol,1143.36, 09-Feb-2011
559,Revenue,CCHD,Day Care - North,Private & Voluntary Day Care,Lloyds TSB Commercial Finance Limited,268.1, 16-Feb-2011
560,Revenue,CCHD,Day Care - North,Private & Voluntary Day Care,Lloyds TSB Commercial Finance Limited,459.6, 16-Feb-2011
561,Revenue,CCHD,Day Care - North,Private & Voluntary Day Care,Lloyds TSB Commercial Finance Limited,405.98, 16-Feb-2011
562,Revenue,CCHD,Day Care - North,Private & Voluntary Day Care,Lloyds TSB Commercial Finance Limited,360.02, 09-Feb-2011
563,Revenue,CCHD,Day Care - North,Private & Voluntary Day Care,Lloyds TSB Commercial Finance Limited,589.82, 16-Feb-2011
564,Revenue,CCHD,Day Care - North,Private & Voluntary Day Care,Lloyds TSB Commercial Finance Limited,417.47, 09-Feb-2011
565,Revenue,CCHD,Day Care - North,Private & Voluntary Day Care,Lloyds TSB Commercial Finance Limited,398.32, 09-Feb-2011
566,Revenue,CCHD,Day Care - North,Private & Voluntary Day Care,Lloyds TSB Commercial Finance Limited,459.6, 16-Feb-2011
567,Revenue,CCHD,Day Care - North,Private & Voluntary Day Care,Lloyds TSB Commercial Finance Limited,248.95, 16-Feb-2011
568,Revenue,CCHD,Day Care - North,Private & Voluntary Day Care,Lloyds TSB Commercial Finance Limited,314.06, 16-Feb-2011
569,Revenue,CCHD,Day Care - North,Private & Voluntary Day Care,Lloyds TSB Commercial Finance Limited,352.36, 16-Feb-2011
570,Revenue,CCHD,Day Care - North,Private & Voluntary Day Care,Lloyds TSB Commercial Finance Limited,390.66, 03-Feb-2011
571,Revenue,CCHD,Day Care - North,Private & Voluntary Day Care,Lloyds TSB Commercial Finance Limited,631.95, 02-Feb-2011
572,Revenue,CCHD,Day Care - North,Private & Voluntary Day Care,Lloyds TSB Commercial Finance Limited,490.24, 03-Feb-2011
573,Revenue,CCHD,Day Care - North,Private & Voluntary Day Care,Mears Care,380.7, 01-Feb-2011
574,Revenue,CCHD,Day Care - North,Private & Voluntary Day Care,Mears Care,390.1, 10-Feb-2011
575,Revenue,CCHD,Day Care - North,Private & Voluntary Day Care,Mears Care,376, 11-Feb-2011
576,Revenue,CCHD,Day Care - North,Private & Voluntary Day Care,Mears Care,432.4, 24-Feb-2011
577,Revenue,CCHD,Day Care - North,Private & Voluntary Day Care,Mears Care,366.6, 24-Feb-2011
578,Revenue,CCHD,Day Care - North,Private & Voluntary Day Care,Mrs B Kimber,559.03, 03-Feb-2011
579,Revenue,CCHD,Day Care - North,Private & Voluntary Day Care,Mrs B Kimber,1686.82, 08-Feb-2011
580,Revenue,CCHD,Day Care - North,Private & Voluntary Day Care,Mrs B Kimber,593.25, 03-Feb-2011
581,Revenue,CCHD,Day Care - North,Private & Voluntary Day Care,Mrs B Kimber,1341.36, 21-Feb-2011
582,Revenue,CCHD,Day Care - North,Private & Voluntary Day Care,Premier Homecare Limited,1251.2, 09-Feb-2011
583,Revenue,CCHD,Day Care - North,Private & Voluntary Day Care,Premier Homecare Limited,1071.68, 21-Feb-2011
584,Revenue,CCHD,Day Care - North,Private & Voluntary Day Care,Premier Homecare Limited,1240.32, 09-Feb-2011
585,Revenue,CCHD,Day Care - North,Private & Voluntary Day Care,Premier Homecare Limited,1120.64, 21-Feb-2011
586,Revenue,CCHD,Day Care - North,Private & Voluntary Day Care,Premier Homecare Limited,1245.76, 23-Feb-2011
587,Revenue,CCHD,Day Care - North,Private & Voluntary Day Care,Silva Care Limited,1116.36, 09-Feb-2011
588,Revenue,CCHD,Day Care - North,Private & Voluntary Day Care,Tender Home Care Limited,58.52, 02-Feb-2011
589,Revenue,CCHD,Day Care - North,Private & Voluntary Day Care,Tender Home Care Limited,54.34, 09-Feb-2011
590,Revenue,CCHD,Day Care - North,Private & Voluntary Day Care,The Brandon Trust,558.39, 22-Feb-2011
591,Revenue,CCHD,Day Care - North,Private & Voluntary Day Care,Windmill Care Limited,680, 09-Feb-2011
592,Revenue,CCHD,Carer`s Grant - North,Carers Breaks & Services,Mears Care,37.6, 01-Feb-2011
593,Revenue,CCHD,Carer`s Grant - North,Carers Breaks & Services,Mears Care,37.6, 11-Feb-2011
594,Revenue,CCHD,Carer`s Grant - North,Carers Breaks & Services,Mears Care,37.6, 24-Feb-2011
595,Revenue,CCHD,Carer`s Grant - North,Carers Breaks & Services,Mears Care,37.6, 24-Feb-2011
596,Revenue,CCHD,Purchasing Phys Dis - North,Residential Homes,Leonard Cheshire  National Account Centr,2313.76, 22-Feb-2011
597,Revenue,CCHD,Purchasing Phys Dis - North,Residential Homes,Leonard Cheshire  National Account Centr,2837.08, 22-Feb-2011
598,Revenue,CCHD,Purchasing Phys Dis - North,Residential Homes,Tracs Group Ltd,6112.4, 22-Feb-2011
599,Revenue,CCHD,Purchasing Phys Dis - North,Residential Homes,Tracs Group Ltd,4478.08, 22-Feb-2011
600,Revenue,CCHD,Purchasing Phys Dis - North,Nursing Homes,Bupa Care Services  Bridge House,5700.16, 22-Feb-2011
601,Revenue,CCHD,Purchasing Phys Dis - North,Nursing Homes,Fairview Court Care Home,1589.81, 02-Feb-2011
602,Revenue,CCHD,Purchasing Phys Dis - North,Nursing Homes,Four Seasons Health Care,1056, 22-Feb-2011
603,Revenue,CCHD,Purchasing Phys Dis - North,Nursing Homes,Four Seasons Health Care,1372.88, 22-Feb-2011
604,Revenue,CCHD,Purchasing Phys Dis - North,Nursing Homes,Leonard Cheshire  National Account Centr,2588.28, 22-Feb-2011
605,Revenue,CCHD,Purchasing Phys Dis - North,Nursing Homes,Leonard Cheshire  National Account Centr,2698.6, 22-Feb-2011
606,Revenue,CCHD,Purchasing Phys Dis - North,Nursing Homes,Leonard Cheshire  National Account Centr,2787.64, 22-Feb-2011
607,Revenue,CCHD,Purchasing Phys Dis - North,Nursing Homes,Leonard Cheshire  National Account Centr,3155.8, 22-Feb-2011
608,Revenue,CCHD,Purchasing Phys Dis - North,Nursing Homes,Leonard Cheshire  National Account Centr,5378.48, 22-Feb-2011
609,Revenue,CCHD,Purchasing Phys Dis - North,Nursing Homes,Leonard Cheshire  National Account Centr,3246, 22-Feb-2011
610,Revenue,CCHD,Purchasing Phys Dis - North,Nursing Homes,Wickwar Nursing Home  Castle House,1104.84, 22-Feb-2011
611,Revenue,CCHD,Purchasing Phys Dis - North,Nursing Homes,Wickwar Nursing Home  Castle House,1302.8, 22-Feb-2011
612,Revenue,CCHD,Purchasing Phys Dis - North,Nursing Homes,Willow Cottage,1662.48, 22-Feb-2011
613,Revenue,CCHD,Purchasing Phys Dis - South,Residential Homes,Voyage Ltd,5352, 22-Feb-2011
614,Revenue,CCHD,Purchasing Phys Dis - South,Nursing Homes,Glenside Centre For Brain Injury,6955.52, 22-Feb-2011
615,Revenue,CCHD,Purchasing Phys Dis - South,Nursing Homes,Leonard Cheshire  National Account Centr,3140.4, 22-Feb-2011
616,Revenue,CCHD,Purchasing Phys Dis - South,Nursing Homes,Leonard Cheshire  National Account Centr,5956.56, 22-Feb-2011
617,Revenue,CCHD,MH Purchasing - Younger,Residential Homes,Aspects &  Milestones Trust,1019.4, 22-Feb-2011
618,Revenue,CCHD,MH Purchasing - Younger,Residential Homes,Aspects &  Milestones Trust,1019.4, 22-Feb-2011
619,Revenue,CCHD,MH Purchasing - Younger,Residential Homes,Aspects &  Milestones Trust,1019.4, 22-Feb-2011
620,Revenue,CCHD,MH Purchasing - Younger,Residential Homes,Brightbow,969.16, 22-Feb-2011
621,Revenue,CCHD,MH Purchasing - Younger,Residential Homes,Dunraven House,1802, 22-Feb-2011
622,Revenue,CCHD,MH Purchasing - Younger,Nursing Homes,Aspects &  Milestones Trust,927.6, 22-Feb-2011
623,Revenue,CCHD,MH Purchasing - Younger,Nursing Homes,Aspects &  Milestones Trust,1107.4, 22-Feb-2011
624,Revenue,CCHD,Elderly Mental Health,Residential Homes,Ablecare Homes,1406.8, 22-Feb-2011
625,Revenue,CCHD,Elderly Mental Health,Residential Homes,Ablecare Homes,1289.08, 22-Feb-2011
626,Revenue,CCHD,Elderly Mental Health,Residential Homes,Ablecare Homes,1267.64, 22-Feb-2011
627,Revenue,CCHD,Elderly Mental Health,Residential Homes,Aspects &  Milestones Trust,1246.8, 22-Feb-2011
628,Revenue,CCHD,Elderly Mental Health,Residential Homes,Aspects &  Milestones Trust,863.16, 22-Feb-2011
629,Revenue,CCHD,Elderly Mental Health,Residential Homes,Aspects &  Milestones Trust,1185.68, 22-Feb-2011
630,Revenue,CCHD,Elderly Mental Health,Residential Homes,Beaufort House,1391.04, 22-Feb-2011
631,Revenue,CCHD,Elderly Mental Health,Residential Homes,Beaufort House,1430.68, 22-Feb-2011
632,Revenue,CCHD,Elderly Mental Health,Residential Homes,Beaufort House,1316.2, 22-Feb-2011
633,Revenue,CCHD,Elderly Mental Health,Residential Homes,Beaufort House,1309.32, 22-Feb-2011
634,Revenue,CCHD,Elderly Mental Health,Residential Homes,Beaufort House,1328.76, 22-Feb-2011
635,Revenue,CCHD,Elderly Mental Health,Residential Homes,Beaufort House,1339.84, 22-Feb-2011
636,Revenue,CCHD,Elderly Mental Health,Residential Homes,Beaufort House,1368.8, 22-Feb-2011
637,Revenue,CCHD,Elderly Mental Health,Residential Homes,Beaufort House,1588.41, 22-Feb-2011
638,Revenue,CCHD,Elderly Mental Health,Residential Homes,Beaufort House,1305.05, 22-Feb-2011
639,Revenue,CCHD,Elderly Mental Health,Residential Homes,Beaufort House,1076.48, 22-Feb-2011
640,Revenue,CCHD,Elderly Mental Health,Residential Homes,Beaufort House,990.14, 22-Feb-2011
641,Revenue,CCHD,Elderly Mental Health,Residential Homes,Beaufort House,1672.72, 22-Feb-2011
642,Revenue,CCHD,Elderly Mental Health,Residential Homes,Brightbow,2487.2, 22-Feb-2011
643,Revenue,CCHD,Elderly Mental Health,Residential Homes,Collingwood Residential Home,1304.68, 22-Feb-2011
644,Revenue,CCHD,Elderly Mental Health,Residential Homes,Edgecumbe Lodge,1186.92, 22-Feb-2011
645,Revenue,CCHD,Elderly Mental Health,Residential Homes,Fairview Court,1406.8, 22-Feb-2011
646,Revenue,CCHD,Elderly Mental Health,Residential Homes,Fairview Court,1250.28, 22-Feb-2011
647,Revenue,CCHD,Elderly Mental Health,Residential Homes,Fairview House,1259.52, 22-Feb-2011
648,Revenue,CCHD,Elderly Mental Health,Residential Homes,Fairview House,1105.16, 22-Feb-2011
649,Revenue,CCHD,Elderly Mental Health,Residential Homes,Fairview House,1083.16, 22-Feb-2011
650,Revenue,CCHD,Elderly Mental Health,Residential Homes,Fairview House,1183.68, 22-Feb-2011
651,Revenue,CCHD,Elderly Mental Health,Residential Homes,Fairview House,1284.08, 22-Feb-2011
652,Revenue,CCHD,Elderly Mental Health,Residential Homes,Fairview House,1084.68, 22-Feb-2011
653,Revenue,CCHD,Elderly Mental Health,Residential Homes,Four Seasons Health Care,1057.48, 22-Feb-2011
654,Revenue,CCHD,Elderly Mental Health,Residential Homes,Four Seasons Health Care,1333, 22-Feb-2011
655,Revenue,CCHD,Elderly Mental Health,Residential Homes,Four Seasons Health Care,1230.28, 22-Feb-2011
656,Revenue,CCHD,Elderly Mental Health,Residential Homes,Four Seasons Health Care,1430.8, 22-Feb-2011
657,Revenue,CCHD,Elderly Mental Health,Residential Homes,Four Seasons Health Care,1163.76, 22-Feb-2011
658,Revenue,CCHD,Elderly Mental Health,Residential Homes,Four Seasons Health Care,1397.28, 22-Feb-2011
659,Revenue,CCHD,Elderly Mental Health,Residential Homes,Four Seasons Health Care,1430.8, 22-Feb-2011
660,Revenue,CCHD,Elderly Mental Health,Residential Homes,Four Seasons Health Care,868.7, 22-Feb-2011
661,Revenue,CCHD,Elderly Mental Health,Residential Homes,Four Seasons Health Care,998.92, 22-Feb-2011
662,Revenue,CCHD,Elderly Mental Health,Residential Homes,Gatchell House,1320.56, 22-Feb-2011
663,Revenue,CCHD,Elderly Mental Health,Residential Homes,Gwendoline House,1250.8, 22-Feb-2011
664,Revenue,CCHD,Elderly Mental Health,Residential Homes,Harefield Hall,1204.12, 22-Feb-2011
665,Revenue,CCHD,Elderly Mental Health,Residential Homes,Heather House,1262.8, 22-Feb-2011
666,Revenue,CCHD,Elderly Mental Health,Residential Homes,Heathwood Rest Home,1561.52, 22-Feb-2011
667,Revenue,CCHD,Elderly Mental Health,Residential Homes,Kenver House Residential Home,1518.2, 22-Feb-2011
668,Revenue,CCHD,Elderly Mental Health,Residential Homes,Kenver House Residential Home,1568.12, 22-Feb-2011
669,Revenue,CCHD,Elderly Mental Health,Residential Homes,Kenver House Residential Home,1248.72, 22-Feb-2011
670,Revenue,CCHD,Elderly Mental Health,Residential Homes,Kenver House Residential Home,1369.44, 22-Feb-2011
671,Revenue,CCHD,Elderly Mental Health,Residential Homes,Kenver House Residential Home,1202.76, 22-Feb-2011
672,Revenue,CCHD,Elderly Mental Health,Residential Homes,Kenver House Residential Home,1202.36, 22-Feb-2011
673,Revenue,CCHD,Elderly Mental Health,Residential Homes,Kenver House Residential Home,1405.68, 22-Feb-2011
674,Revenue,CCHD,Elderly Mental Health,Residential Homes,Kenver House Residential Home,1406.8, 22-Feb-2011
675,Revenue,CCHD,Elderly Mental Health,Residential Homes,Kenver House Residential Home,1128.52, 22-Feb-2011
676,Revenue,CCHD,Elderly Mental Health,Residential Homes,Kenver House Residential Home,1358.52, 22-Feb-2011
677,Revenue,CCHD,Elderly Mental Health,Residential Homes,Kenver House Residential Home,1487, 22-Feb-2011
678,Revenue,CCHD,Elderly Mental Health,Residential Homes,Kenver House Residential Home,1305.6, 22-Feb-2011
679,Revenue,CCHD,Elderly Mental Health,Residential Homes,Kenver House Residential Home,1638.8, 22-Feb-2011
680,Revenue,CCHD,Elderly Mental Health,Residential Homes,Kenver House Residential Home,1126.86, 22-Feb-2011
681,Revenue,CCHD,Elderly Mental Health,Residential Homes,Osborne House,1423.68, 22-Feb-2011
682,Revenue,CCHD,Elderly Mental Health,Residential Homes,Osbourne Court,1406.8, 22-Feb-2011
683,Revenue,CCHD,Elderly Mental Health,Residential Homes,Osbourne Court,1438.8, 22-Feb-2011
684,Revenue,CCHD,Elderly Mental Health,Residential Homes,Park Farm House,1265.88, 22-Feb-2011
685,Revenue,CCHD,Elderly Mental Health,Residential Homes,Park Farm House,1584.2, 22-Feb-2011
686,Revenue,CCHD,Elderly Mental Health,Residential Homes,Park Farm House,1144.32, 22-Feb-2011
687,Revenue,CCHD,Elderly Mental Health,Residential Homes,Ross Healthcare,1287.44, 22-Feb-2011
688,Revenue,CCHD,Elderly Mental Health,Residential Homes,The Beeches,1221.92, 22-Feb-2011
689,Revenue,CCHD,Elderly Mental Health,Residential Homes,The Beeches,1848, 22-Feb-2011
690,Revenue,CCHD,Elderly Mental Health,Residential Homes,The Gables Residential Home,1187.64, 22-Feb-2011
691,Revenue,CCHD,Elderly Mental Health,Residential Homes,The Grove,1584.2, 22-Feb-2011
692,Revenue,CCHD,Elderly Mental Health,Residential Homes,The Grove,1396.44, 22-Feb-2011
693,Revenue,CCHD,Elderly Mental Health,Residential Homes,The Grove,1584.2, 22-Feb-2011
694,Revenue,CCHD,Elderly Mental Health,Residential Homes,The Grove,612.04, 22-Feb-2011
695,Revenue,CCHD,Elderly Mental Health,Residential Homes,The Grove,1619.16, 22-Feb-2011
696,Revenue,CCHD,Elderly Mental Health,Residential Homes,The Grove,1405.96, 22-Feb-2011
697,Revenue,CCHD,Elderly Mental Health,Residential Homes,The Grove,1493.72, 22-Feb-2011
698,Revenue,CCHD,Elderly Mental Health,Residential Homes,The Grove,1738.6, 22-Feb-2011
699,Revenue,CCHD,Elderly Mental Health,Residential Homes,The Grove,1499.72, 22-Feb-2011
700,Revenue,CCHD,Elderly Mental Health,Residential Homes,The Worthies,1406.8, 22-Feb-2011
701,Revenue,CCHD,Elderly Mental Health,Residential Homes,Ventura Residential Care Home,1246.8, 22-Feb-2011
702,Revenue,CCHD,Elderly Mental Health,Residential Homes,Wayside Residential Care Home,1406.8, 22-Feb-2011
703,Revenue,CCHD,Elderly Mental Health,Residential Homes,Wayside Residential Care Home,1345.72, 22-Feb-2011
704,Revenue,CCHD,Elderly Mental Health,Residential Homes,Wayside Residential Care Home,1203.56, 22-Feb-2011
705,Revenue,CCHD,Elderly Mental Health,Residential Homes,Westbury Nursing Home,1738.88, 22-Feb-2011
706,Revenue,CCHD,Elderly Mental Health,Residential Homes,Willow Cottage,1363.6, 22-Feb-2011
707,Revenue,CCHD,Elderly Mental Health,Residential Homes,Willow Cottage,560, 22-Feb-2011
708,Revenue,CCHD,Elderly Mental Health,Residential Homes,Windmill House,1259.6, 22-Feb-2011
709,Revenue,CCHD,Elderly Mental Health,Residential Homes,Windmill House,1242.8, 22-Feb-2011
710,Revenue,CCHD,Elderly Mental Health,Nursing Homes,Aspects &  Milestones Trust,838.52, 22-Feb-2011
711,Revenue,CCHD,Elderly Mental Health,Nursing Homes,Aspects &  Milestones Trust,1469.84, 22-Feb-2011
712,Revenue,CCHD,Elderly Mental Health,Nursing Homes,Aspects &  Milestones Trust,1344.96, 22-Feb-2011
713,Revenue,CCHD,Elderly Mental Health,Nursing Homes,Breadstone House Care Centre,1316.88, 22-Feb-2011
714,Revenue,CCHD,Elderly Mental Health,Nursing Homes,Brunelcare,15836.31, 03-Feb-2011
715,Revenue,CCHD,Elderly Mental Health,Nursing Homes,Edgemont View Nursing Home,646.56, 22-Feb-2011
716,Revenue,CCHD,Elderly Mental Health,Nursing Homes,Fairview Court Care Home,4898.04, 02-Feb-2011
717,Revenue,CCHD,Elderly Mental Health,Nursing Homes,Four Seasons Health Care,1325.28, 22-Feb-2011
718,Revenue,CCHD,Elderly Mental Health,Nursing Homes,Four Seasons Health Care,877.59, 22-Feb-2011
719,Revenue,CCHD,Elderly Mental Health,Nursing Homes,Four Seasons Health Care,1221.8, 22-Feb-2011
720,Revenue,CCHD,Elderly Mental Health,Nursing Homes,Four Seasons Health Care,1330.8, 22-Feb-2011
721,Revenue,CCHD,Elderly Mental Health,Nursing Homes,Four Seasons Health Care,1465.4, 22-Feb-2011
722,Revenue,CCHD,Elderly Mental Health,Nursing Homes,Four Seasons Health Care,1534.8, 22-Feb-2011
723,Revenue,CCHD,Elderly Mental Health,Nursing Homes,Four Seasons Health Care,1449.52, 22-Feb-2011
724,Revenue,CCHD,Elderly Mental Health,Nursing Homes,Four Seasons Health Care,1363.56, 22-Feb-2011
725,Revenue,CCHD,Elderly Mental Health,Nursing Homes,Four Seasons Health Care,1071.92, 22-Feb-2011
726,Revenue,CCHD,Elderly Mental Health,Nursing Homes,Four Seasons Health Care,1232.6, 22-Feb-2011
727,Revenue,CCHD,Elderly Mental Health,Nursing Homes,Four Seasons Health Care,1356.84, 22-Feb-2011
728,Revenue,CCHD,Elderly Mental Health,Nursing Homes,Four Seasons Health Care,1366.8, 22-Feb-2011
729,Revenue,CCHD,Elderly Mental Health,Nursing Homes,Meadow Care Home,1470.76, 22-Feb-2011
730,Revenue,CCHD,Elderly Mental Health,Nursing Homes,Osbourne Court,1384.52, 22-Feb-2011
731,Revenue,CCHD,Elderly Mental Health,Nursing Homes,Osbourne Court,23100, 22-Feb-2011
732,Revenue,CCHD,Elderly Mental Health,Nursing Homes,Pennwood Lodge Nursing Home,1401.2, 22-Feb-2011
733,Revenue,CCHD,Elderly Mental Health,Nursing Homes,Pennwood Lodge Nursing Home,1470.8, 22-Feb-2011
734,Revenue,CCHD,Elderly Mental Health,Nursing Homes,Pennwood Lodge Nursing Home,1289.24, 22-Feb-2011
735,Revenue,CCHD,Elderly Mental Health,Nursing Homes,Pennwood Lodge Nursing Home,1470.8, 22-Feb-2011
736,Revenue,CCHD,Elderly Mental Health,Nursing Homes,Pennwood Lodge Nursing Home,1195, 22-Feb-2011
737,Revenue,CCHD,Elderly Mental Health,Nursing Homes,Pennwood Lodge Nursing Home,597.5, 22-Feb-2011
738,Revenue,CCHD,Elderly Mental Health,Nursing Homes,Pennwood Lodge Nursing Home,905.48, 22-Feb-2011
739,Revenue,CCHD,Elderly Mental Health,Nursing Homes,Ravenswood,1233.12, 22-Feb-2011
740,Revenue,CCHD,Elderly Mental Health,Nursing Homes,Regent House,1924, 22-Feb-2011
741,Revenue,CCHD,Elderly Mental Health,Nursing Homes,Regent House,1434.76, 22-Feb-2011
742,Revenue,CCHD,Elderly Mental Health,Nursing Homes,Regent House,1388.8, 22-Feb-2011
743,Revenue,CCHD,Elderly Mental Health,Nursing Homes,Regent House,1244.66, 22-Feb-2011
744,Revenue,CCHD,Elderly Mental Health,Nursing Homes,Regent House,1089.08, 22-Feb-2011
745,Revenue,CCHD,Elderly Mental Health,Nursing Homes,Regent House,1924, 22-Feb-2011
746,Revenue,CCHD,Elderly Mental Health,Nursing Homes,Regent House,1302.04, 22-Feb-2011
747,Revenue,CCHD,Elderly Mental Health,Nursing Homes,Shaw Healthcare Ltd,1260.2, 22-Feb-2011
748,Revenue,CCHD,Elderly Mental Health,Nursing Homes,St George Nursing Home,1314.8, 22-Feb-2011
749,Revenue,CCHD,Elderly Mental Health,Nursing Homes,St George Nursing Home,1221.48, 22-Feb-2011
750,Revenue,CCHD,Elderly Mental Health,Nursing Homes,St George Nursing Home,1302.8, 22-Feb-2011
751,Revenue,CCHD,Elderly Mental Health,Nursing Homes,The Heathers,1284.96, 22-Feb-2011
752,Revenue,CCHD,Elderly Mental Health,Nursing Homes,The Heathers,1267.12, 22-Feb-2011
753,Revenue,CCHD,Elderly Mental Health,Nursing Homes,Willow Cottage,1478.88, 22-Feb-2011
754,Revenue,CCHD,Section 117 Placements,Residential Homes,Aspects &  Milestones Trust,1304, 22-Feb-2011
755,Revenue,CCHD,Section 117 Placements,Residential Homes,Aspects &  Milestones Trust,1913.04, 22-Feb-2011
756,Revenue,CCHD,Section 117 Placements,Residential Homes,Aspects &  Milestones Trust,1304, 22-Feb-2011
757,Revenue,CCHD,Section 117 Placements,Residential Homes,Beaufort House,2080, 22-Feb-2011
758,Revenue,CCHD,Section 117 Placements,Residential Homes,Edgecumbe Lodge,1879.56, 22-Feb-2011
759,Revenue,CCHD,Section 117 Placements,Residential Homes,Fairview House,1840, 22-Feb-2011
760,Revenue,CCHD,Section 117 Placements,Residential Homes,Four Seasons Health Care,1688, 22-Feb-2011
761,Revenue,CCHD,Section 117 Placements,Residential Homes,Four Seasons Health Care,1688, 22-Feb-2011
762,Revenue,CCHD,Section 117 Placements,Residential Homes,Kenver House Residential Home,1848, 22-Feb-2011
763,Revenue,CCHD,Section 117 Placements,Residential Homes,Mostyn Lodge Residential Home,1848, 22-Feb-2011
764,Revenue,CCHD,Section 117 Placements,Residential Homes,Osbourne Court,1848, 22-Feb-2011
765,Revenue,CCHD,Section 117 Placements,Residential Homes,The Gables Residential Home,2156.84, 22-Feb-2011
766,Revenue,CCHD,Section 117 Placements,Residential Homes,The Grove,2040, 22-Feb-2011
767,Revenue,CCHD,Section 117 Placements,Nursing Homes,Aspects &  Milestones Trust,1381.6, 22-Feb-2011
768,Revenue,CCHD,Section 117 Placements,Nursing Homes,Aspects &  Milestones Trust,1911.96, 22-Feb-2011
769,Revenue,CCHD,Section 117 Placements,Nursing Homes,Aspects &  Milestones Trust,1912, 22-Feb-2011
770,Revenue,CCHD,Section 117 Placements,Nursing Homes,Aspects &  Milestones Trust,1912, 22-Feb-2011
771,Revenue,CCHD,Section 117 Placements,Nursing Homes,Aspects &  Milestones Trust,1912, 22-Feb-2011
772,Revenue,CCHD,Section 117 Placements,Nursing Homes,Aspects &  Milestones Trust,2320.22, 22-Feb-2011
773,Revenue,CCHD,Section 117 Placements,Nursing Homes,Aspects &  Milestones Trust,706.21, 22-Feb-2011
774,Revenue,CCHD,Section 117 Placements,Nursing Homes,Brunelcare,2228.34, 03-Feb-2011
775,Revenue,CCHD,Section 117 Placements,Nursing Homes,Mimosa Healthcare Holdings Ltd,1888, 22-Feb-2011
776,Revenue,CCHD,Section 117 Placements,Nursing Homes,Pennwood Lodge Nursing Home,1911.96, 22-Feb-2011
777,Revenue,CCHD,Section 117 Placements,Nursing Homes,Pennwood Lodge Nursing Home,1921.08, 22-Feb-2011
778,Revenue,CCHD,Section 117 Placements,Nursing Homes,Redholme Memory Care Limited,1912, 22-Feb-2011
779,Revenue,CCHD,Section 117 Placements MH Younger,Residential Homes,Aspects &  Milestones Trust,1304, 22-Feb-2011
780,Revenue,CCHD,Section 117 Placements MH Younger,Residential Homes,Aspects &  Milestones Trust,1688, 22-Feb-2011
781,Revenue,CCHD,Section 117 Placements MH Younger,Residential Homes,Bedrock Lodge,1790.12, 22-Feb-2011
782,Revenue,CCHD,Section 117 Placements MH Younger,Residential Homes,Manon House,2835.63, 22-Feb-2011
783,Revenue,CCHD,Mental Capacity Act - Advocacy,Radio Pager/Mobile Phones,Vodafone Corporate Limited,101.17, 21-Feb-2011
784,Revenue,CCHD,Under 65s -MH  Home Care Purch,Other Small Contracts,Mears Care,141, 01-Feb-2011
785,Revenue,CCHD,Under 65s -MH  Home Care Purch,Other Small Contracts,Mears Care,122.2, 10-Feb-2011
786,Revenue,CCHD,Under 65s -MH  Home Care Purch,Other Small Contracts,Mears Care,141, 11-Feb-2011
787,Revenue,CCHD,Under 65s -MH  Home Care Purch,Other Small Contracts,Mears Care,141, 24-Feb-2011
788,Revenue,CCHD,Under 65s -MH  Home Care Purch,Other Small Contracts,Mears Care,141, 24-Feb-2011
789,Revenue,CCHD,Younger MH non-res purchasing,Private & Voluntary Home Care,Mrs Felicity Cooksley,1676, 14-Feb-2011
790,Revenue,CCHD,Younger MH non-res purchasing,Private & Voluntary Day Care,Enham,638.72, 16-Feb-2011
791,Revenue,CCHD,Younger MH non-res purchasing,Private & Voluntary Day Care,Enham,638.72, 23-Feb-2011
792,Revenue,CCHD,Younger MH non-res purchasing,Private & Voluntary Day Care,NAS Services Limited,961.36, 24-Feb-2011
793,Revenue,CCHD,Younger MH non-res purchasing,Private & Voluntary Day Care,NAS Services Limited,1225.25, 28-Feb-2011
794,Revenue,CCHD,Younger MH non-res purchasing,Private & Voluntary Day Care,NAS Services Limited,622.05, 28-Feb-2011
795,Revenue,CCHD,Younger MH non-res purchasing,Private & Voluntary Day Care,NAS Services Limited,506.15, 28-Feb-2011
796,Revenue,CCHD,Younger MH non-res purchasing,Private & Voluntary Day Care,NAS Services Limited,525.25, 24-Feb-2011
797,Revenue,CCHD,Elderly MH Home Care,Other Small Contracts,Bradley House Home Care Services,189.64, 11-Feb-2011
798,Revenue,CCHD,Elderly MH Home Care,Other Small Contracts,Bradley House Home Care Services,193.95, 01-Feb-2011
799,Revenue,CCHD,Elderly MH Home Care,Other Small Contracts,Bradley House Home Care Services,198.26, 07-Feb-2011
800,Revenue,CCHD,Elderly MH Home Care,Other Small Contracts,Chrysalis Community Care Group Ltd,221, 02-Feb-2011
801,Revenue,CCHD,Elderly MH Home Care,Other Small Contracts,Chrysalis Community Care Group Ltd,170, 01-Feb-2011
802,Revenue,CCHD,Elderly MH Home Care,Other Small Contracts,DoCare Ltd,604.5, 24-Feb-2011
803,Revenue,CCHD,Elderly MH Home Care,Other Small Contracts,DoCare Ltd,627.75, 11-Feb-2011
804,Revenue,CCHD,Elderly MH Home Care,Other Small Contracts,DoCare Ltd,618.45, 24-Feb-2011
805,Revenue,CCHD,Elderly MH Home Care,Other Small Contracts,DoCare Ltd,544.05, 24-Feb-2011
806,Revenue,CCHD,Elderly MH Home Care,Other Small Contracts,Guardian Homecare (Bristol & Avon) Ltd,354.22, 07-Feb-2011
807,Revenue,CCHD,Elderly MH Home Care,Other Small Contracts,Guardian Homecare (Bristol & Avon) Ltd,362.18, 11-Feb-2011
808,Revenue,CCHD,Elderly MH Home Care,Other Small Contracts,Guardian Homecare (Bristol & Avon) Ltd,330.34, 21-Feb-2011
809,Revenue,CCHD,Elderly MH Home Care,Other Small Contracts,Lloyds TSB Commercial Finance Limited,30.64, 16-Feb-2011
810,Revenue,CCHD,Elderly MH Home Care,Other Small Contracts,Lloyds TSB Commercial Finance Limited,57.45, 16-Feb-2011
811,Revenue,CCHD,Elderly MH Home Care,Other Small Contracts,Lloyds TSB Commercial Finance Limited,99.58, 16-Feb-2011
812,Revenue,CCHD,Elderly MH Home Care,Other Small Contracts,Lloyds TSB Commercial Finance Limited,103.41, 09-Feb-2011
813,Revenue,CCHD,Elderly MH Home Care,Other Small Contracts,Lloyds TSB Commercial Finance Limited,45.96, 16-Feb-2011
814,Revenue,CCHD,Elderly MH Home Care,Other Small Contracts,Lloyds TSB Commercial Finance Limited,68.94, 09-Feb-2011
815,Revenue,CCHD,Elderly MH Home Care,Other Small Contracts,Lloyds TSB Commercial Finance Limited,107.24, 09-Feb-2011
816,Revenue,CCHD,Elderly MH Home Care,Other Small Contracts,Lloyds TSB Commercial Finance Limited,34.47, 16-Feb-2011
817,Revenue,CCHD,Elderly MH Home Care,Other Small Contracts,Lloyds TSB Commercial Finance Limited,49.79, 16-Feb-2011
818,Revenue,CCHD,Elderly MH Home Care,Other Small Contracts,Lloyds TSB Commercial Finance Limited,42.13, 16-Feb-2011
819,Revenue,CCHD,Elderly MH Home Care,Other Small Contracts,Lloyds TSB Commercial Finance Limited,53.62, 16-Feb-2011
820,Revenue,CCHD,Elderly MH Home Care,Other Small Contracts,Lloyds TSB Commercial Finance Limited,72.77, 03-Feb-2011
821,Revenue,CCHD,Elderly MH Home Care,Other Small Contracts,Lloyds TSB Commercial Finance Limited,95.75, 02-Feb-2011
822,Revenue,CCHD,Elderly MH Home Care,Other Small Contracts,Lloyds TSB Commercial Finance Limited,99.58, 03-Feb-2011
823,Revenue,CCHD,Elderly MH Home Care,Other Small Contracts,Mears Care,972.9, 01-Feb-2011
824,Revenue,CCHD,Elderly MH Home Care,Other Small Contracts,Mears Care,987, 10-Feb-2011
825,Revenue,CCHD,Elderly MH Home Care,Other Small Contracts,Mears Care,977.6, 11-Feb-2011
826,Revenue,CCHD,Elderly MH Home Care,Other Small Contracts,Mears Care,1052.8, 24-Feb-2011
827,Revenue,CCHD,Elderly MH Home Care,Other Small Contracts,Mears Care,1071.6, 24-Feb-2011
828,Revenue,CCHD,Elderly MH Home Care,Other Small Contracts,Mrs B Kimber,332.88, 22-Feb-2011
829,Revenue,CCHD,Elderly MH Home Care,Other Small Contracts,Premier Homecare Limited,179.52, 09-Feb-2011
830,Revenue,CCHD,Elderly MH Home Care,Other Small Contracts,Premier Homecare Limited,179.52, 21-Feb-2011
831,Revenue,CCHD,Elderly MH Home Care,Other Small Contracts,Premier Homecare Limited,179.52, 09-Feb-2011
832,Revenue,CCHD,Elderly MH Home Care,Other Small Contracts,Premier Homecare Limited,179.52, 21-Feb-2011
833,Revenue,CCHD,Elderly MH Home Care,Other Small Contracts,Premier Homecare Limited,108.8, 23-Feb-2011
834,Revenue,CCHD,Elderly MH non-res purchasing,Private & Voluntary Day Care,Chrysalis Community Care Group Ltd,51, 02-Feb-2011
835,Revenue,CCHD,Elderly MH non-res purchasing,Private & Voluntary Day Care,Chrysalis Community Care Group Ltd,51, 01-Feb-2011
836,Revenue,CCHD,Elderly MH non-res purchasing,Private & Voluntary Day Care,DoCare Ltd,74.4, 11-Feb-2011
837,Revenue,CCHD,Elderly MH non-res purchasing,Private & Voluntary Day Care,Guardian Homecare (Bristol & Avon) Ltd,99.12, 07-Feb-2011
838,Revenue,CCHD,Elderly MH non-res purchasing,Private & Voluntary Day Care,Guardian Homecare (Bristol & Avon) Ltd,120.64, 11-Feb-2011
839,Revenue,CCHD,Elderly MH non-res purchasing,Private & Voluntary Day Care,Guardian Homecare (Bristol & Avon) Ltd,113.92, 21-Feb-2011
840,Revenue,CCHD,Elderly MH non-res purchasing,Private & Voluntary Day Care,Lloyds TSB Commercial Finance Limited,80.43, 16-Feb-2011
841,Revenue,CCHD,Elderly MH non-res purchasing,Private & Voluntary Day Care,Lloyds TSB Commercial Finance Limited,126.39, 16-Feb-2011
842,Revenue,CCHD,Elderly MH non-res purchasing,Private & Voluntary Day Care,Lloyds TSB Commercial Finance Limited,76.6, 16-Feb-2011
843,Revenue,CCHD,Elderly MH non-res purchasing,Private & Voluntary Day Care,Lloyds TSB Commercial Finance Limited,76.6, 09-Feb-2011
844,Revenue,CCHD,Elderly MH non-res purchasing,Private & Voluntary Day Care,Lloyds TSB Commercial Finance Limited,111.07, 16-Feb-2011
845,Revenue,CCHD,Elderly MH non-res purchasing,Private & Voluntary Day Care,Lloyds TSB Commercial Finance Limited,107.24, 09-Feb-2011
846,Revenue,CCHD,Elderly MH non-res purchasing,Private & Voluntary Day Care,Lloyds TSB Commercial Finance Limited,76.6, 09-Feb-2011
847,Revenue,CCHD,Elderly MH non-res purchasing,Private & Voluntary Day Care,Lloyds TSB Commercial Finance Limited,130.22, 16-Feb-2011
848,Revenue,CCHD,Elderly MH non-res purchasing,Private & Voluntary Day Care,Lloyds TSB Commercial Finance Limited,80.43, 16-Feb-2011
849,Revenue,CCHD,Elderly MH non-res purchasing,Private & Voluntary Day Care,Lloyds TSB Commercial Finance Limited,61.28, 16-Feb-2011
850,Revenue,CCHD,Elderly MH non-res purchasing,Private & Voluntary Day Care,Lloyds TSB Commercial Finance Limited,107.24, 16-Feb-2011
851,Revenue,CCHD,Elderly MH non-res purchasing,Private & Voluntary Day Care,Lloyds TSB Commercial Finance Limited,107.24, 03-Feb-2011
852,Revenue,CCHD,Elderly MH non-res purchasing,Private & Voluntary Day Care,Lloyds TSB Commercial Finance Limited,65.11, 02-Feb-2011
853,Revenue,CCHD,Elderly MH non-res purchasing,Private & Voluntary Day Care,Lloyds TSB Commercial Finance Limited,68.94, 03-Feb-2011
854,Revenue,CCHD,Elderly MH non-res purchasing,Private & Voluntary Day Care,Mears Care,112.8, 01-Feb-2011
855,Revenue,CCHD,Elderly MH non-res purchasing,Private & Voluntary Day Care,Mears Care,108.1, 10-Feb-2011
856,Revenue,CCHD,Elderly MH non-res purchasing,Private & Voluntary Day Care,Mears Care,112.8, 11-Feb-2011
857,Revenue,CCHD,Elderly MH non-res purchasing,Private & Voluntary Day Care,Mears Care,108.1, 24-Feb-2011
858,Revenue,CCHD,Elderly MH non-res purchasing,Private & Voluntary Day Care,Mears Care,112.8, 24-Feb-2011
859,Revenue,CCHD,Elderly MH non-res purchasing,Private & Voluntary Day Care,Mrs B Kimber,560.64, 22-Feb-2011
860,Revenue,CCHD,Elderly MH non-res purchasing,Private & Voluntary Day Care,On the Up,77.76, 01-Feb-2011
861,Revenue,CCHD,Elderly MH non-res purchasing,Private & Voluntary Day Care,On the Up,77.76, 01-Feb-2011
862,Revenue,CCHD,Elderly MH non-res purchasing,Private & Voluntary Day Care,On the Up,77.76, 21-Feb-2011
863,Revenue,CCHD,Elderly MH non-res purchasing,Private & Voluntary Day Care,Premier Homecare Limited,190.4, 09-Feb-2011
864,Revenue,CCHD,Elderly MH non-res purchasing,Private & Voluntary Day Care,Premier Homecare Limited,179.52, 21-Feb-2011
865,Revenue,CCHD,Elderly MH non-res purchasing,Private & Voluntary Day Care,Premier Homecare Limited,250.24, 09-Feb-2011
866,Revenue,CCHD,Elderly MH non-res purchasing,Private & Voluntary Day Care,Premier Homecare Limited,250.24, 21-Feb-2011
867,Revenue,CCHD,Elderly MH non-res purchasing,Private & Voluntary Day Care,Premier Homecare Limited,255.68, 23-Feb-2011
868,Revenue,CCHD,Brokerage and Information Service,Grants to Voluntary Bodies,Drugs & Homeless Initiative,9210.09, 28-Feb-2011
869,Revenue,CCHD,Preventative Technology Grant,Radio Pager/Mobile Phones,Vodafone Corporate Limited,54, 21-Feb-2011
870,Revenue,CCHD,Preventative Technology Grant,Other Supplies & Services,Tunstall Telecom Limited,600, 11-Feb-2011
871,Revenue,CCHD,Delayed Transfers of Care Gran,Other Supplies & Services,South Gloucestershire Primary Care Trust,19875, 07-Feb-2011
872,Revenue,CCHD,Alexandra Way,Prop.Serv. General Repairs,C B Decorators,540, 09-Feb-2011
873,Revenue,CCHD,Alexandra Way,Electricity,EDF Energy 1 Limited,1409.89, 25-Feb-2011
874,Revenue,CCHD,Alexandra Way,Gas,Corona Energy Retail 3 Limited,2099.54, 28-Feb-2011
875,Revenue,CCHD,Alexandra Way,Cleaning & Domestic Supplies,Muzzell Healthcare,440.25, 14-Feb-2011
876,Revenue,CCHD,Charlton,Electricity,EDF Energy 1 Limited,1084.23, 11-Feb-2011
877,Revenue,CCHD,Charlton,Electricity,EDF Energy 1 Limited,1111.41, 11-Feb-2011
878,Revenue,CCHD,Charlton,Gas,Corona Energy Retail 3 Limited,1465.99, 28-Feb-2011
879,Revenue,CCHD,Frome House,Electricity,EDF Energy 1 Limited,989.71, 25-Feb-2011
880,Revenue,CCHD,Frome House,Electricity,EDF Energy 1 Limited,1072.26, 25-Feb-2011
881,Revenue,CCHD,Kerr House,Electricity,EDF Energy 1 Limited,1121.78, 11-Feb-2011
882,Revenue,CCHD,Kerr House,Gas,Corona Energy Retail 3 Limited,1140.35, 28-Feb-2011
883,Revenue,CCHD,Kerr House,Gas,Corona Energy Retail 3 Limited,1773.23, 28-Feb-2011
884,Revenue,CCHD,Kerr House,Cleaning & Domestic Supplies,Spot On Supplies (Hygiene) Limited,439.94, 25-Feb-2011
885,Revenue,CCHD,Kerr House,Furniture & Fittings Loose,Lionel Saunders & Co (Bristol) Limited,490, 18-Feb-2011
886,Revenue,CCHD,Kerr House,Furniture & Fittings Loose,W & A Ross Limited,479.94, 03-Feb-2011
887,Revenue,CCHD,Kerr House,Membership Fees,Commission for Social Care Inspection,3069, 25-Feb-2011
888,Revenue,CCHD,Wapley Court,Electricity,EDF Energy 1 Limited,1338.43, 25-Feb-2011
889,Revenue,CCHD,Wapley Court,Gas,Corona Energy Retail 3 Limited,882.3, 28-Feb-2011
890,Revenue,CCHD,Wapley Court,Gas,Corona Energy Retail 3 Limited,703.97, 28-Feb-2011
891,Revenue,CCHD,Wapley Court,"Provisions (Food, etc)",Brake Bros,594.05, 03-Feb-2011
892,Revenue,CCHD,Wapley Court,"Provisions (Food, etc)",Brake Bros,520.58, 03-Feb-2011
893,Revenue,CCHD,Newton House,Electricity,EDF Energy 1 Limited,1030.72, 11-Feb-2011
894,Revenue,CCHD,Newton House,Gas,Corona Energy Retail 3 Limited,930.83, 28-Feb-2011
895,Revenue,CCHD,Newton House,Gas,Corona Energy Retail 3 Limited,1683.44, 28-Feb-2011
896,Revenue,CCHD,Newton House,"Provisions (Food, etc)",Brake Bros,576.65, 15-Feb-2011
897,Revenue,CCHD,Newton House,"Provisions (Food, etc)",CQC HSCA Registrations,596, 15-Feb-2011
898,Revenue,CCHD,Woodleaze,Prop.Serv. General Repairs,Lionel Saunders & Co (Bristol) Limited,585, 04-Feb-2011
899,Revenue,CCHD,Woodleaze,Electricity,EDF Energy 1 Limited,1419.14, 25-Feb-2011
900,Revenue,CCHD,Woodleaze,Gas,Corona Energy Retail 3 Limited,1635.44, 28-Feb-2011
901,Revenue,CCHD,Woodleaze,Water Charges,Bristol Wessex Billing Services Limited,3311.99, 14-Feb-2011
902,Revenue,CCHD,Woodleaze,Cleaning & Domestic Supplies,Bunzl Cleaning & Hygiene Supplies,597.21, 03-Feb-2011
903,Revenue,CCHD,Woodleaze,Cleaning & Domestic Supplies,Bunzl Cleaning & Hygiene Supplies,818.48, 22-Feb-2011
904,Revenue,CCHD,Woodleaze,Refuse Collection Charges,Cannon Hygiene Limited,487.23, 14-Feb-2011
905,Revenue,CCHD,Woodleaze,Equipment Maintenance,Bunzl Cleaning & Hygiene Supplies,24.57, 22-Feb-2011
906,Revenue,CCHD,Woodleaze,"Provisions (Food, etc)",Brake Bros,569.22, 03-Feb-2011
907,Revenue,CCHD,Downend Day Centre,Electricity,EDF Energy 1 Limited,959.37, 11-Feb-2011
908,Revenue,CCHD,Downend Day Centre,Gas,Corona Energy Retail 3 Limited,2399.44, 28-Feb-2011
909,Revenue,CCHD,Home Care - General,Uniforms & Clothing,Muzzell Healthcare,680, 09-Feb-2011
910,Revenue,CCHD,Home Care - General,Radio Pager/Mobile Phones,Vodafone Corporate Limited,8.03, 21-Feb-2011
911,Revenue,CCHD,Community Support ACM - South,Preventative Assistance,National Star College FDY Limited,5539.32, 24-Feb-2011
912,Revenue,CCHD,Community Support ACM - South,Preventative Assistance,St Roses School,1568, 08-Feb-2011
913,Revenue,CCHD,Community Support ACM - North,Preventative Assistance,Helen & Douglas House,1800, 22-Feb-2011
914,Revenue,CCHD,Community Support ACM - North,Preventative Assistance,Royal National Institute For Deaf People,587.76, 14-Feb-2011
915,Revenue,CCHD,Community Support ACM - North,Preventative Assistance,Royal National Institute For Deaf People,662.16, 08-Feb-2011
916,Revenue,CCHD,Community Support ACM - North,Preventative Assistance,Royal National Institute For Deaf People,577.42, 28-Feb-2011
917,Revenue,CCHD,Community Support ACM - North,Preventative Assistance,Royal National Institute For Deaf People,562.61, 28-Feb-2011
918,Revenue,CCHD,Directorate,Radio Pager/Mobile Phones,Vodafone Corporate Limited,141.82, 21-Feb-2011
919,Revenue,CCHD,Getting a Life Project,Other Supplies & Services,H Mealing & Sons Limited,6000, 23-Feb-2011
920,Revenue,CCHD,Getting a Life Project,Other Supplies & Services,Helen Sanderson Associates Limited,1524.95, 24-Feb-2011
921,Revenue,CCHD,Getting a Life Project,Other Supplies & Services,National Development Team for Inclusion,10000, 08-Feb-2011
922,Revenue,CCHD,Getting a Life Project,Other Supplies & Services,National Family Carer Network,12000, 24-Feb-2011
923,Revenue,CCHD,Getting a Life Project,Other Supplies & Services,Orchard Restaurant (Taunton Racecourse) Ltd,1587, 22-Feb-2011
924,Revenue,CCHD,Getting a Life Project,Other Supplies & Services,The Albemarle Centre,501, 22-Feb-2011
925,Revenue,CCHD,Finance,Property Insurance,Zurich Insurance Company,578.76, 14-Feb-2011
926,Revenue,CCHD,Finance - FAB,Radio Pager/Mobile Phones,Vodafone Corporate Limited,322.96, 21-Feb-2011
927,Revenue,CCHD,Contracts & Commissioning Team,Radio Pager/Mobile Phones,Vodafone Corporate Limited,46.93, 21-Feb-2011
928,Revenue,CCHD,Contracts & Commissioning Team,Other Small Contracts,Agincare UK Limited,3500, 04-Feb-2011
929,Revenue,CCHD,Contracts & Commissioning Team,Other Small Contracts,Agincare UK Limited,3500, 11-Feb-2011
930,Revenue,CCHD,Contracts & Commissioning Team,Other Small Contracts,Agincare UK Limited,3500, 18-Feb-2011
931,Revenue,CCHD,Contracts & Commissioning Team,Other Small Contracts,Agincare UK Limited,3500, 25-Feb-2011
932,Revenue,CCHD,Contracts & Commissioning Team,Other Small Contracts,Allied Healthcare Group,9500, 04-Feb-2011
933,Revenue,CCHD,Contracts & Commissioning Team,Other Small Contracts,Brunelcare,13500, 04-Feb-2011
934,Revenue,CCHD,Contracts & Commissioning Team,Other Small Contracts,Brunelcare,13500, 11-Feb-2011
935,Revenue,CCHD,Contracts & Commissioning Team,Other Small Contracts,Brunelcare,13500, 18-Feb-2011
936,Revenue,CCHD,Contracts & Commissioning Team,Other Small Contracts,Brunelcare,13500, 25-Feb-2011
937,Revenue,CCHD,Contracts & Commissioning Team,Other Small Contracts,Care UK Homecare,20000, 04-Feb-2011
938,Revenue,CCHD,Contracts & Commissioning Team,Other Small Contracts,Care UK Homecare,20000, 11-Feb-2011
939,Revenue,CCHD,Contracts & Commissioning Team,Other Small Contracts,Care UK Homecare,20000, 18-Feb-2011
940,Revenue,CCHD,Contracts & Commissioning Team,Other Small Contracts,Care UK Homecare,20000, 25-Feb-2011
941,Revenue,CCHD,Contracts & Commissioning Team,Other Small Contracts,Carewatch (Bristol),2500, 04-Feb-2011
942,Revenue,CCHD,Contracts & Commissioning Team,Other Small Contracts,Carewatch (Bristol),2500, 11-Feb-2011
943,Revenue,CCHD,Contracts & Commissioning Team,Other Small Contracts,Carewatch (Bristol),2500, 18-Feb-2011
944,Revenue,CCHD,Contracts & Commissioning Team,Other Small Contracts,Carewatch (Bristol),2500, 25-Feb-2011
945,Revenue,CCHD,Contracts & Commissioning Team,Other Small Contracts,Kumari Care Limited,7500, 04-Feb-2011
946,Revenue,CCHD,Contracts & Commissioning Team,Other Small Contracts,Kumari Care Limited,7500, 11-Feb-2011
947,Revenue,CCHD,Contracts & Commissioning Team,Other Small Contracts,Kumari Care Limited,7500, 18-Feb-2011
948,Revenue,CCHD,Contracts & Commissioning Team,Other Small Contracts,Kumari Care Limited,7500, 25-Feb-2011
949,Revenue,CCHD,Contracts & Commissioning Team,Other Small Contracts,Medico Nursing & Homecare Ltd,18000, 04-Feb-2011
950,Revenue,CCHD,Contracts & Commissioning Team,Other Small Contracts,Medico Nursing & Homecare Ltd,18000, 11-Feb-2011
951,Revenue,CCHD,Contracts & Commissioning Team,Other Small Contracts,Medico Nursing & Homecare Ltd,18000, 18-Feb-2011
952,Revenue,CCHD,Contracts & Commissioning Team,Other Small Contracts,Medico Nursing & Homecare Ltd,18000, 25-Feb-2011
953,Revenue,CCHD,Contracts & Commissioning Team,Other Small Contracts,Milestones Outreach Dementia Services,2000, 04-Feb-2011
954,Revenue,CCHD,Contracts & Commissioning Team,Other Small Contracts,Milestones Outreach Dementia Services,2000, 11-Feb-2011
955,Revenue,CCHD,Contracts & Commissioning Team,Other Small Contracts,Milestones Outreach Dementia Services,2000, 18-Feb-2011
956,Revenue,CCHD,Contracts & Commissioning Team,Other Small Contracts,Milestones Outreach Dementia Services,2000, 25-Feb-2011
957,Revenue,CCHD,Contracts & Commissioning Team,Other Small Contracts,Mrs B Kimber,8000, 04-Feb-2011
958,Revenue,CCHD,Contracts & Commissioning Team,Other Small Contracts,Mrs B Kimber,8000, 11-Feb-2011
959,Revenue,CCHD,Contracts & Commissioning Team,Other Small Contracts,Mrs B Kimber,8000, 18-Feb-2011
960,Revenue,CCHD,Contracts & Commissioning Team,Other Small Contracts,Mrs B Kimber,8000, 25-Feb-2011
961,Revenue,CCHD,Contracts & Commissioning Team,Other Small Contracts,Network Health & Social Care,2500, 04-Feb-2011
962,Revenue,CCHD,Contracts & Commissioning Team,Other Small Contracts,Network Health & Social Care,2500, 11-Feb-2011
963,Revenue,CCHD,Contracts & Commissioning Team,Other Small Contracts,Network Health & Social Care,2500, 18-Feb-2011
964,Revenue,CCHD,Contracts & Commissioning Team,Other Small Contracts,Network Health & Social Care,2500, 25-Feb-2011
965,Revenue,CCHD,Contracts & Commissioning Team,Other Small Contracts,Prestige Nursing,4500, 01-Feb-2011
966,Revenue,CCHD,Contracts & Commissioning Team,Other Small Contracts,Prestige Nursing,4500, 04-Feb-2011
967,Revenue,CCHD,Contracts & Commissioning Team,Other Small Contracts,Prestige Nursing,4500, 11-Feb-2011
968,Revenue,CCHD,Contracts & Commissioning Team,Other Small Contracts,Prestige Nursing,4500, 18-Feb-2011
969,Revenue,CCHD,Contracts & Commissioning Team,Other Small Contracts,Prestige Nursing,4500, 25-Feb-2011
970,Revenue,CCHD,Contracts & Commissioning Team,Other Small Contracts,South Gloucestershire Crossroads,5000, 04-Feb-2011
971,Revenue,CCHD,Contracts & Commissioning Team,Other Small Contracts,South Gloucestershire Crossroads,5000, 11-Feb-2011
972,Revenue,CCHD,Contracts & Commissioning Team,Other Small Contracts,South Gloucestershire Crossroads,5000, 18-Feb-2011
973,Revenue,CCHD,Contracts & Commissioning Team,Other Small Contracts,South Gloucestershire Crossroads,5000, 25-Feb-2011
974,Revenue,CCHD,Contracts & Commissioning Team,Other Small Contracts,The Royal Bank of Scotland Commercial,5000, 04-Feb-2011
975,Revenue,CCHD,Contracts & Commissioning Team,Other Small Contracts,The Royal Bank of Scotland Commercial,5000, 11-Feb-2011
976,Revenue,CCHD,Contracts & Commissioning Team,Other Small Contracts,The Royal Bank of Scotland Commercial,5000, 18-Feb-2011
977,Revenue,CCHD,Contracts & Commissioning Team,Other Small Contracts,The Royal Bank of Scotland Commercial,5000, 25-Feb-2011
978,Revenue,CCHD,Performance Management Support,Radio Pager/Mobile Phones,Vodafone Corporate Limited,54, 21-Feb-2011
979,Revenue,CCHD,Communications Service,Radio Pager/Mobile Phones,Vodafone Corporate Limited,43.33, 21-Feb-2011
980,Revenue,CCHD,Planning and Partnerships Team,Radio Pager/Mobile Phones,Vodafone Corporate Limited,44.14, 21-Feb-2011
981,Revenue,CCHD,Information Systems Team,Radio Pager/Mobile Phones,Vodafone Corporate Limited,81.17, 21-Feb-2011
982,Revenue,CCHD,Senior Management,Radio Pager/Mobile Phones,Vodafone Corporate Limited,108.88, 21-Feb-2011
983,Revenue,CCHD,Senior Management,Other Supplies & Services,Veale Wasbrough,300, 24-Feb-2011
984,Revenue,CCHD,Emersons Green Offices,Equipment Maintenance,Professional Hygiene Ltd,819.45, 09-Feb-2011
985,Revenue,CCHD,Kingswood District Office,Water Charges,Bristol Wessex Billing Services Limited,578.19, 10-Feb-2011
986,Revenue,CCHD,Kingswood District Office,Telephones,Purchase Power,1063.32, 07-Feb-2011
987,Revenue,CCHD,Kingswood District Office,Telephones,Vodafone Corporate Limited,477.13, 18-Feb-2011
988,Revenue,CCHD,Kingswood District Office,Telephones,Vodafone Corporate Limited,669.75, 18-Feb-2011
989,Revenue,CCHD,Yate District Office,Telephones,Vodafone Corporate Limited,438.31, 22-Feb-2011
990,Revenue,CCHD,Southmead Hospital Team,Agency Staff (Operational)/PCT Pay,Hays Specialist Recruitment,940.25, 14-Feb-2011
991,Revenue,CCHD,Southmead Hospital Team,Agency Staff (Operational)/PCT Pay,Hays Specialist Recruitment,1122.23, 01-Feb-2011
992,Revenue,CCHD,Training - Adult Services,Training Expenses,Avenues Cafe,508.5, 04-Feb-2011
993,Revenue,CCHD,Training - Adult Services,Training Expenses,Bob Dawson,750, 25-Feb-2011
994,Revenue,CCHD,Training - Adult Services,Training Expenses,ComputerWorld Training Limited,1400, 04-Feb-2011
995,Revenue,CCHD,Training - Adult Services,Training Expenses,Denise Hope,1500, 28-Feb-2011
996,Revenue,CCHD,Training - Adult Services,Training Expenses,Denise Hope,750, 25-Feb-2011
997,Revenue,CCHD,Training - Adult Services,Training Expenses,Denise Hope,750, 15-Feb-2011
998,Revenue,CCHD,Training - Adult Services,Training Expenses,Dennis Casling,550, 25-Feb-2011
999,Revenue,CCHD,Training - Adult Services,Training Expenses,Nelson Training Limited,1155, 09-Feb-2011
1000,Revenue,CCHD,Training - Adult Services,Training Expenses,North Bristol NHS Trust,3700, 25-Feb-2011
1001,Revenue,CCHD,Training - Adult Services,Training Expenses,Qualsafe.com,660, 11-Feb-2011
1002,Revenue,CCHD,Training - Adult Services,Training Expenses,The Kendleshire Golf Club Limited,1360, 18-Feb-2011
1003,Revenue,CCHD,Training - Adult Services,Training Expenses,University of Birmingham,1295, 25-Feb-2011
1004,Revenue,CCHD,TSG Practice Placements,Training Expenses,Gifty Asante,560, 22-Feb-2011
1005,Revenue,CCHD,TSG Practice Placements,Training Expenses,University Of The West Of England,610, 03-Feb-2011
1006,Revenue,CCHD,HRD Grant - Main,Training Expenses,The National Autistic Society,5361.7, 03-Feb-2011
1007,Revenue,CCHD,HRD Grant - Main,Training Expenses,University Of The West Of England,567, 25-Feb-2011
1008,Revenue,CCHD,HRD Grant - Main,Training Expenses,University Of The West Of England,567, 18-Feb-2011
1009,Revenue,CCHD,HRD Grant - Main,Training Expenses,University Of The West Of England,567, 25-Feb-2011
1010,Revenue,CCHD,Enabling Activities,Fees & Charges Income - General,Ark Consultancy,2852.56, 08-Feb-2011
1011,Revenue,CCHD,Enabling Activities,Fees & Charges Income - General,BNP Paribas Real Estate Advisory & Property,1950, 21-Feb-2011
1012,Revenue,CCHD,Supporting People,Radio Pager/Mobile Phones,Vodafone Corporate Limited,18, 21-Feb-2011
1013,Revenue,CCHD,Supporting People Programme,Grants to Voluntary Bodies,Merlin Housing Society,102966.29, 16-Feb-2011
1014,Revenue,CCHD,Supporting People Programme,Grants to Voluntary Bodies,Keyring Living Support Networks,2577.6, 25-Feb-2011
1015,Revenue,CCHD,Supporting People Programme,Grants to Voluntary Bodies,Knightstone Housing Association Limited,13051.36, 28-Feb-2011
1016,Revenue,CCHD,Supporting People Programme,Grants to Voluntary Bodies,Knightstone Housing Association Limited,13051.36, 01-Feb-2011
1017,Revenue,CCHD,Supporting People Programme,Grants to Voluntary Bodies,Knightstone Housing Association Limited,8013.6, 28-Feb-2011
1018,Revenue,CCHD,Supporting People Programme,Grants to Voluntary Bodies,Knightstone Housing Association Limited,8013.6, 01-Feb-2011
1019,Revenue,CCHD,Supporting People Programme,Grants to Voluntary Bodies,Merlin Housing Society,2172.8, 28-Feb-2011
1020,Revenue,CCHD,Supporting People Programme,Grants to Voluntary Bodies,Merlin Housing Society,2172.8, 28-Feb-2011
1021,Revenue,CCHD,Supporting People Programme,Grants to Voluntary Bodies,Merlin Housing Society,2172.8, 01-Feb-2011
1022,Revenue,CCHD,Supporting People Programme,Grants to Voluntary Bodies,Merlin Housing Society,2172.8, 01-Feb-2011
1023,Revenue,CCHD,Supporting People Programme,Grants to Voluntary Bodies,Merlin Housing Society,3452.84, 28-Feb-2011
1024,Revenue,CCHD,Supporting People Programme,Grants to Voluntary Bodies,Merlin Housing Society,3452.84, 01-Feb-2011
1025,Revenue,CCHD,Supporting People Programme,Grants to Voluntary Bodies,Merlin Housing Society,834.4, 28-Feb-2011
1026,Revenue,CCHD,Supporting People Programme,Grants to Voluntary Bodies,Merlin Housing Society,674.04, 28-Feb-2011
1027,Revenue,CCHD,Supporting People Programme,Grants to Voluntary Bodies,Drugs & Homeless Initiative,10354, 15-Feb-2011
1028,Revenue,CCHD,Supporting People Programme,Grants to Voluntary Bodies,Aspects and Milestones Trust,1737.24, 23-Feb-2011
1029,Revenue,CCHD,Supporting People Programme,Grants to Voluntary Bodies,Bristol Houses,9639.6, 28-Feb-2011
1030,Revenue,CCHD,Supporting People Programme,Grants to Voluntary Bodies,Bristol Houses,9639.6, 01-Feb-2011
1031,Revenue,CCHD,Supporting People Programme,Grants to Voluntary Bodies,Aspects and Milestones Trust,1426.32, 23-Feb-2011
1032,Revenue,CCHD,Supporting People Programme,Grants to Voluntary Bodies,Aspects and Milestones Trust,3996.4, 23-Feb-2011
1033,Revenue,CCHD,Supporting People Programme,Grants to Voluntary Bodies,Knightstone Housing Association Limited,733.12, 28-Feb-2011
1034,Revenue,CCHD,Supporting People Programme,Grants to Voluntary Bodies,Knightstone Housing Association Limited,2153.8, 28-Feb-2011
1035,Revenue,CCHD,Supporting People Programme,Grants to Voluntary Bodies,Knightstone Housing Association Limited,2545.4, 28-Feb-2011
1036,Revenue,CCHD,Supporting People Programme,Grants to Voluntary Bodies,Knightstone Housing Association Limited,733.12, 01-Feb-2011
1037,Revenue,CCHD,Supporting People Programme,Grants to Voluntary Bodies,Knightstone Housing Association Limited,2153.8, 01-Feb-2011
1038,Revenue,CCHD,Supporting People Programme,Grants to Voluntary Bodies,Knightstone Housing Association Limited,2545.4, 01-Feb-2011
1039,Revenue,CCHD,Supporting People Programme,Grants to Voluntary Bodies,Mrs Jane Spiers Cowie,885.76, 28-Feb-2011
1040,Revenue,CCHD,Supporting People Programme,Grants to Voluntary Bodies,Mrs Jane Spiers Cowie,885.76, 01-Feb-2011
1041,Revenue,CCHD,Supporting People Programme,Grants to Voluntary Bodies,Supported Independance Ltd,5538.4, 25-Feb-2011
1042,Revenue,CCHD,Supporting People Programme,Grants to Voluntary Bodies,Supported Independent Living Schemes,4465.92, 15-Feb-2011
1043,Revenue,CCHD,Supporting People Programme,Grants to Voluntary Bodies,Supported Independent Living Schemes,5388.32, 15-Feb-2011
1044,Revenue,CCHD,Supporting People Programme,Grants to Voluntary Bodies,The Hatch Camphill Community,7927.61, 28-Feb-2011
1045,Revenue,CCHD,Supporting People Programme,Grants to Voluntary Bodies,The Hatch Camphill Community,22197.32, 01-Feb-2011
1046,Revenue,CCHD,Supporting People Programme,Grants to Voluntary Bodies,Willowbank Care Limited,7444, 09-Feb-2011
1047,Revenue,CCHD,Supporting People Programme,Grants to Voluntary Bodies,Aspects and Milestones Trust,2165.04, 23-Feb-2011
1048,Revenue,CCHD,Supporting People Programme,Grants to Voluntary Bodies,Maples Community Housing Limited,2620.2, 02-Feb-2011
1049,Revenue,CCHD,Supporting People Programme,Grants to Voluntary Bodies,1625 Independent People,3658.32, 28-Feb-2011
1050,Revenue,CCHD,Supporting People Programme,Grants to Voluntary Bodies,1625 Independent People,3658.32, 01-Feb-2011
1051,Revenue,CCHD,Supporting People Programme,Grants to Voluntary Bodies,Bromford Housing Group,7657.07, 28-Feb-2011
1052,Revenue,CCHD,Supporting People Programme,Grants to Voluntary Bodies,Bromford Housing Group,14293.2, 01-Feb-2011
1053,Revenue,CCHD,Supporting People Programme,Grants to Voluntary Bodies,Elim Housing Association Ltd,4434.56, 15-Feb-2011
1054,Revenue,CCHD,Supporting People Programme,Grants to Voluntary Bodies,Kingswood Young Homeless Project,5133.12, 02-Feb-2011
1055,Revenue,CCHD,Supporting People Programme,Grants to Voluntary Bodies,Knightstone Housing Association Limited,7263.52, 28-Feb-2011
1056,Revenue,CCHD,Supporting People Programme,Grants to Voluntary Bodies,Knightstone Housing Association Limited,7263.52, 01-Feb-2011
1057,Revenue,CCHD,Supporting People Programme,Grants to Voluntary Bodies,Knightstone Housing Association Limited,1387.68, 28-Feb-2011
1058,Revenue,CCHD,Supporting People Programme,Grants to Voluntary Bodies,Knightstone Housing Association Limited,1387.68, 01-Feb-2011
1059,Revenue,CCHD,Supporting People Programme,Grants to Voluntary Bodies,Knightstone Housing Association Limited,2097.92, 28-Feb-2011
1060,Revenue,CCHD,Supporting People Programme,Grants to Voluntary Bodies,Knightstone Housing Association Limited,2097.92, 01-Feb-2011
1061,Revenue,CCHD,Supporting People Programme,Grants to Voluntary Bodies,Next Link,2076.6, 28-Feb-2011
1062,Revenue,CCHD,Supporting People Programme,Grants to Voluntary Bodies,Next Link,2076.6, 01-Feb-2011
1063,Revenue,CCHD,Supporting People Programme,Grants to Voluntary Bodies,Survive,3017.28, 02-Feb-2011
1064,Revenue,CCHD,Supporting People Programme,Grants to Voluntary Bodies,Survive,10156.16, 02-Feb-2011
1065,Revenue,CCHD,Supporting People Programme,Grants to Voluntary Bodies,1625 Independent People,14490.12, 28-Feb-2011
1066,Revenue,CCHD,Supporting People Programme,Grants to Voluntary Bodies,1625 Independent People,14490.12, 01-Feb-2011
1067,Revenue,CCHD,Supporting People Programme,Grants to Voluntary Bodies,Kingswood Young Homeless Project,2502.72, 02-Feb-2011
1068,Revenue,CCHD,Supporting People Programme,Grants to Voluntary Bodies,Knightstone Housing Association Limited,516.64, 28-Feb-2011
1069,Revenue,CCHD,Supporting People Programme,Grants to Voluntary Bodies,Knightstone Housing Association Limited,516.64, 01-Feb-2011
1070,Revenue,CCHD,Supporting People Programme,Grants to Voluntary Bodies,Merlin Housing Society,13315.63, 28-Feb-2011
1071,Revenue,CCHD,Housing GF Directorates,Training Expenses,BPP Professional Education,2305, 24-Feb-2011
1072,Revenue,CCHD,Housing GF Directorates,Radio Pager/Mobile Phones,Vodafone Corporate Limited,46.64, 21-Feb-2011
1073,Revenue,CCHD,Bed and Breakfast,Bed & Breakfast,Ashley Guest House Ltd,1728, 28-Feb-2011
1074,Revenue,CCHD,Bed and Breakfast,Bed & Breakfast,Ashley Guest House Ltd,1680, 21-Feb-2011
1075,Revenue,CCHD,Bed and Breakfast,Bed & Breakfast,Bristol Housing & Support Limited,966, 21-Feb-2011
1076,Revenue,CCHD,Bed and Breakfast,Bed & Breakfast,Bristol Housing & Support Limited,790, 21-Feb-2011
1077,Revenue,CCHD,Bed and Breakfast,Bed & Breakfast,Bristol Housing & Support Limited,764, 24-Feb-2011
1078,Revenue,CCHD,Bed and Breakfast,Bed & Breakfast,Connolly & Callaghan Limited,546, 03-Feb-2011
1079,Revenue,CCHD,Bed and Breakfast,Bed & Breakfast,Connolly & Callaghan Limited,581, 03-Feb-2011
1080,Revenue,CCHD,Bed and Breakfast,Bed & Breakfast,Connolly & Callaghan Limited,721, 03-Feb-2011
1081,Revenue,CCHD,Bed and Breakfast,Bed & Breakfast,Connolly & Callaghan Limited,511, 03-Feb-2011
1082,Revenue,CCHD,Bed and Breakfast,Bed & Breakfast,Connolly & Callaghan Limited,441, 03-Feb-2011
1083,Revenue,CCHD,Bed and Breakfast,Bed & Breakfast,Connolly & Callaghan Limited,511, 03-Feb-2011
1084,Revenue,CCHD,Bed and Breakfast,Bed & Breakfast,Connolly & Callaghan Limited,476, 03-Feb-2011
1085,Revenue,CCHD,Bed and Breakfast,Bed & Breakfast,Connolly & Callaghan Limited,476, 07-Feb-2011
1086,Revenue,CCHD,Bed and Breakfast,Bed & Breakfast,Connolly & Callaghan Limited,441, 03-Feb-2011
1087,Revenue,CCHD,Bed and Breakfast,Bed & Breakfast,Connolly & Callaghan Limited,441, 03-Feb-2011
1088,Revenue,CCHD,Bed and Breakfast,Bed & Breakfast,Connolly & Callaghan Limited,721, 24-Feb-2011
1089,Revenue,CCHD,Bed and Breakfast,Bed & Breakfast,Connolly & Callaghan Limited,511, 23-Feb-2011
1090,Revenue,CCHD,Bed and Breakfast,Bed & Breakfast,Connolly & Callaghan Limited,581, 23-Feb-2011
1091,Revenue,CCHD,Bed and Breakfast,Bed & Breakfast,Connolly & Callaghan Limited,441, 23-Feb-2011
1092,Revenue,CCHD,Bed and Breakfast,Bed & Breakfast,Connolly & Callaghan Limited,511, 23-Feb-2011
1093,Revenue,CCHD,Bed and Breakfast,Bed & Breakfast,Connolly & Callaghan Limited,476, 23-Feb-2011
1094,Revenue,CCHD,Bed and Breakfast,Bed & Breakfast,Connolly & Callaghan Limited,441, 23-Feb-2011
1095,Revenue,CCHD,Bed and Breakfast,Bed & Breakfast,Connolly & Callaghan Limited,476, 24-Feb-2011
1096,Revenue,CCHD,Bed and Breakfast,Bed & Breakfast,Connolly & Callaghan Limited,441, 24-Feb-2011
1097,Revenue,CCHD,Bed and Breakfast,Bed & Breakfast,Connolly & Callaghan Limited,721, 23-Feb-2011
1098,Revenue,CCHD,Bed and Breakfast,Bed & Breakfast,Connolly & Callaghan Limited,511, 23-Feb-2011
1099,Revenue,CCHD,Bed and Breakfast,Bed & Breakfast,Connolly & Callaghan Limited,581, 23-Feb-2011
1100,Revenue,CCHD,Bed and Breakfast,Bed & Breakfast,Connolly & Callaghan Limited,441, 23-Feb-2011
1101,Revenue,CCHD,Bed and Breakfast,Bed & Breakfast,Connolly & Callaghan Limited,511, 23-Feb-2011
1102,Revenue,CCHD,Bed and Breakfast,Bed & Breakfast,Connolly & Callaghan Limited,476, 23-Feb-2011
1103,Revenue,CCHD,Bed and Breakfast,Bed & Breakfast,Connolly & Callaghan Limited,476, 24-Feb-2011
1104,Revenue,CCHD,Bed and Breakfast,Bed & Breakfast,Connolly & Callaghan Limited,441, 24-Feb-2011
1105,Revenue,CCHD,Bed and Breakfast,Bed & Breakfast,Connolly & Callaghan Limited,546, 25-Feb-2011
1106,Revenue,CCHD,Bed and Breakfast,Bed & Breakfast,Connolly & Callaghan Limited,721, 25-Feb-2011
1107,Revenue,CCHD,Bed and Breakfast,Bed & Breakfast,Connolly & Callaghan Limited,511, 25-Feb-2011
1108,Revenue,CCHD,Bed and Breakfast,Bed & Breakfast,Connolly & Callaghan Limited,441, 25-Feb-2011
1109,Revenue,CCHD,Bed and Breakfast,Bed & Breakfast,Connolly & Callaghan Limited,581, 25-Feb-2011
1110,Revenue,CCHD,Bed and Breakfast,Bed & Breakfast,Connolly & Callaghan Limited,441, 25-Feb-2011
1111,Revenue,CCHD,Bed and Breakfast,Bed & Breakfast,Connolly & Callaghan Limited,511, 25-Feb-2011
1112,Revenue,CCHD,Bed and Breakfast,Bed & Breakfast,Connolly & Callaghan Limited,476, 25-Feb-2011
1113,Revenue,CCHD,Bed and Breakfast,Bed & Breakfast,Connolly & Callaghan Limited,441, 25-Feb-2011
1114,Revenue,CCHD,Bed and Breakfast,Bed & Breakfast,Connolly & Callaghan Limited,476, 25-Feb-2011
1115,Revenue,CCHD,Bed and Breakfast,Bed & Breakfast,Connolly & Callaghan Limited,441, 25-Feb-2011
1116,Revenue,CCHD,Bed and Breakfast,Bed & Breakfast,Connolly & Callaghan Limited,476, 28-Feb-2011
1117,Revenue,CCHD,Bed and Breakfast,Bed & Breakfast,Connolly & Callaghan Limited,441, 28-Feb-2011
1118,Revenue,CCHD,Bed and Breakfast,Bed & Breakfast,Connolly & Callaghan Limited,476, 28-Feb-2011
1119,Revenue,CCHD,Bed and Breakfast,Bed & Breakfast,Connolly & Callaghan Limited,511, 28-Feb-2011
1120,Revenue,CCHD,Bed and Breakfast,Bed & Breakfast,Connolly & Callaghan Limited,441, 28-Feb-2011
1121,Revenue,CCHD,Bed and Breakfast,Bed & Breakfast,Connolly & Callaghan Limited,581, 28-Feb-2011
1122,Revenue,CCHD,Bed and Breakfast,Bed & Breakfast,Connolly & Callaghan Limited,441, 28-Feb-2011
1123,Revenue,CCHD,Bed and Breakfast,Bed & Breakfast,Connolly & Callaghan Limited,721, 28-Feb-2011
1124,Revenue,CCHD,Bed and Breakfast,Bed & Breakfast,Connolly & Callaghan Limited,546, 28-Feb-2011
1125,Revenue,CCHD,Bed and Breakfast,Bed & Breakfast,E J Bartlett,546, 04-Feb-2011
1126,Revenue,CCHD,Bed and Breakfast,Bed & Breakfast,E J Bartlett,455, 07-Feb-2011
1127,Revenue,CCHD,Bed and Breakfast,Bed & Breakfast,E J Bartlett,546, 04-Feb-2011
1128,Revenue,CCHD,Bed and Breakfast,Bed & Breakfast,E J Bartlett,546, 11-Feb-2011
1129,Revenue,CCHD,Bed and Breakfast,Bed & Breakfast,E J Bartlett,455, 11-Feb-2011
1130,Revenue,CCHD,Bed and Breakfast,Bed & Breakfast,E J Bartlett,455, 17-Feb-2011
1131,Revenue,CCHD,Bed and Breakfast,Bed & Breakfast,E J Bartlett,663, 11-Feb-2011
1132,Revenue,CCHD,Bed and Breakfast,Bed & Breakfast,E J Bartlett,546, 21-Feb-2011
1133,Revenue,CCHD,Bed and Breakfast,Bed & Breakfast,E J Bartlett,455, 21-Feb-2011
1134,Revenue,CCHD,Bed and Breakfast,Bed & Breakfast,E J Bartlett,728, 21-Feb-2011
1135,Revenue,CCHD,Bed and Breakfast,Bed & Breakfast,E J Bartlett,455, 21-Feb-2011
1136,Revenue,CCHD,Bed and Breakfast,Bed & Breakfast,E J Bartlett,455, 25-Feb-2011
1137,Revenue,CCHD,Bed and Breakfast,Bed & Breakfast,E J Bartlett,637, 25-Feb-2011
1138,Revenue,CCHD,Bed and Breakfast,Bed & Breakfast,E J Bartlett,455, 25-Feb-2011
1139,Revenue,CCHD,Bed and Breakfast,Storage & Removal,Ablemove-Wottons,430, 15-Feb-2011
1140,Revenue,CCHD,Learning Difficulties PSL,Rent,Individual,1400, 01-Feb-2011
1141,Revenue,CCHD,Learning Difficulties PSL,Rent,Individual,1800, 22-Feb-2011
1142,Revenue,CCHD,Learning Difficulties PSL,Rent,Individual,650, 22-Feb-2011
1143,Revenue,CCHD,Learning Difficulties PSL,Rent,Individual,750, 22-Feb-2011
1144,Revenue,CCHD,Learning Difficulties PSL,Rent,Individual,488, 22-Feb-2011
1145,Revenue,CCHD,Homelessness Grant,Agency Staff (Admin/Support Staff) Pay,Venn Group Limited,669.33, 03-Feb-2011
1146,Revenue,CCHD,Homelessness Grant,Agency Staff (Admin/Support Staff) Pay,Venn Group Limited,669.33, 03-Feb-2011
1147,Revenue,CCHD,Homelessness Grant,Agency Staff (Admin/Support Staff) Pay,Venn Group Limited,669.33, 14-Feb-2011
1148,Revenue,CCHD,Homelessness Grant,Agency Staff (Admin/Support Staff) Pay,Venn Group Limited,669.33, 18-Feb-2011
1149,Revenue,CCHD,Housing Needs,Agency Staff (Admin/Support Staff) Pay,SWIM Recruitment,429.21, 07-Feb-2011
1150,Revenue,CCHD,Housing Needs,Agency Staff (Admin/Support Staff) Pay,SWIM Recruitment,418.47, 15-Feb-2011
1151,Revenue,CCHD,Housing Needs,Agency Staff (Admin/Support Staff) Pay,SWIM Recruitment,550.07, 23-Feb-2011
1152,Revenue,CCHD,Housing Needs,Radio Pager/Mobile Phones,Vodafone Corporate Limited,91.3, 21-Feb-2011
1153,Revenue,CCHD,Minor Adaptations Service,Maintenance by Contractor,Southern Electric Contracting Limited,1141.89, 28-Feb-2011
1154,Revenue,CCHD,Minor Adaptations Service,Operational Equipment,Pan Tools Ltd,480.96, 22-Feb-2011
1155,Revenue,CCHD,Minor Adaptations Service,Operational Equipment,Talbot Owen Tools & Fasteners Limited,2487, 15-Feb-2011
1156,Revenue,CCHD,Minor Adaptations Service,Daily Living Equipment,TVM Cheltenham Limited,580, 03-Feb-2011
1157,Revenue,CCHD,Minor Adaptations Service,Daily Living Equipment,TVM Cheltenham Limited,1463, 23-Feb-2011
1158,Revenue,CCHD,Minor Adaptations Service,Daily Living Equipment,TVM Cheltenham Limited,2976, 28-Feb-2011
1159,Revenue,CCHD,Minor Adaptations Service,Daily Living Equipment,TVM Cheltenham Limited,921.5, 23-Feb-2011
1160,Revenue,CCHD,Minor Adaptations Service,Daily Living Equipment,TVM Cheltenham Limited,695, 23-Feb-2011
1161,Revenue,CCHD,Minor Adaptations Service,Daily Living Equipment,TVM Cheltenham Limited,971, 28-Feb-2011
1162,Revenue,CCHD,NRS Contract,Daily Living Equipment,Medequip Assistive Technology Ltd,240.54, 23-Feb-2011
1163,Revenue,CCHD,NRS Contract,Daily Living Equipment,Medequip Assistive Technology Ltd,263.63, 23-Feb-2011
1164,Revenue,CCHD,NRS Contract,Daily Living Equipment,Medequip Assistive Technology Ltd,266.68, 23-Feb-2011
1165,Revenue,CCHD,NRS Contract,Daily Living Equipment,Medequip Assistive Technology Ltd,204, 23-Feb-2011
1166,Revenue,CCHD,NRS Contract,Daily Living Equipment,Medequip Assistive Technology Ltd,310.5, 23-Feb-2011
1167,Revenue,CCHD,NRS Contract,Daily Living Equipment,Medequip Assistive Technology Ltd,29698.82, 24-Feb-2011
1168,Revenue,CCHD,NRS Contract,Daily Living Equipment,Medequip Assistive Technology Ltd,178.08, 23-Feb-2011
1169,Revenue,CCHD,NRS Contract,Daily Living Equipment,Medequip Assistive Technology Ltd,181.46, 23-Feb-2011
1170,Revenue,CCHD,NRS Contract,Daily Living Equipment,Medequip Assistive Technology Ltd,198.88, 23-Feb-2011
1171,Revenue,CCHD,NRS Contract,Daily Living Equipment,Medequip Assistive Technology Ltd,185.32, 23-Feb-2011
1172,Revenue,CCHD,NRS Contract,Daily Living Equipment,Medequip Assistive Technology Ltd,196, 23-Feb-2011
1173,Revenue,CCHD,NRS Contract,Daily Living Equipment,Medequip Assistive Technology Ltd,264.5, 23-Feb-2011
1174,Revenue,CCHD,NRS Contract,Daily Living Equipment,Medequip Assistive Technology Ltd,47515.22, 24-Feb-2011
1175,Revenue,CCHD,NRS Contract,Daily Living Equipment,Medequip Assistive Technology Ltd,245.92, 23-Feb-2011
1176,Revenue,CCHD,NRS Contract,Other Supplies & Services,Medequip Assistive Technology Ltd,72, 23-Feb-2011
1177,Revenue,CCHD,NRS Contract,Other Supplies & Services,Medequip Assistive Technology Ltd,102.49, 23-Feb-2011
1178,Revenue,CCHD,NRS Contract,Other Supplies & Services,Medequip Assistive Technology Ltd,88, 23-Feb-2011
1179,Revenue,CCHD,NRS Contract,Other Supplies & Services,Medequip Assistive Technology Ltd,90, 23-Feb-2011
1180,Revenue,CCHD,NRS Contract,Other Supplies & Services,Medequip Assistive Technology Ltd,155, 23-Feb-2011
1181,Revenue,CCHD,NRS Contract,Other Supplies & Services,Medequip Assistive Technology Ltd,8245.5, 24-Feb-2011
1182,Revenue,CCHD,NRS Contract,Other Supplies & Services,Medequip Assistive Technology Ltd,122, 23-Feb-2011
1183,Revenue,CCHD,Detained,Nursing Homes,Castlebeck Care (Teesdale) Limited,16218.98, 17-Feb-2011
1184,Revenue,CCHD,Detained,Nursing Homes,Castlebeck Care (Teesdale) Limited,16705.55, 17-Feb-2011
1185,Revenue,CCHD,Detained,Nursing Homes,Craegmoor Facilities Company Ltd,12260.08, 17-Feb-2011
1186,Revenue,CCHD,Supported Living - PS,Private & Voluntary Home Care,3 Trees Community Support Ltd,534.59, 21-Feb-2011
1187,Revenue,CCHD,Supported Living - PS,Private & Voluntary Home Care,Aspects and Milestones Trust,2399.12, 04-Feb-2011
1188,Revenue,CCHD,Supported Living - PS,Private & Voluntary Home Care,Aspects and Milestones Trust,6301.96, 04-Feb-2011
1189,Revenue,CCHD,Supported Living - PS,Private & Voluntary Home Care,Aspects and Milestones Trust,1201.09, 18-Feb-2011
1190,Revenue,CCHD,Supported Living - PS,Private & Voluntary Home Care,Aspects and Milestones Trust,734.29, 18-Feb-2011
1191,Revenue,CCHD,Supported Living - PS,Private & Voluntary Home Care,Aspects and Milestones Trust,699.3, 18-Feb-2011
1192,Revenue,CCHD,Supported Living - PS,Private & Voluntary Home Care,Aspects and Milestones Trust,940.42, 18-Feb-2011
1193,Revenue,CCHD,Supported Living - PS,Private & Voluntary Home Care,Aspects and Milestones Trust,672.26, 18-Feb-2011
1194,Revenue,CCHD,Supported Living - PS,Private & Voluntary Home Care,Aspects and Milestones Trust,1549.51, 18-Feb-2011
1195,Revenue,CCHD,Supported Living - PS,Private & Voluntary Home Care,Aspects and Milestones Trust,804.62, 18-Feb-2011
1196,Revenue,CCHD,Supported Living - PS,Private & Voluntary Home Care,Camphill Village Trust,1449.11, 01-Feb-2011
1197,Revenue,CCHD,Supported Living - PS,Private & Voluntary Home Care,Care Horizons Limited,568.2, 09-Feb-2011
1198,Revenue,CCHD,Supported Living - PS,Private & Voluntary Home Care,Freeways Trust Limited,1949, 21-Feb-2011
1199,Revenue,CCHD,Supported Living - PS,Private & Voluntary Home Care,Freeways Trust Limited,1278.75, 22-Feb-2011
1200,Revenue,CCHD,Supported Living - PS,Private & Voluntary Home Care,Freeways Trust Limited,1353, 22-Feb-2011
1201,Revenue,CCHD,Supported Living - PS,Private & Voluntary Home Care,Lloyds TSB Commercial Finance Limited,6062.1, 21-Feb-2011
1202,Revenue,CCHD,Supported Living - PS,Private & Voluntary Home Care,Lloyds TSB Commercial Finance Limited,4099.02, 21-Feb-2011
1203,Revenue,CCHD,Supported Living - PS,Private & Voluntary Home Care,Lloyds TSB Commercial Finance Limited,765.9, 21-Feb-2011
1204,Revenue,CCHD,Supported Living - PS,Private & Voluntary Home Care,Moving On,6440.99, 21-Feb-2011
1205,Revenue,CCHD,Supported Living - PS,Private & Voluntary Home Care,Mrs B Kimber,8654.93, 15-Feb-2011
1206,Revenue,CCHD,Supported Living - PS,Private & Voluntary Home Care,Mrs B Kimber,11366.38, 15-Feb-2011
1207,Revenue,CCHD,Supported Living - PS,Private & Voluntary Home Care,Mrs B Kimber,2026.88, 15-Feb-2011
1208,Revenue,CCHD,Supported Living - PS,Private & Voluntary Home Care,Selborne Care Ltd,2493.28, 08-Feb-2011
1209,Revenue,CCHD,Supported Living - PS,Private & Voluntary Home Care,Selborne Care Ltd,1379.84, 08-Feb-2011
1210,Revenue,CCHD,Supported Living - PS,Private & Voluntary Home Care,Selborne Care Ltd,4723.4, 08-Feb-2011
1211,Revenue,CCHD,Supported Living - PS,Private & Voluntary Home Care,Selborne Care Ltd,564.48, 08-Feb-2011
1212,Revenue,CCHD,Supported Living - PS,Private & Voluntary Home Care,Selborne Care Ltd,4713.8, 08-Feb-2011
1213,Revenue,CCHD,Supported Living - PS,Private & Voluntary Home Care,Selborne Care Ltd,1798.8, 08-Feb-2011
1214,Revenue,CCHD,Supported Living - PS,Private & Voluntary Home Care,Selborne Care Ltd,2143.68, 18-Feb-2011
1215,Revenue,CCHD,Supported Living - PS,Private & Voluntary Home Care,Selborne Care Ltd,1379.84, 18-Feb-2011
1216,Revenue,CCHD,Supported Living - PS,Private & Voluntary Home Care,Selborne Care Ltd,4793.4, 18-Feb-2011
1217,Revenue,CCHD,Supported Living - PS,Private & Voluntary Home Care,Selborne Care Ltd,4997.44, 21-Feb-2011
1218,Revenue,CCHD,Supported Living - PS,Private & Voluntary Home Care,Selborne Care Ltd,564.48, 18-Feb-2011
1219,Revenue,CCHD,Supported Living - PS,Private & Voluntary Home Care,Selborne Care Ltd,4713.8, 18-Feb-2011
1220,Revenue,CCHD,Supported Living - PS,Private & Voluntary Home Care,Selborne Care Ltd,1851.76, 18-Feb-2011
1221,Revenue,CCHD,Supported Living - PS,Private & Voluntary Home Care,Smile Independent Living Support Limited,589.1, 15-Feb-2011
1222,Revenue,CCHD,Supported Living - PS,Private & Voluntary Home Care,Supported Independent Living Schemes,624.84, 04-Feb-2011
1223,Revenue,CCHD,Supported Living - PS,Private & Voluntary Home Care,Supported Independent Living Schemes,605.4, 04-Feb-2011
1224,Revenue,CCHD,Supported Living - PS,Private & Voluntary Home Care,Supported Independent Living Schemes,605.4, 24-Feb-2011
1225,Revenue,CCHD,Supported Living - PS,Private & Voluntary Day Care,Selborne Care Ltd,4997.44, 14-Feb-2011
1226,Revenue,CCHD,Supported Living (S28a),Private & Voluntary Home Care,3 Trees Community Support Ltd,7606.95, 24-Feb-2011
1227,Revenue,CCHD,Supported Living (S28a),Private & Voluntary Home Care,Aspects and Milestones Trust,5011.32, 04-Feb-2011
1228,Revenue,CCHD,Supported Living (S28a),Private & Voluntary Home Care,Aspects and Milestones Trust,667.06, 17-Feb-2011
1229,Revenue,CCHD,Supported Living (S28a),Private & Voluntary Home Care,Aspects and Milestones Trust,4441.4, 18-Feb-2011
1230,Revenue,CCHD,Supported Living (S28a),Private & Voluntary Home Care,Aspects and Milestones Trust,1096.29, 18-Feb-2011
1231,Revenue,CCHD,Supported Living (S28a),Private & Voluntary Home Care,Aspects and Milestones Trust,3262.16, 18-Feb-2011
1232,Revenue,CCHD,Supported Living (S28a),Private & Voluntary Home Care,Aspects and Milestones Trust,9689.14, 18-Feb-2011
1233,Revenue,CCHD,Supported Living (S28a),Private & Voluntary Home Care,Aspects and Milestones Trust,9262.44, 18-Feb-2011
1234,Revenue,CCHD,Supported Living (S28a),Private & Voluntary Home Care,Aspects and Milestones Trust,659.34, 18-Feb-2011
1235,Revenue,CCHD,Supported Living (S28a),Private & Voluntary Home Care,Aspects and Milestones Trust,791.08, 18-Feb-2011
1236,Revenue,CCHD,Supported Living (S28a),Private & Voluntary Home Care,Aspects and Milestones Trust,541.45, 18-Feb-2011
1237,Revenue,CCHD,Supported Living (S28a),Private & Voluntary Home Care,Aspects and Milestones Trust,2870.16, 18-Feb-2011
1238,Revenue,CCHD,Supported Living (S28a),Private & Voluntary Home Care,Aspects and Milestones Trust,2754.17, 18-Feb-2011
1239,Revenue,CCHD,Supported Living (S28a),Private & Voluntary Home Care,Aspects and Milestones Trust,2875.25, 18-Feb-2011
1240,Revenue,CCHD,Supported Living (S28a),Private & Voluntary Home Care,Aspects and Milestones Trust,3662.32, 18-Feb-2011
1241,Revenue,CCHD,Supported Living (S28a),Private & Voluntary Home Care,Aspects and Milestones Trust,4143.36, 18-Feb-2011
1242,Revenue,CCHD,Supported Living (S28a),Private & Voluntary Home Care,Aspects and Milestones Trust,3662.32, 18-Feb-2011
1243,Revenue,CCHD,Supported Living (S28a),Private & Voluntary Home Care,Aspects and Milestones Trust,3662.32, 18-Feb-2011
1244,Revenue,CCHD,Supported Living (S28a),Private & Voluntary Home Care,Aspects and Milestones Trust,4143.36, 18-Feb-2011
1245,Revenue,CCHD,Supported Living (S28a),Private & Voluntary Home Care,Aspects and Milestones Trust,5121.25, 21-Feb-2011
1246,Revenue,CCHD,Supported Living (S28a),Private & Voluntary Home Care,Aspects and Milestones Trust,2610.88, 22-Feb-2011
1247,Revenue,CCHD,Supported Living (S28a),Private & Voluntary Home Care,Aspects and Milestones Trust,3728.92, 22-Feb-2011
1248,Revenue,CCHD,Supported Living (S28a),Private & Voluntary Home Care,Mencap - PSH West,3689, 09-Feb-2011
1249,Revenue,CCHD,Supported Living (S28a),Private & Voluntary Home Care,Mencap - PSH West,3689, 09-Feb-2011
1250,Revenue,CCHD,Supported Living (S28a),Private & Voluntary Home Care,Mencap - PSH West,3689, 09-Feb-2011
1251,Revenue,CCHD,Supported Living (S28a),Private & Voluntary Home Care,Mencap - PSH West,3689, 09-Feb-2011
1252,Revenue,CCHD,Supported Living (S28a),Private & Voluntary Home Care,Mencap - PSH West,3689, 09-Feb-2011
1253,Revenue,CCHD,Supported Living (S28a),Private & Voluntary Home Care,Willowbank Care Limited,4371.02, 17-Feb-2011
1254,Revenue,CCHD,Supported Living (S28a),Private & Voluntary Home Care,Willowbank Care Limited,4616.5, 17-Feb-2011
1255,Revenue,CCHD,Supported Living - KD,Private & Voluntary Home Care,3 Trees Community Support Ltd,540.05, 17-Feb-2011
1256,Revenue,CCHD,Supported Living - KD,Private & Voluntary Home Care,3 Trees Community Support Ltd,2324.69, 09-Feb-2011
1257,Revenue,CCHD,Supported Living - KD,Private & Voluntary Home Care,3 Trees Community Support Ltd,2283.84, 22-Feb-2011
1258,Revenue,CCHD,Supported Living - KD,Private & Voluntary Home Care,Bristol Houses UK Ltd,1209.08, 21-Feb-2011
1259,Revenue,CCHD,Supported Living - KD,Private & Voluntary Home Care,Bristol Houses UK Ltd,1269.1, 22-Feb-2011
1260,Revenue,CCHD,Supported Living - KD,Private & Voluntary Home Care,Bristol Houses UK Ltd,1029, 22-Feb-2011
1261,Revenue,CCHD,Supported Living - KD,Private & Voluntary Home Care,Bristol Houses UK Ltd,1020.43, 21-Feb-2011
1262,Revenue,CCHD,Supported Living - KD,Private & Voluntary Home Care,Bristol Houses UK Ltd,1410.59, 21-Feb-2011
1263,Revenue,CCHD,Supported Living - KD,Private & Voluntary Home Care,Bristol Houses UK Ltd,1925.09, 22-Feb-2011
1264,Revenue,CCHD,Supported Living - KD,Private & Voluntary Home Care,Bristol Houses UK Ltd,660.28, 22-Feb-2011
1265,Revenue,CCHD,Supported Living - KD,Private & Voluntary Home Care,Camphill Communities Thornbury Limited,1907.92, 25-Feb-2011
1266,Revenue,CCHD,Supported Living - KD,Private & Voluntary Home Care,Camphill Communities Thornbury Limited,1907.92, 25-Feb-2011
1267,Revenue,CCHD,Supported Living - KD,Private & Voluntary Home Care,Care Horizons Limited,5640.77, 17-Feb-2011
1268,Revenue,CCHD,Supported Living - KD,Private & Voluntary Home Care,Care Horizons Limited,633.66, 17-Feb-2011
1269,Revenue,CCHD,Supported Living - KD,Private & Voluntary Home Care,Care Horizons Limited,5699.35, 22-Feb-2011
1270,Revenue,CCHD,Supported Living - KD,Private & Voluntary Home Care,Cintre Community,714.23, 04-Feb-2011
1271,Revenue,CCHD,Supported Living - KD,Private & Voluntary Home Care,Lloyds TSB Commercial Finance Limited,1534.68, 21-Feb-2011
1272,Revenue,CCHD,Supported Living - KD,Private & Voluntary Home Care,Lloyds TSB Commercial Finance Limited,2711.5, 21-Feb-2011
1273,Revenue,CCHD,Supported Living - KD,Private & Voluntary Home Care,Lloyds TSB Commercial Finance Limited,2711.5, 21-Feb-2011
1274,Revenue,CCHD,Supported Living - KD,Private & Voluntary Home Care,Mrs B Kimber,3781.07, 23-Feb-2011
1275,Revenue,CCHD,Supported Living - KD,Private & Voluntary Home Care,Mrs B Kimber,1190.82, 23-Feb-2011
1276,Revenue,CCHD,Supported Living - KD,Private & Voluntary Home Care,Smile Independent Living Support Limited,1030.55, 04-Feb-2011
1277,Revenue,CCHD,Supported Living - KD,Private & Voluntary Home Care,Smile Independent Living Support Limited,4270.54, 04-Feb-2011
1278,Revenue,CCHD,Supported Living - KD,Private & Voluntary Home Care,Smile Independent Living Support Limited,913.25, 17-Feb-2011
1279,Revenue,CCHD,Supported Living - KD,Private & Voluntary Home Care,Smile Independent Living Support Limited,4240.79, 17-Feb-2011
1280,Revenue,CCHD,Supported Living - KD,Private & Voluntary Home Care,Smile Independent Living Support Limited,4159.64, 17-Feb-2011
1281,Revenue,CCHD,Supported Living - KD,Private & Voluntary Home Care,Willowbank Care Limited,3799.28, 22-Feb-2011
1282,Revenue,CCHD,Supported Living - KD,Private & Voluntary Home Care,Willowbank Care Limited,582.64, 22-Feb-2011
1283,Revenue,CCHD,Supported Living - KD,Private & Voluntary Home Care,Willowbank Care Limited,4091.56, 22-Feb-2011
1284,Revenue,CCHD,Supported Living - KD,Private & Voluntary Home Care,Willowbank Care Limited,2039.28, 22-Feb-2011
1285,Revenue,CCHD,Supported Living - KD,Private & Voluntary Home Care,Willowbank Care Limited,4091.56, 22-Feb-2011
1286,Revenue,CCHD,Supported Living - KD,Private & Voluntary Home Care,Willowbank Care Limited,2039.28, 22-Feb-2011
1287,Revenue,CCHD,Supported Living - KD,Private & Voluntary Home Care,Willowbank Care Limited,4091.56, 22-Feb-2011
1288,Revenue,CCHD,Supported Living - KD,Private & Voluntary Home Care,Willowbank Care Limited,2039.28, 22-Feb-2011
1289,Revenue,CCHD,Supported Living - KD,Private & Voluntary Home Care,Willowbank Care Limited,2039.28, 22-Feb-2011
1290,Revenue,CCHD,Supported Living - KD,Private & Voluntary Home Care,Willowbank Care Limited,4091.56, 22-Feb-2011
1291,Revenue,CCHD,Supported Living - KD,Private & Voluntary Home Care,Willowbank Care Limited,4091.56, 22-Feb-2011
1292,Revenue,CCHD,Supported Living - KD,Private & Voluntary Home Care,Willowbank Care Limited,4091.56, 22-Feb-2011
1293,Revenue,CCHD,Supported Living - KD,Private & Voluntary Home Care,Willowbank Care Limited,6191.18, 17-Feb-2011
1294,Revenue,CCHD,Supported Living - KD,Private & Voluntary Home Care,Willowbank Care Limited,6191.18, 03-Feb-2011
1295,Revenue,CCHD,Supported Living - KD,Private & Voluntary Home Care,Willowbank Care Limited,6191.18, 09-Feb-2011
1296,Revenue,CCHD,Supported Living - KD,Private & Voluntary Home Care,Willowbank Care Limited,6191.18, 04-Feb-2011
1297,Revenue,CCHD,Supported Living - KD,Private & Voluntary Home Care,Willowbank Care Limited,6191.18, 09-Feb-2011
1298,Revenue,CCHD,Supported Living - KD,Private & Voluntary Home Care,Willowbank Care Limited,6191.18, 22-Feb-2011
1299,Revenue,CCHD,Supported Living - KD,Private & Voluntary Home Care,Willowbank Care Limited,2092.3, 17-Feb-2011
1300,Revenue,CCHD,Supported Living - KD,Private & Voluntary Home Care,Willowbank Care Limited,2092.3, 17-Feb-2011
1301,Revenue,CCHD,Supported Living - KD,Private & Voluntary Home Care,Willowbank Care Limited,2092.3, 09-Feb-2011
1302,Revenue,CCHD,Supported Living - KD,Private & Voluntary Home Care,Willowbank Care Limited,2092.3, 22-Feb-2011
1303,Revenue,CCHD,Supported Living - KD,Private & Voluntary Home Care,Willowbank Care Limited,917.42, 03-Feb-2011
1304,Revenue,CCHD,Supported Living - KD,Private & Voluntary Home Care,Willowbank Care Limited,917.42, 17-Feb-2011
1305,Revenue,CCHD,Supported Living - KD,Private & Voluntary Home Care,Willowbank Care Limited,917.42, 04-Feb-2011
1306,Revenue,CCHD,Supported Living - KD,Private & Voluntary Home Care,Willowbank Care Limited,917.42, 09-Feb-2011
1307,Revenue,CCHD,Supported Living - KD,Private & Voluntary Home Care,Willowbank Care Limited,4523.08, 09-Feb-2011
1308,Revenue,CCHD,Supported Living - KD,Private & Voluntary Home Care,Willowbank Care Limited,4523.08, 04-Feb-2011
1309,Revenue,CCHD,Supported Living - KD,Private & Voluntary Home Care,Willowbank Care Limited,4523.08, 09-Feb-2011
1310,Revenue,CCHD,Supported Living - KD,Private & Voluntary Home Care,Willowbank Care Limited,4523.08, 22-Feb-2011
1311,Revenue,CCHD,Supported Living - KD,Private & Voluntary Home Care,Willowbank Care Limited,2048.78, 03-Feb-2011
1312,Revenue,CCHD,Supported Living - KD,Private & Voluntary Home Care,Willowbank Care Limited,2048.78, 09-Feb-2011
1313,Revenue,CCHD,Supported Living - KD,Private & Voluntary Home Care,Willowbank Care Limited,2598.36, 03-Feb-2011
1314,Revenue,CCHD,Supported Living - KD,Private & Voluntary Home Care,Willowbank Care Limited,2598.36, 17-Feb-2011
1315,Revenue,CCHD,Supported Living - KD,Private & Voluntary Home Care,Willowbank Care Limited,2598.36, 04-Feb-2011
1316,Revenue,CCHD,Supported Living - KD,Private & Voluntary Home Care,Willowbank Care Limited,2598.36, 09-Feb-2011
1317,Revenue,CCHD,Supported Living - KD,Private & Voluntary Home Care,Willowbank Care Limited,2598.36, 22-Feb-2011
1318,Revenue,CCHD,Supported Living - KD,Private & Voluntary Home Care,Willowbank Care Limited,2999.98, 03-Feb-2011
1319,Revenue,CCHD,Supported Living - KD,Private & Voluntary Home Care,Willowbank Care Limited,2999.98, 17-Feb-2011
1320,Revenue,CCHD,Supported Living - KD,Private & Voluntary Home Care,Willowbank Care Limited,2999.98, 04-Feb-2011
1321,Revenue,CCHD,Supported Living - KD,Private & Voluntary Home Care,Willowbank Care Limited,2999.98, 09-Feb-2011
1322,Revenue,CCHD,Supported Living - KD,Private & Voluntary Home Care,Willowbank Care Limited,2999.98, 22-Feb-2011
1323,Revenue,CCHD,Supported Living - KD,Private & Voluntary Home Care,Willowbank Care Limited,3024.78, 09-Feb-2011
1324,Revenue,CCHD,Supported Living - KD,Private & Voluntary Home Care,Willowbank Care Limited,3024.78, 16-Feb-2011
1325,Revenue,CCHD,Supported Living - KD,Private & Voluntary Home Care,Willowbank Care Limited,3024.78, 09-Feb-2011
1326,Revenue,CCHD,Supported Living - KD,Private & Voluntary Home Care,Willowbank Care Limited,3024.78, 22-Feb-2011
1327,Revenue,CCHD,Supported Living - KD,Private & Voluntary Home Care,Willowbank Care Limited,2251.48, 09-Feb-2011
1328,Revenue,CCHD,Supported Living - KD,Private & Voluntary Home Care,Willowbank Care Limited,2251.48, 04-Feb-2011
1329,Revenue,CCHD,Supported Living - KD,Private & Voluntary Home Care,Willowbank Care Limited,2251.48, 09-Feb-2011
1330,Revenue,CCHD,Supported Living - KD,Private & Voluntary Home Care,Willowbank Care Limited,2251.48, 22-Feb-2011
1331,Revenue,CCHD,Supported Living - KD,Private & Voluntary Day Care,The Brandon Trust,9151.46, 16-Feb-2011
1332,Revenue,CCHD,Supported Living - KD,Private & Voluntary Day Care,The Brandon Trust,9151.46, 16-Feb-2011
1333,Revenue,CCHD,Supported Living - KH,Private & Voluntary Home Care,3 Trees Community Support Ltd,9308.94, 17-Feb-2011
1334,Revenue,CCHD,Supported Living - KH,Private & Voluntary Home Care,3 Trees Community Support Ltd,1547.53, 08-Feb-2011
1335,Revenue,CCHD,Supported Living - KH,Private & Voluntary Home Care,3 Trees Community Support Ltd,1721.65, 17-Feb-2011
1336,Revenue,CCHD,Supported Living - KH,Private & Voluntary Home Care,3 Trees Community Support Ltd,7627.83, 17-Feb-2011
1337,Revenue,CCHD,Supported Living - KH,Private & Voluntary Home Care,Aspects and Milestones Trust,4937.04, 04-Feb-2011
1338,Revenue,CCHD,Supported Living - KH,Private & Voluntary Home Care,Aspects and Milestones Trust,5306.5, 03-Feb-2011
1339,Revenue,CCHD,Supported Living - KH,Private & Voluntary Home Care,Aspects and Milestones Trust,5344.58, 04-Feb-2011
1340,Revenue,CCHD,Supported Living - KH,Private & Voluntary Home Care,Aspects and Milestones Trust,817.44, 04-Feb-2011
1341,Revenue,CCHD,Supported Living - KH,Private & Voluntary Home Care,Aspects and Milestones Trust,927.9, 04-Feb-2011
1342,Revenue,CCHD,Supported Living - KH,Private & Voluntary Home Care,Aspects and Milestones Trust,971.04, 17-Feb-2011
1343,Revenue,CCHD,Supported Living - KH,Private & Voluntary Home Care,Aspects and Milestones Trust,839.08, 18-Feb-2011
1344,Revenue,CCHD,Supported Living - KH,Private & Voluntary Home Care,Care Horizons Limited,1880.47, 24-Feb-2011
1345,Revenue,CCHD,Supported Living - KH,Private & Voluntary Home Care,Care Horizons Limited,1949.78, 07-Feb-2011
1346,Revenue,CCHD,Supported Living - KH,Private & Voluntary Home Care,HFT,3660.6, 08-Feb-2011
1347,Revenue,CCHD,Supported Living - KH,Private & Voluntary Home Care,HFT,3660.6, 08-Feb-2011
1348,Revenue,CCHD,Supported Living - KH,Private & Voluntary Home Care,Lifeways Community Care (Gloucester) Ltd,11373, 21-Feb-2011
1349,Revenue,CCHD,Supported Living - KH,Private & Voluntary Home Care,Lifeways Community Care (Gloucester) Ltd,11373, 17-Feb-2011
1350,Revenue,CCHD,Supported Living - KH,Private & Voluntary Home Care,Lifeways Community Care (Gloucester) Ltd,11373, 23-Feb-2011
1351,Revenue,CCHD,Supported Living - KH,Private & Voluntary Home Care,Lifeways Community Care (Gloucester) Ltd,8792, 17-Feb-2011
1352,Revenue,CCHD,Supported Living - KH,Private & Voluntary Home Care,Mrs B Kimber,508.76, 08-Feb-2011
1353,Revenue,CCHD,Supported Living - KH,Private & Voluntary Home Care,Mrs B Kimber,1017.52, 07-Feb-2011
1354,Revenue,CCHD,Supported Living - KH,Private & Voluntary Home Care,Mrs B Kimber,1327.46, 07-Feb-2011
1355,Revenue,CCHD,Supported Living - KH,Private & Voluntary Home Care,Mrs B Kimber,2048.42, 07-Feb-2011
1356,Revenue,CCHD,Supported Living - KH,Private & Voluntary Home Care,Mrs B Kimber,1468.64, 24-Feb-2011
1357,Revenue,CCHD,Supported Living - KH,Private & Voluntary Home Care,Mrs B Kimber,1791.18, 21-Feb-2011
1358,Revenue,CCHD,Supported Living - KH,Private & Voluntary Home Care,Mrs B Kimber,872.16, 22-Feb-2011
1359,Revenue,CCHD,Supported Living - KH,Private & Voluntary Home Care,Selborne Care Ltd,1132.2, 07-Feb-2011
1360,Revenue,CCHD,Supported Living - KH,Private & Voluntary Home Care,Selborne Care Ltd,627.2, 07-Feb-2011
1361,Revenue,CCHD,Supported Living - KH,Private & Voluntary Home Care,Selborne Care Ltd,1124.2, 08-Feb-2011
1362,Revenue,CCHD,Supported Living - KH,Private & Voluntary Home Care,Selborne Care Ltd,540.44, 08-Feb-2011
1363,Revenue,CCHD,Supported Living - KH,Private & Voluntary Home Care,Selborne Care Ltd,540.44, 18-Feb-2011
1364,Revenue,CCHD,Supported Living - KH,Private & Voluntary Home Care,Silva Care Limited,4415.44, 04-Feb-2011
1365,Revenue,CCHD,Supported Living - KH,Private & Voluntary Home Care,Silva Care Limited,4415.44, 04-Feb-2011
1366,Revenue,CCHD,Supported Living - KH,Private & Voluntary Home Care,Silva Care Limited,4415.44, 17-Feb-2011
1367,Revenue,CCHD,Supported Living - KH,Private & Voluntary Home Care,The Brandon Trust,684.42, 08-Feb-2011
1368,Revenue,CCHD,Supported Living - KH,Private & Voluntary Home Care,The Brandon Trust,559.98, 18-Feb-2011
1369,Revenue,CCHD,Elderly PWLD - PS,Residential Homes,Aspects &  Milestones Trust,3322.72, 22-Feb-2011
1370,Revenue,CCHD,Elderly PWLD - PS,Residential Homes,Aspects &  Milestones Trust,5701.72, 22-Feb-2011
1371,Revenue,CCHD,Elderly PWLD - PS,Residential Homes,Aspects &  Milestones Trust,3835.08, 22-Feb-2011
1372,Revenue,CCHD,Elderly PWLD - PS,Residential Homes,Charlton House,1966.36, 22-Feb-2011
1373,Revenue,CCHD,Elderly PWLD - PS,Residential Homes,Edgemont House Ltd,1316.96, 22-Feb-2011
1374,Revenue,CCHD,Elderly PWLD - PS,Residential Homes,Four Seasons Health Care,1246.8, 22-Feb-2011
1375,Revenue,CCHD,Elderly PWLD - PS,Residential Homes,Rockleaze,2151.96, 22-Feb-2011
1376,Revenue,CCHD,Elderly PWLD - PS,Residential Homes,Rockleaze,1404.36, 22-Feb-2011
1377,Revenue,CCHD,Elderly PWLD - PS,Residential Homes,Rockleaze,1404.36, 22-Feb-2011
1378,Revenue,CCHD,Elderly PWLD - PS,Residential Homes,St Davids Lodge,2545.68, 22-Feb-2011
1379,Revenue,CCHD,Elderly PWLD - PS,Residential Homes,St Davids Lodge,3669, 22-Feb-2011
1380,Revenue,CCHD,Elderly PWLD - PS,Residential Homes,The Brandon Trust  Olympus House,3355.96, 22-Feb-2011
1381,Revenue,CCHD,Elderly PWLD - PS,Residential Homes,Visions,3552.96, 22-Feb-2011
1382,Revenue,CCHD,Elderly PWLD - KD,Residential Homes,Aspects &  Milestones Trust,2875.8, 22-Feb-2011
1383,Revenue,CCHD,Elderly PWLD - KD,Residential Homes,Aspects &  Milestones Trust,5705.36, 22-Feb-2011
1384,Revenue,CCHD,Elderly PWLD - KD,Residential Homes,Freeways Trust Ltd,2210.28, 22-Feb-2011
1385,Revenue,CCHD,Elderly PWLD - KD,Residential Homes,Hazelhurst,3577.44, 22-Feb-2011
1386,Revenue,CCHD,Elderly PWLD - KD,Nursing Homes,Aspects &  Milestones Trust,2725.08, 22-Feb-2011
1387,Revenue,CCHD,Elderly PWLD - KH,Residential Homes,Craegmoor Healthcare,4803.28, 22-Feb-2011
1388,Revenue,CCHD,Elderly PWLD - KH,Residential Homes,Freeways Trust Ltd,2352.92, 22-Feb-2011
1389,Revenue,CCHD,Elderly PWLD - KH,Residential Homes,Gordena Care Home,2883.92, 22-Feb-2011
1390,Revenue,CCHD,Elderly PWLD - KH,Residential Homes,The Turrets,1499.2, 22-Feb-2011
1391,Revenue,CCHD,Under 65s PWLD - PS,Residential Homes,Aspects &  Milestones Trust,11824.19, 22-Feb-2011
1392,Revenue,CCHD,Under 65s PWLD - PS,Residential Homes,Aspects &  Milestones Trust,4297.68, 22-Feb-2011
1393,Revenue,CCHD,Under 65s PWLD - PS,Residential Homes,Aspects &  Milestones Trust,3648.4, 22-Feb-2011
1394,Revenue,CCHD,Under 65s PWLD - PS,Residential Homes,Aspects &  Milestones Trust,4322.72, 22-Feb-2011
1395,Revenue,CCHD,Under 65s PWLD - PS,Residential Homes,Aspects &  Milestones Trust,3998.8, 22-Feb-2011
1396,Revenue,CCHD,Under 65s PWLD - PS,Residential Homes,Aspects &  Milestones Trust,3533.64, 22-Feb-2011
1397,Revenue,CCHD,Under 65s PWLD - PS,Residential Homes,C/O Mrs M Morris,1815.4, 22-Feb-2011
1398,Revenue,CCHD,Under 65s PWLD - PS,Residential Homes,Cintre Community,4691.4, 22-Feb-2011
1399,Revenue,CCHD,Under 65s PWLD - PS,Residential Homes,Consensus Support Services Ltd,9189.2, 17-Feb-2011
1400,Revenue,CCHD,Under 65s PWLD - PS,Residential Homes,Consensus Support Services Ltd,9189.2, 09-Feb-2011
1401,Revenue,CCHD,Under 65s PWLD - PS,Residential Homes,Craegmoor Healthcare,5430.8, 22-Feb-2011
1402,Revenue,CCHD,Under 65s PWLD - PS,Residential Homes,Cromwell House,7808.64, 22-Feb-2011
1403,Revenue,CCHD,Under 65s PWLD - PS,Residential Homes,Daneswood,10598.4, 22-Feb-2011
1404,Revenue,CCHD,Under 65s PWLD - PS,Residential Homes,Dimensions(Uk) Ltd,1719.32, 22-Feb-2011
1405,Revenue,CCHD,Under 65s PWLD - PS,Residential Homes,Freeways Trust Ltd,1147, 22-Feb-2011
1406,Revenue,CCHD,Under 65s PWLD - PS,Residential Homes,Glasallt Fawr,4452.6, 22-Feb-2011
1407,Revenue,CCHD,Under 65s PWLD - PS,Residential Homes,Hilltop Nursing Home,12415, 22-Feb-2011
1408,Revenue,CCHD,Under 65s PWLD - PS,Residential Homes,Home Farm Trust Ltd  5-6 Brook Office Pa,2409.2, 22-Feb-2011
1409,Revenue,CCHD,Under 65s PWLD - PS,Residential Homes,Home Farm Trust Ltd  5-6 Brook Office Pa,3120.12, 22-Feb-2011
1410,Revenue,CCHD,Under 65s PWLD - PS,Residential Homes,Home Farm Trust Ltd  5-6 Brook Office Pa,4439.04, 22-Feb-2011
1411,Revenue,CCHD,Under 65s PWLD - PS,Residential Homes,Keepers Cottage,1969.48, 22-Feb-2011
1412,Revenue,CCHD,Under 65s PWLD - PS,Residential Homes,Norwood   Broadway House,4795.12, 22-Feb-2011
1413,Revenue,CCHD,Under 65s PWLD - PS,Residential Homes,Osprey Court,8057.08, 22-Feb-2011
1414,Revenue,CCHD,Under 65s PWLD - PS,Residential Homes,Renaissance,2174.4, 22-Feb-2011
1415,Revenue,CCHD,Under 65s PWLD - PS,Residential Homes,Ridgeway House,3383.72, 22-Feb-2011
1416,Revenue,CCHD,Under 65s PWLD - PS,Residential Homes,Rockleaze,2352.88, 22-Feb-2011
1417,Revenue,CCHD,Under 65s PWLD - PS,Residential Homes,Rosewood Lodge & Brook House,7848.56, 22-Feb-2011
1418,Revenue,CCHD,Under 65s PWLD - PS,Residential Homes,St Brigas,2917.64, 22-Feb-2011
1419,Revenue,CCHD,Under 65s PWLD - PS,Residential Homes,Stepping Stones Re-Sett. Unit,8473.28, 22-Feb-2011
1420,Revenue,CCHD,Under 65s PWLD - PS,Residential Homes,The Brandon Trust  Olympus House,11160.28, 22-Feb-2011
1421,Revenue,CCHD,Under 65s PWLD - PS,Residential Homes,The Manor House,3356.24, 22-Feb-2011
1422,Revenue,CCHD,Under 65s PWLD - PS,Residential Homes,The Manor House,3212.52, 22-Feb-2011
1423,Revenue,CCHD,Under 65s PWLD - PS,Residential Homes,The Manor House,3018.52, 22-Feb-2011
1424,Revenue,CCHD,Under 65s PWLD - PS,Residential Homes,The Manor House,3349.56, 22-Feb-2011
1425,Revenue,CCHD,Under 65s PWLD - PS,Residential Homes,The Stanstead Centre,3488.28, 22-Feb-2011
1426,Revenue,CCHD,Under 65s PWLD - PS,Residential Homes,The Turrets,892.8, 22-Feb-2011
1427,Revenue,CCHD,Under 65s PWLD - PS,Residential Homes,The Turrets,3152.36, 22-Feb-2011
1428,Revenue,CCHD,Under 65s PWLD - PS,Residential Homes,Tracs Group Ltd,6424.76, 22-Feb-2011
1429,Revenue,CCHD,Under 65s PWLD - PS,Residential Homes,Victoria Court,11033.76, 22-Feb-2011
1430,Revenue,CCHD,Under 65s PWLD - PS,Residential Homes,Voyage Ltd,2931.44, 22-Feb-2011
1431,Revenue,CCHD,Under 65s PWLD - PS,Residential Homes,Voyage Ltd,7259.76, 22-Feb-2011
1432,Revenue,CCHD,Under 65s PWLD - PS,Residential Homes,Voyage Ltd,5793.04, 22-Feb-2011
1433,Revenue,CCHD,Under 65s PWLD - PS,Residential Homes,Voyage Ltd,6352.04, 22-Feb-2011
1434,Revenue,CCHD,Under 65s PWLD - PS,Residential Homes,Voyage Ltd,7510.08, 22-Feb-2011
1435,Revenue,CCHD,Under 65s PWLD - PS,Nursing Homes,Carriage Court,5766.48, 22-Feb-2011
1436,Revenue,CCHD,Under 65s PWLD - PS,Nursing Homes,Shaw Healthcare Ltd,9897.24, 22-Feb-2011
1437,Revenue,CCHD,Under 65s PWLD - PS,Nursing Homes,Shaw Healthcare Ltd,9949.24, 22-Feb-2011
1438,Revenue,CCHD,Under 65s PWLD - PS,Nursing Homes,The Brandon Trust  Olympus House,43798.35, 22-Feb-2011
1439,Revenue,CCHD,Under 65s PWLD - PS,Nursing Homes,The Brandon Trust  Olympus House,5651.4, 22-Feb-2011
1440,Revenue,CCHD,Under 65s PWLD - PS,Nursing Homes,The Brandon Trust  Olympus House,15761.3, 22-Feb-2011
1441,Revenue,CCHD,Under 65s PWLD - PS,Nursing Homes,The Brandon Trust  Olympus House,5072.6, 22-Feb-2011
1442,Revenue,CCHD,Under 65s PWLD - KD,Residential Homes,Abbeymead Lodge,6781.12, 22-Feb-2011
1443,Revenue,CCHD,Under 65s PWLD - KD,Residential Homes,Alexandra House,6342.64, 22-Feb-2011
1444,Revenue,CCHD,Under 65s PWLD - KD,Residential Homes,Ark Care Homes Ltd,10353.32, 22-Feb-2011
1445,Revenue,CCHD,Under 65s PWLD - KD,Residential Homes,Aspects &  Milestones Trust,5935.08, 22-Feb-2011
1446,Revenue,CCHD,Under 65s PWLD - KD,Residential Homes,Aspects &  Milestones Trust,7196.32, 22-Feb-2011
1447,Revenue,CCHD,Under 65s PWLD - KD,Residential Homes,Aspects & Milestones Trust,8720.64, 22-Feb-2011
1448,Revenue,CCHD,Under 65s PWLD - KD,Residential Homes,Aspects & Milestones Trust,10805.44, 22-Feb-2011
1449,Revenue,CCHD,Under 65s PWLD - KD,Residential Homes,Camphill Devon Community,3154.28, 22-Feb-2011
1450,Revenue,CCHD,Under 65s PWLD - KD,Residential Homes,Camphill Devon Community,2218.84, 22-Feb-2011
1451,Revenue,CCHD,Under 65s PWLD - KD,Residential Homes,Cottage & Rural Enterprises,1934.04, 22-Feb-2011
1452,Revenue,CCHD,Under 65s PWLD - KD,Residential Homes,Craegmoor Healthcare,2731.2, 22-Feb-2011
1453,Revenue,CCHD,Under 65s PWLD - KD,Residential Homes,Craegmoor Healthcare,2159.68, 22-Feb-2011
1454,Revenue,CCHD,Under 65s PWLD - KD,Residential Homes,Daneswood,8761.4, 22-Feb-2011
1455,Revenue,CCHD,Under 65s PWLD - KD,Residential Homes,Fernbank,8360.96, 22-Feb-2011
1456,Revenue,CCHD,Under 65s PWLD - KD,Residential Homes,Forge House,3633.56, 22-Feb-2011
1457,Revenue,CCHD,Under 65s PWLD - KD,Residential Homes,Freeways Trust Ltd,2767.4, 22-Feb-2011
1458,Revenue,CCHD,Under 65s PWLD - KD,Residential Homes,Freeways Trust Ltd,2217.28, 22-Feb-2011
1459,Revenue,CCHD,Under 65s PWLD - KD,Residential Homes,Freeways Trust Ltd,2217.28, 22-Feb-2011
1460,Revenue,CCHD,Under 65s PWLD - KD,Residential Homes,Freeways Trust Ltd,2643.88, 22-Feb-2011
1461,Revenue,CCHD,Under 65s PWLD - KD,Residential Homes,Hazelhurst,3629.4, 22-Feb-2011
1462,Revenue,CCHD,Under 65s PWLD - KD,Residential Homes,Hazelhurst,2905.2, 22-Feb-2011
1463,Revenue,CCHD,Under 65s PWLD - KD,Residential Homes,Hazelhurst,3838.72, 22-Feb-2011
1464,Revenue,CCHD,Under 65s PWLD - KD,Residential Homes,Hazelhurst,2999.76, 22-Feb-2011
1465,Revenue,CCHD,Under 65s PWLD - KD,Residential Homes,Home Farm,3563.36, 22-Feb-2011
1466,Revenue,CCHD,Under 65s PWLD - KD,Residential Homes,Home Farm Trust Ltd  5-6 Brook Office Pa,2759.76, 22-Feb-2011
1467,Revenue,CCHD,Under 65s PWLD - KD,Residential Homes,Home Farm Trust Ltd  5-6 Brook Office Pa,2220.28, 22-Feb-2011
1468,Revenue,CCHD,Under 65s PWLD - KD,Residential Homes,Home Farm Trust Ltd  5-6 Brook Office Pa,3327.88, 22-Feb-2011
1469,Revenue,CCHD,Under 65s PWLD - KD,Residential Homes,Leonard Cheshire  National Account Centr,5742.64, 22-Feb-2011
1470,Revenue,CCHD,Under 65s PWLD - KD,Residential Homes,Leonard Cheshire  National Account Centr,5741.12, 22-Feb-2011
1471,Revenue,CCHD,Under 65s PWLD - KD,Residential Homes,Littlecroft Residential Homes  Longcroft,6438.28, 22-Feb-2011
1472,Revenue,CCHD,Under 65s PWLD - KD,Residential Homes,Sense,10341.6, 22-Feb-2011
1473,Revenue,CCHD,Under 65s PWLD - KD,Residential Homes,Shaw Healthcare Ltd,10331.76, 22-Feb-2011
1474,Revenue,CCHD,Under 65s PWLD - KD,Residential Homes,Small House Homes Limited,17443.68, 22-Feb-2011
1475,Revenue,CCHD,Under 65s PWLD - KD,Residential Homes,The Brandon Trust  Olympus House,9714.6, 22-Feb-2011
1476,Revenue,CCHD,Under 65s PWLD - KD,Residential Homes,The Brandon Trust  Olympus House,5118.64, 22-Feb-2011
1477,Revenue,CCHD,Under 65s PWLD - KD,Residential Homes,The Manor House,3365.64, 22-Feb-2011
1478,Revenue,CCHD,Under 65s PWLD - KD,Residential Homes,The Manor House,999.12, 22-Feb-2011
1479,Revenue,CCHD,Under 65s PWLD - KD,Residential Homes,The Manor House,508.25, 22-Feb-2011
1480,Revenue,CCHD,Under 65s PWLD - KD,Residential Homes,The Red House Residential Home,2018.76, 22-Feb-2011
1481,Revenue,CCHD,Under 65s PWLD - KD,Residential Homes,The Red House Residential Home,1931.2, 22-Feb-2011
1482,Revenue,CCHD,Under 65s PWLD - KD,Residential Homes,The Red House Residential Home,1862.16, 22-Feb-2011
1483,Revenue,CCHD,Under 65s PWLD - KD,Residential Homes,The Red House Residential Home,2018.76, 22-Feb-2011
1484,Revenue,CCHD,Under 65s PWLD - KD,Residential Homes,The Red House Residential Home,1862.16, 22-Feb-2011
1485,Revenue,CCHD,Under 65s PWLD - KD,Residential Homes,The Thomas Moore Project,1904.72, 22-Feb-2011
1486,Revenue,CCHD,Under 65s PWLD - KD,Residential Homes,Three Roses Home,2029.04, 22-Feb-2011
1487,Revenue,CCHD,Under 65s PWLD - KD,Residential Homes,Ty Hafod Tudor,3797.56, 22-Feb-2011
1488,Revenue,CCHD,Under 65s PWLD - KD,Residential Homes,Victoria Court,8553.12, 22-Feb-2011
1489,Revenue,CCHD,Under 65s PWLD - KD,Residential Homes,Voyage Ltd,6657.8, 22-Feb-2011
1490,Revenue,CCHD,Under 65s PWLD - KD,Residential Homes,Voyage Ltd,8041.56, 22-Feb-2011
1491,Revenue,CCHD,Under 65s PWLD - KD,Residential Homes,Wiltshire County Council,10066.18, 17-Feb-2011
1492,Revenue,CCHD,Under 65s PWLD - KD,Residential Homes,Wiltshire County Council,3294.39, 18-Feb-2011
1493,Revenue,CCHD,Under 65s PWLD - KD,Nursing Homes,Holmleigh Care Homes Ltd,3919.08, 22-Feb-2011
1494,Revenue,CCHD,Under 65s PWLD - KD,Nursing Homes,The Brandon Trust  Olympus House,5709.36, 22-Feb-2011
1495,Revenue,CCHD,Under 65s PWLD - KH,Residential Homes,.,4915.4, 22-Feb-2011
1496,Revenue,CCHD,Under 65s PWLD - KH,Residential Homes,Aspects &  Milestones Trust,4029.56, 22-Feb-2011
1497,Revenue,CCHD,Under 65s PWLD - KH,Residential Homes,Aspects &  Milestones Trust,3650.92, 22-Feb-2011
1498,Revenue,CCHD,Under 65s PWLD - KH,Residential Homes,Aspects &  Milestones Trust,3782.04, 22-Feb-2011
1499,Revenue,CCHD,Under 65s PWLD - KH,Residential Homes,Aspects &  Milestones Trust,4909.68, 22-Feb-2011
1500,Revenue,CCHD,Under 65s PWLD - KH,Residential Homes,Aspects &  Milestones Trust,5627.6, 22-Feb-2011
1501,Revenue,CCHD,Under 65s PWLD - KH,Residential Homes,Aspects &  Milestones Trust,4599.28, 22-Feb-2011
1502,Revenue,CCHD,Under 65s PWLD - KH,Residential Homes,Aspects &  Milestones Trust,6300.6, 22-Feb-2011
1503,Revenue,CCHD,Under 65s PWLD - KH,Residential Homes,Aspects &  Milestones Trust,7569.8, 22-Feb-2011
1504,Revenue,CCHD,Under 65s PWLD - KH,Residential Homes,Aspects &  Milestones Trust,4115.4, 22-Feb-2011
1505,Revenue,CCHD,Under 65s PWLD - KH,Residential Homes,Autism Specialised Care Homes,5431.16, 22-Feb-2011
1506,Revenue,CCHD,Under 65s PWLD - KH,Residential Homes,Bedrock Lodge,2839.08, 22-Feb-2011
1507,Revenue,CCHD,Under 65s PWLD - KH,Residential Homes,Craegmoor Healthcare,4048.21, 22-Feb-2011
1508,Revenue,CCHD,Under 65s PWLD - KH,Residential Homes,Craegmoor Healthcare,4835.48, 22-Feb-2011
1509,Revenue,CCHD,Under 65s PWLD - KH,Residential Homes,Craegmoor Healthcare,13468.64, 22-Feb-2011
1510,Revenue,CCHD,Under 65s PWLD - KH,Residential Homes,Craegmoor Healthcare,2487.96, 22-Feb-2011
1511,Revenue,CCHD,Under 65s PWLD - KH,Residential Homes,Craegmoor Healthcare,7042.28, 22-Feb-2011
1512,Revenue,CCHD,Under 65s PWLD - KH,Residential Homes,Craegmoor Healthcare,4812.36, 22-Feb-2011
1513,Revenue,CCHD,Under 65s PWLD - KH,Residential Homes,Dimensions(Uk) Ltd,4706.4, 22-Feb-2011
1514,Revenue,CCHD,Under 65s PWLD - KH,Residential Homes,East Court,2228.16, 22-Feb-2011
1515,Revenue,CCHD,Under 65s PWLD - KH,Residential Homes,Freeways Trust Ltd,2643.88, 22-Feb-2011
1516,Revenue,CCHD,Under 65s PWLD - KH,Residential Homes,Gordena Care Home,2050.92, 22-Feb-2011
1517,Revenue,CCHD,Under 65s PWLD - KH,Residential Homes,Gordena Care Home,4642.16, 22-Feb-2011
1518,Revenue,CCHD,Under 65s PWLD - KH,Residential Homes,Gordena Care Home,2047.08, 22-Feb-2011
1519,Revenue,CCHD,Under 65s PWLD - KH,Residential Homes,HFT,3660.6, 22-Feb-2011
1520,Revenue,CCHD,Under 65s PWLD - KH,Residential Homes,HFT,3660.6, 22-Feb-2011
1521,Revenue,CCHD,Under 65s PWLD - KH,Residential Homes,HFT,3660.6, 15-Feb-2011
1522,Revenue,CCHD,Under 65s PWLD - KH,Residential Homes,Holmleigh Care Homes Ltd,4920.08, 22-Feb-2011
1523,Revenue,CCHD,Under 65s PWLD - KH,Residential Homes,Kisimul Group,11087.32, 22-Feb-2011
1524,Revenue,CCHD,Under 65s PWLD - KH,Residential Homes,Leonard Cheshire  National Account Centr,2905.32, 22-Feb-2011
1525,Revenue,CCHD,Under 65s PWLD - KH,Residential Homes,Lufton Manor College,16188.48, 22-Feb-2011
1526,Revenue,CCHD,Under 65s PWLD - KH,Residential Homes,Mr J Davis & Mrs S Davis,1840, 01-Feb-2011
1527,Revenue,CCHD,Under 65s PWLD - KH,Residential Homes,Nightingale Nursing Home,3047.48, 22-Feb-2011
1528,Revenue,CCHD,Under 65s PWLD - KH,Residential Homes,Penleigh House Care Home,4399.72, 22-Feb-2011
1529,Revenue,CCHD,Under 65s PWLD - KH,Residential Homes,Penleigh House Care Home,5495.76, 22-Feb-2011
1530,Revenue,CCHD,Under 65s PWLD - KH,Residential Homes,Scope   Accounts Dept,4937, 22-Feb-2011
1531,Revenue,CCHD,Under 65s PWLD - KH,Residential Homes,Scope   Accounts Dept,3026.68, 22-Feb-2011
1532,Revenue,CCHD,Under 65s PWLD - KH,Residential Homes,St Brigas,2024.8, 22-Feb-2011
1533,Revenue,CCHD,Under 65s PWLD - KH,Residential Homes,St Brigas,1973.92, 22-Feb-2011
1534,Revenue,CCHD,Under 65s PWLD - KH,Residential Homes,The Brandon Trust  Olympus House,3226.92, 22-Feb-2011
1535,Revenue,CCHD,Under 65s PWLD - KH,Residential Homes,The Manor House,5079.4, 22-Feb-2011
1536,Revenue,CCHD,Under 65s PWLD - KH,Residential Homes,The Manor House,10728, 22-Feb-2011
1537,Revenue,CCHD,Under 65s PWLD - KH,Residential Homes,The Manor House,3624.76, 22-Feb-2011
1538,Revenue,CCHD,Under 65s PWLD - KH,Residential Homes,The Manor House,2780.92, 22-Feb-2011
1539,Revenue,CCHD,Under 65s PWLD - KH,Residential Homes,The Manor House,2780.92, 22-Feb-2011
1540,Revenue,CCHD,Under 65s PWLD - KH,Residential Homes,The Manor House,3443.4, 22-Feb-2011
1541,Revenue,CCHD,Under 65s PWLD - KH,Residential Homes,The Manor House,679.52, 22-Feb-2011
1542,Revenue,CCHD,Under 65s PWLD - KH,Residential Homes,The Manor House,6240.72, 22-Feb-2011
1543,Revenue,CCHD,Under 65s PWLD - KH,Residential Homes,The Manor House,2832.72, 22-Feb-2011
1544,Revenue,CCHD,Under 65s PWLD - KH,Residential Homes,The Manor House,3536.96, 22-Feb-2011
1545,Revenue,CCHD,Under 65s PWLD - KH,Residential Homes,The Manor House,3091.56, 22-Feb-2011
1546,Revenue,CCHD,Under 65s PWLD - KH,Residential Homes,The Manor House,3442.36, 22-Feb-2011
1547,Revenue,CCHD,Under 65s PWLD - KH,Residential Homes,The Manor House,2832.72, 22-Feb-2011
1548,Revenue,CCHD,Under 65s PWLD - KH,Residential Homes,The Manor House,4485.2, 22-Feb-2011
1549,Revenue,CCHD,Under 65s PWLD - KH,Residential Homes,The Manor House,2400.04, 22-Feb-2011
1550,Revenue,CCHD,Under 65s PWLD - KH,Residential Homes,The Manor House,4998.84, 22-Feb-2011
1551,Revenue,CCHD,Under 65s PWLD - KH,Residential Homes,The Manor House,2832.72, 22-Feb-2011
1552,Revenue,CCHD,Under 65s PWLD - KH,Residential Homes,Tomlen,6399.24, 22-Feb-2011
1553,Revenue,CCHD,Under 65s PWLD - KH,Residential Homes,Voyage Ltd,5103.6, 22-Feb-2011
1554,Revenue,CCHD,Under 65s PWLD - KH,Nursing Homes,Somerset Hca Ltd,9510.28, 22-Feb-2011
1555,Revenue,CCHD,Under 65s PWLD - KH,Nursing Homes,The Manor House,4343.64, 22-Feb-2011
1556,Revenue,CCHD,3 Moravian Rd,Prop.Serv. General Repairs,Mechanical Engineering Svcs (Avon) Ltd,720, 14-Feb-2011
1557,Revenue,CCHD,PWLD S 117 Placements,Residential Homes,Unit 2,7341.4, 22-Feb-2011
1558,Revenue,CCHD,PWLD S 117 Placements,Residential Homes,West Court,7773.44, 22-Feb-2011
1559,Revenue,CCHD,S117 Placements PCT,Residential Homes,Alexandra House,6697.76, 22-Feb-2011
1560,Revenue,CCHD,S117 Placements PCT,Residential Homes,Shaw Healthcare Ltd,15925.32, 22-Feb-2011
1561,Revenue,CCHD,S28A - Under 65,Residential Homes,Aspects &  Milestones Trust,5551.68, 22-Feb-2011
1562,Revenue,CCHD,S28A - Under 65,Residential Homes,Aspects &  Milestones Trust,5251.04, 22-Feb-2011
1563,Revenue,CCHD,S28A - Under 65,Residential Homes,Aspects &  Milestones Trust,7330.28, 22-Feb-2011
1564,Revenue,CCHD,S28A - Under 65,Residential Homes,Aspects &  Milestones Trust,7330.28, 22-Feb-2011
1565,Revenue,CCHD,S28A - Under 65,Residential Homes,Aspects &  Milestones Trust,5041.88, 22-Feb-2011
1566,Revenue,CCHD,S28A - Under 65,Residential Homes,Aspects &  Milestones Trust,4909.96, 22-Feb-2011
1567,Revenue,CCHD,S28A - Under 65,Residential Homes,Aspects &  Milestones Trust,7330.28, 22-Feb-2011
1568,Revenue,CCHD,S28A - Under 65,Residential Homes,Aspects &  Milestones Trust,7330.28, 22-Feb-2011
1569,Revenue,CCHD,S28A - Under 65,Residential Homes,Aspects &  Milestones Trust,3695.56, 22-Feb-2011
1570,Revenue,CCHD,S28A - Under 65,Residential Homes,Aspects &  Milestones Trust,5806.24, 22-Feb-2011
1571,Revenue,CCHD,S28A - Under 65,Residential Homes,Aspects &  Milestones Trust,6533.88, 22-Feb-2011
1572,Revenue,CCHD,S28A - Under 65,Residential Homes,Aspects &  Milestones Trust,3992.16, 22-Feb-2011
1573,Revenue,CCHD,S28A - Under 65,Residential Homes,Aspects &  Milestones Trust,5153.96, 22-Feb-2011
1574,Revenue,CCHD,S28A - Under 65,Residential Homes,Aspects &  Milestones Trust,4330.64, 22-Feb-2011
1575,Revenue,CCHD,S28A - Under 65,Residential Homes,Aspects &  Milestones Trust,7330.28, 22-Feb-2011
1576,Revenue,CCHD,S28A - Under 65,Residential Homes,Aspects &  Milestones Trust,3209.64, 22-Feb-2011
1577,Revenue,CCHD,S28A - Under 65,Residential Homes,Aspects &  Milestones Trust,4971.64, 22-Feb-2011
1578,Revenue,CCHD,S28A - Under 65,Residential Homes,Aspects &  Milestones Trust,5986.84, 22-Feb-2011
1579,Revenue,CCHD,S28A - Under 65,Residential Homes,Aspects &  Milestones Trust,3701.88, 22-Feb-2011
1580,Revenue,CCHD,S28A - Under 65,Residential Homes,Aspects &  Milestones Trust,5244.04, 22-Feb-2011
1581,Revenue,CCHD,S28A - Under 65,Residential Homes,Aspects &  Milestones Trust,5936.36, 22-Feb-2011
1582,Revenue,CCHD,S28A - Under 65,Residential Homes,Aspects &  Milestones Trust,4940.92, 22-Feb-2011
1583,Revenue,CCHD,S28A - Under 65,Residential Homes,Aspects &  Milestones Trust,5817.6, 22-Feb-2011
1584,Revenue,CCHD,S28A - Under 65,Residential Homes,Aspects &  Milestones Trust,8022.76, 22-Feb-2011
1585,Revenue,CCHD,S28A - Under 65,Residential Homes,Aspects &  Milestones Trust,5087.44, 22-Feb-2011
1586,Revenue,CCHD,S28A - Under 65,Residential Homes,Aspects &  Milestones Trust,4921.56, 22-Feb-2011
1587,Revenue,CCHD,S28A - Under 65,Residential Homes,Aspects &  Milestones Trust,5395.08, 22-Feb-2011
1588,Revenue,CCHD,S28A - Under 65,Residential Homes,Aspects &  Milestones Trust,5395.08, 22-Feb-2011
1589,Revenue,CCHD,S28A - Under 65,Residential Homes,Aspects &  Milestones Trust,4586.64, 22-Feb-2011
1590,Revenue,CCHD,S28A - Under 65,Residential Homes,Aspects &  Milestones Trust,5395.08, 22-Feb-2011
1591,Revenue,CCHD,S28A - Under 65,Residential Homes,Aspects &  Milestones Trust,5830.24, 22-Feb-2011
1592,Revenue,CCHD,S28A - Under 65,Residential Homes,Aspects &  Milestones Trust,7604, 22-Feb-2011
1593,Revenue,CCHD,S28A - Under 65,Residential Homes,Aspects &  Milestones Trust,5830.24, 22-Feb-2011
1594,Revenue,CCHD,S28A - Under 65,Residential Homes,Aspects &  Milestones Trust,3355.72, 22-Feb-2011
1595,Revenue,CCHD,S28A - Under 65,Residential Homes,Aspects &  Milestones Trust,5012.44, 22-Feb-2011
1596,Revenue,CCHD,S28A - Under 65,Residential Homes,Aspects &  Milestones Trust,5283.24, 22-Feb-2011
1597,Revenue,CCHD,S28A - Under 65,Residential Homes,Aspects &  Milestones Trust,3946.8, 22-Feb-2011
1598,Revenue,CCHD,S28A - Under 65,Residential Homes,Aspects &  Milestones Trust,5349.96, 22-Feb-2011
1599,Revenue,CCHD,S28A - Under 65,Residential Homes,Aspects &  Milestones Trust,5617.04, 22-Feb-2011
1600,Revenue,CCHD,S28A - Under 65,Residential Homes,Chescombe Lodge,8370.44, 22-Feb-2011
1601,Revenue,CCHD,S28A - Under 65,Residential Homes,Compass Care,9452.04, 22-Feb-2011
1602,Revenue,CCHD,S28A - Under 65,Residential Homes,Craegmoor Healthcare,4517.2, 22-Feb-2011
1603,Revenue,CCHD,S28A - Under 65,Residential Homes,Craegmoor Healthcare,5511.52, 22-Feb-2011
1604,Revenue,CCHD,S28A - Under 65,Residential Homes,Craegmoor Healthcare,5213.52, 22-Feb-2011
1605,Revenue,CCHD,S28A - Under 65,Residential Homes,Craegmoor Healthcare,5715.4, 22-Feb-2011
1606,Revenue,CCHD,S28A - Under 65,Residential Homes,Cream Ii Ltd,7763.48, 22-Feb-2011
1607,Revenue,CCHD,S28A - Under 65,Residential Homes,Creedy Court,8952.64, 22-Feb-2011
1608,Revenue,CCHD,S28A - Under 65,Residential Homes,Creedy Court,7451.92, 22-Feb-2011
1609,Revenue,CCHD,S28A - Under 65,Residential Homes,Freeways Trust Ltd,2856.6, 22-Feb-2011
1610,Revenue,CCHD,S28A - Under 65,Residential Homes,Kelly House,3376.44, 22-Feb-2011
1611,Revenue,CCHD,S28A - Under 65,Residential Homes,North Lincolnshire Council,3605.48, 08-Feb-2011
1612,Revenue,CCHD,S28A - Under 65,Residential Homes,North Lincolnshire Council,3605.48, 08-Feb-2011
1613,Revenue,CCHD,S28A - Under 65,Residential Homes,Orchard End Limited,7476.56, 22-Feb-2011
1614,Revenue,CCHD,S28A - Under 65,Residential Homes,Osprey Court,4502.16, 22-Feb-2011
1615,Revenue,CCHD,S28A - Under 65,Residential Homes,Osprey Court,6832.8, 22-Feb-2011
1616,Revenue,CCHD,S28A - Under 65,Residential Homes,Penleigh House Care Home,5299.32, 22-Feb-2011
1617,Revenue,CCHD,S28A - Under 65,Residential Homes,Shaw Healthcare Ltd,10955.36, 22-Feb-2011
1618,Revenue,CCHD,S28A - Under 65,Residential Homes,Shaw Healthcare Ltd,11756.44, 22-Feb-2011
1619,Revenue,CCHD,S28A - Under 65,Residential Homes,Shaw Healthcare Ltd,4876.2, 22-Feb-2011
1620,Revenue,CCHD,S28A - Under 65,Residential Homes,Shaw Healthcare Ltd,9131.32, 22-Feb-2011
1621,Revenue,CCHD,S28A - Under 65,Residential Homes,The Brandon Trust  Olympus House,3806.52, 22-Feb-2011
1622,Revenue,CCHD,S28A - Under 65,Residential Homes,The Brandon Trust  Olympus House,5529.57, 22-Feb-2011
1623,Revenue,CCHD,S28A - Under 65,Residential Homes,The Brandon Trust  Olympus House,4543.48, 22-Feb-2011
1624,Revenue,CCHD,S28A - Under 65,Residential Homes,The Brandon Trust  Olympus House,5954.92, 22-Feb-2011
1625,Revenue,CCHD,S28A - Under 65,Residential Homes,The Brandon Trust  Olympus House,5798.32, 22-Feb-2011
1626,Revenue,CCHD,S28A - Under 65,Residential Homes,The Brandon Trust  Olympus House,3109.65, 22-Feb-2011
1627,Revenue,CCHD,S28A - Under 65,Residential Homes,The Brandon Trust  Olympus House,1857.12, 22-Feb-2011
1628,Revenue,CCHD,S28A - Under 65,Residential Homes,The Brandon Trust  Olympus House,4837.24, 22-Feb-2011
1629,Revenue,CCHD,S28A - Under 65,Residential Homes,The Brandon Trust  Olympus House,7122.16, 22-Feb-2011
1630,Revenue,CCHD,S28A - Under 65,Residential Homes,The Brandon Trust  Olympus House,5563.68, 22-Feb-2011
1631,Revenue,CCHD,S28A - Under 65,Residential Homes,The Brandon Trust  Olympus House,5519.68, 22-Feb-2011
1632,Revenue,CCHD,S28A - Under 65,Residential Homes,The Brandon Trust  Olympus House,4302.59, 22-Feb-2011
1633,Revenue,CCHD,S28A - Under 65,Residential Homes,The Brandon Trust  Olympus House,5054.86, 22-Feb-2011
1634,Revenue,CCHD,S28A - Under 65,Residential Homes,The Brandon Trust  Olympus House,4680.64, 22-Feb-2011
1635,Revenue,CCHD,S28A - Under 65,Residential Homes,The Manor House,5023.4, 22-Feb-2011
1636,Revenue,CCHD,S28A - Under 65,Residential Homes,United Response,2488.8, 16-Feb-2011
1637,Revenue,CCHD,S28A - Under 65,Residential Homes,Voyage Ltd,6720.24, 22-Feb-2011
1638,Revenue,CCHD,S28A - Under 65,Nursing Homes,Aspects &  Milestones Trust,5689.72, 22-Feb-2011
1639,Revenue,CCHD,S28A - Under 65,Nursing Homes,Aspects &  Milestones Trust,8022.76, 22-Feb-2011
1640,Revenue,CCHD,S28A - Under 65,Nursing Homes,Aspects &  Milestones Trust,5485.96, 22-Feb-2011
1641,Revenue,CCHD,S28A - Under 65,Nursing Homes,Aspects &  Milestones Trust,6132.88, 22-Feb-2011
1642,Revenue,CCHD,S28A - Under 65,Nursing Homes,Aspects &  Milestones Trust,5068, 22-Feb-2011
1643,Revenue,CCHD,S28A - Under 65,Nursing Homes,Aspects &  Milestones Trust,6214.08, 22-Feb-2011
1644,Revenue,CCHD,S28A - Under 65,Nursing Homes,Aspects &  Milestones Trust,4921.56, 22-Feb-2011
1645,Revenue,CCHD,S28A - Under 65,Nursing Homes,The Brandon Trust  Olympus House,5386.84, 22-Feb-2011
1646,Revenue,CCHD,S28A - Under 65,Nursing Homes,The Brandon Trust  Olympus House,5738.56, 22-Feb-2011
1647,Revenue,CCHD,S28A - Under 65,Nursing Homes,Urmston House,10496.84, 22-Feb-2011
1648,Revenue,CCHD,S28A - Under 65,Nursing Homes,Urmston House,10496.84, 22-Feb-2011
1649,Revenue,CCHD,S28A - Under 65,Nursing Homes,Urmston House,10496.84, 22-Feb-2011
1650,Revenue,CCHD,S28A - Over 65,Residential Homes,Aspects &  Milestones Trust,3543.56, 22-Feb-2011
1651,Revenue,CCHD,S28A - Over 65,Residential Homes,Aspects &  Milestones Trust,4167.44, 22-Feb-2011
1652,Revenue,CCHD,S28A - Over 65,Residential Homes,Aspects &  Milestones Trust,4400.96, 22-Feb-2011
1653,Revenue,CCHD,S28A - Over 65,Residential Homes,Aspects &  Milestones Trust,5894.72, 22-Feb-2011
1654,Revenue,CCHD,S28A - Over 65,Residential Homes,Aspects &  Milestones Trust,3355.16, 22-Feb-2011
1655,Revenue,CCHD,S28A - Over 65,Residential Homes,Aspects &  Milestones Trust,5001.08, 22-Feb-2011
1656,Revenue,CCHD,S28A - Over 65,Residential Homes,Aspects &  Milestones Trust,4797.92, 22-Feb-2011
1657,Revenue,CCHD,S28A - Over 65,Residential Homes,Aspects &  Milestones Trust,3251.36, 22-Feb-2011
1658,Revenue,CCHD,S28A - Over 65,Residential Homes,Aspects &  Milestones Trust,3603.28, 22-Feb-2011
1659,Revenue,CCHD,S28A - Over 65,Residential Homes,Aspects &  Milestones Trust,3628.36, 22-Feb-2011
1660,Revenue,CCHD,S28A - Over 65,Residential Homes,Aspects &  Milestones Trust,3435.76, 22-Feb-2011
1661,Revenue,CCHD,S28A - Over 65,Residential Homes,Aspects &  Milestones Trust,4899.16, 22-Feb-2011
1662,Revenue,CCHD,S28A - Over 65,Residential Homes,Aspects &  Milestones Trust,3251.32, 22-Feb-2011
1663,Revenue,CCHD,S28A - Over 65,Residential Homes,Aspects &  Milestones Trust,3312.04, 22-Feb-2011
1664,Revenue,CCHD,S28A - Over 65,Residential Homes,Aspects &  Milestones Trust,17500.37, 22-Feb-2011
1665,Revenue,CCHD,S28A - Over 65,Residential Homes,Aspects &  Milestones Trust,3550.8, 22-Feb-2011
1666,Revenue,CCHD,S28A - Over 65,Residential Homes,Aspects &  Milestones Trust,5810.64, 22-Feb-2011
1667,Revenue,CCHD,S28A - Over 65,Residential Homes,Aspects &  Milestones Trust,4106.08, 22-Feb-2011
1668,Revenue,CCHD,S28A - Over 65,Residential Homes,Aspects &  Milestones Trust,4899.16, 22-Feb-2011
1669,Revenue,CCHD,S28A - Over 65,Residential Homes,Aspects &  Milestones Trust,5154, 22-Feb-2011
1670,Revenue,CCHD,S28A - Over 65,Residential Homes,Aspects &  Milestones Trust,4913.08, 22-Feb-2011
1671,Revenue,CCHD,S28A - Over 65,Residential Homes,Aspects &  Milestones Trust,3404.64, 22-Feb-2011
1672,Revenue,CCHD,S28A - Over 65,Residential Homes,Aspects &  Milestones Trust,5516.72, 22-Feb-2011
1673,Revenue,CCHD,S28A - Over 65,Residential Homes,Aspects &  Milestones Trust,3329.48, 22-Feb-2011
1674,Revenue,CCHD,S28A - Over 65,Residential Homes,Aspects &  Milestones Trust,4014.68, 22-Feb-2011
1675,Revenue,CCHD,S28A - Over 65,Residential Homes,Aspects &  Milestones Trust,4804.2, 22-Feb-2011
1676,Revenue,CCHD,S28A - Over 65,Residential Homes,Aspects &  Milestones Trust,4252.44, 22-Feb-2011
1677,Revenue,CCHD,S28A - Over 65,Residential Homes,Aspects &  Milestones Trust,5810.64, 22-Feb-2011
1678,Revenue,CCHD,S28A - Over 65,Residential Homes,Aspects &  Milestones Trust,4641.36, 22-Feb-2011
1679,Revenue,CCHD,S28A - Over 65,Residential Homes,Aspects &  Milestones Trust,4123.52, 22-Feb-2011
1680,Revenue,CCHD,S28A - Over 65,Residential Homes,Aspects &  Milestones Trust,4345.84, 22-Feb-2011
1681,Revenue,CCHD,S28A - Over 65,Residential Homes,Aspects &  Milestones Trust,4946.48, 22-Feb-2011
1682,Revenue,CCHD,S28A - Over 65,Residential Homes,Aspects &  Milestones Trust,4940.76, 22-Feb-2011
1683,Revenue,CCHD,S28A - Over 65,Residential Homes,Aspects and Milestones Trust,769.93, 21-Feb-2011
1684,Revenue,CCHD,S28A - Over 65,Residential Homes,Leonard Cheshire  National Account Centr,2859.24, 22-Feb-2011
1685,Revenue,CCHD,S28A - Over 65,Residential Homes,Rockleaze,2033.32, 22-Feb-2011
1686,Revenue,CCHD,S28A - Over 65,Residential Homes,Shaw Healthcare Ltd,4876.2, 22-Feb-2011
1687,Revenue,CCHD,S28A - Over 65,Residential Homes,Shaw Healthcare Ltd,4876.2, 22-Feb-2011
1688,Revenue,CCHD,S28A - Over 65,Residential Homes,Shaw Healthcare Ltd,4876.2, 22-Feb-2011
1689,Revenue,CCHD,S28A - Over 65,Residential Homes,Shaw Healthcare Ltd,4884.2, 22-Feb-2011
1690,Revenue,CCHD,S28A - Over 65,Residential Homes,Shaw Healthcare Ltd,10192.24, 22-Feb-2011
1691,Revenue,CCHD,S28A - Over 65,Residential Homes,St Davids Lodge,3092.28, 22-Feb-2011
1692,Revenue,CCHD,S28A - Over 65,Residential Homes,St Davids Lodge,3042.56, 22-Feb-2011
1693,Revenue,CCHD,S28A - Over 65,Residential Homes,St Davids Lodge,2003, 22-Feb-2011
1694,Revenue,CCHD,S28A - Over 65,Residential Homes,The Brandon Trust  Olympus House,3555.76, 22-Feb-2011
1695,Revenue,CCHD,S28A - Over 65,Residential Homes,The Brandon Trust  Olympus House,2979.48, 22-Feb-2011
1696,Revenue,CCHD,S28A - Over 65,Residential Homes,The Brandon Trust  Olympus House,3192.96, 22-Feb-2011
1697,Revenue,CCHD,S28A - Over 65,Nursing Homes,Horfield Care Limited,1687.29, 07-Feb-2011
1698,Revenue,CCHD,PWLD Home Care - Under 65 - PS,Private & Voluntary Home Care,Guardian Homecare (Bristol & Avon) Ltd,31.84, 07-Feb-2011
1699,Revenue,CCHD,PWLD Home Care - Under 65 - PS,Private & Voluntary Home Care,Guardian Homecare (Bristol & Avon) Ltd,35.82, 11-Feb-2011
1700,Revenue,CCHD,PWLD Home Care - Under 65 - PS,Private & Voluntary Home Care,Guardian Homecare (Bristol & Avon) Ltd,31.84, 21-Feb-2011
1701,Revenue,CCHD,PWLD Home Care - Under 65 - KD,Private & Voluntary Home Care,Guardian Homecare (Bristol & Avon) Ltd,15.92, 11-Feb-2011
1702,Revenue,CCHD,PWLD Home Care - Under 65 - KD,Private & Voluntary Home Care,Guardian Homecare (Bristol & Avon) Ltd,15.92, 21-Feb-2011
1703,Revenue,CCHD,Purchase of Non-Res Care - KD,Private & Voluntary Day Care,3 Trees Community Support Ltd,4896.66, 23-Feb-2011
1704,Revenue,CCHD,Purchase of Non-Res Care - KD,Private & Voluntary Day Care,3 Trees Community Support Ltd,791.26, 17-Feb-2011
1705,Revenue,CCHD,Purchase of Non-Res Care - KD,Private & Voluntary Day Care,3 Trees Community Support Ltd,1028.49, 17-Feb-2011
1706,Revenue,CCHD,Purchase of Non-Res Care - KD,Private & Voluntary Day Care,3 Trees Community Support Ltd,5351.54, 09-Feb-2011
1707,Revenue,CCHD,Purchase of Non-Res Care - KD,Private & Voluntary Day Care,3 Trees Community Support Ltd,528.64, 09-Feb-2011
1708,Revenue,CCHD,Purchase of Non-Res Care - KD,Private & Voluntary Day Care,3 Trees Community Support Ltd,1866.83, 09-Feb-2011
1709,Revenue,CCHD,Purchase of Non-Res Care - KD,Private & Voluntary Day Care,3 Trees Community Support Ltd,528.64, 23-Feb-2011
1710,Revenue,CCHD,Purchase of Non-Res Care - KD,Private & Voluntary Day Care,3 Trees Community Support Ltd,1206.45, 22-Feb-2011
1711,Revenue,CCHD,Purchase of Non-Res Care - KD,Private & Voluntary Day Care,3 Trees Community Support Ltd,4635.56, 23-Feb-2011
1712,Revenue,CCHD,Purchase of Non-Res Care - KD,Private & Voluntary Day Care,3 Trees Community Support Ltd,5214.52, 23-Feb-2011
1713,Revenue,CCHD,Purchase of Non-Res Care - KD,Private & Voluntary Day Care,3 Trees Community Support Ltd,864.66, 23-Feb-2011
1714,Revenue,CCHD,Purchase of Non-Res Care - KD,Private & Voluntary Day Care,3 Trees Community Support Ltd,1529.38, 23-Feb-2011
1715,Revenue,CCHD,Purchase of Non-Res Care - KD,Private & Voluntary Day Care,3 Trees Community Support Ltd,1553.12, 23-Feb-2011
1716,Revenue,CCHD,Purchase of Non-Res Care - KD,Private & Voluntary Day Care,Aspects and Milestones Trust,1886.73, 09-Feb-2011
1717,Revenue,CCHD,Purchase of Non-Res Care - KD,Private & Voluntary Day Care,Aspects and Milestones Trust,1875.37, 09-Feb-2011
1718,Revenue,CCHD,Purchase of Non-Res Care - KD,Private & Voluntary Day Care,Avon Autistic Foundation Limited,4113.3, 23-Feb-2011
1719,Revenue,CCHD,Purchase of Non-Res Care - KD,Private & Voluntary Day Care,Avon Autistic Foundation Limited,2242.08, 09-Feb-2011
1720,Revenue,CCHD,Purchase of Non-Res Care - KD,Private & Voluntary Day Care,Avon Autistic Foundation Limited,4113.3, 22-Feb-2011
1721,Revenue,CCHD,Purchase of Non-Res Care - KD,Private & Voluntary Day Care,Avon Autistic Foundation Limited,3736.8, 22-Feb-2011
1722,Revenue,CCHD,Purchase of Non-Res Care - KD,Private & Voluntary Day Care,Care Horizons Limited,1506.66, 21-Feb-2011
1723,Revenue,CCHD,Purchase of Non-Res Care - KD,Private & Voluntary Day Care,Care Horizons Limited,1027.93, 22-Feb-2011
1724,Revenue,CCHD,Purchase of Non-Res Care - KD,Private & Voluntary Day Care,Care Horizons Limited,1105.91, 22-Feb-2011
1725,Revenue,CCHD,Purchase of Non-Res Care - KD,Private & Voluntary Day Care,Care Horizons Limited,1215.38, 22-Feb-2011
1726,Revenue,CCHD,Purchase of Non-Res Care - KD,Private & Voluntary Day Care,Care Horizons Limited,1158.91, 04-Feb-2011
1727,Revenue,CCHD,Purchase of Non-Res Care - KD,Private & Voluntary Day Care,Care Horizons Limited,1633.25, 17-Feb-2011
1728,Revenue,CCHD,Purchase of Non-Res Care - KD,Private & Voluntary Day Care,Care Horizons Limited,1171.72, 17-Feb-2011
1729,Revenue,CCHD,Purchase of Non-Res Care - KD,Private & Voluntary Day Care,Care Horizons Limited,1012.03, 17-Feb-2011
1730,Revenue,CCHD,Purchase of Non-Res Care - KD,Private & Voluntary Day Care,Care Horizons Limited,1228.92, 17-Feb-2011
1731,Revenue,CCHD,Purchase of Non-Res Care - KD,Private & Voluntary Day Care,Care Horizons Limited,831.35, 17-Feb-2011
1732,Revenue,CCHD,Purchase of Non-Res Care - KD,Private & Voluntary Day Care,Care Horizons Limited,849.55, 18-Feb-2011
1733,Revenue,CCHD,Purchase of Non-Res Care - KD,Private & Voluntary Day Care,Freeways Trust Limited,620.88, 16-Feb-2011
1734,Revenue,CCHD,Purchase of Non-Res Care - KD,Private & Voluntary Day Care,Freeways Trust Limited,620.88, 16-Feb-2011
1735,Revenue,CCHD,Purchase of Non-Res Care - KD,Private & Voluntary Day Care,Mrs B Kimber,741.27, 23-Feb-2011
1736,Revenue,CCHD,Purchase of Non-Res Care - KD,Private & Voluntary Day Care,Mrs W Thompson,554, 01-Feb-2011
1737,Revenue,CCHD,Purchase of Non-Res Care - KD,Private & Voluntary Day Care,Mrs W Thompson,554, 17-Feb-2011
1738,Revenue,CCHD,Purchase of Non-Res Care - KD,Private & Voluntary Day Care,Mrs W Thompson,1314, 10-Feb-2011
1739,Revenue,CCHD,Purchase of Non-Res Care - KD,Private & Voluntary Day Care,Selborne Care Ltd,878.08, 09-Feb-2011
1740,Revenue,CCHD,Purchase of Non-Res Care - KD,Private & Voluntary Day Care,Selborne Care Ltd,815.76, 03-Feb-2011
1741,Revenue,CCHD,Purchase of Non-Res Care - KD,Private & Voluntary Day Care,Selborne Care Ltd,805.52, 03-Feb-2011
1742,Revenue,CCHD,Purchase of Non-Res Care - KD,Private & Voluntary Day Care,Selborne Care Ltd,593.72, 09-Feb-2011
1743,Revenue,CCHD,Purchase of Non-Res Care - KD,Private & Voluntary Day Care,Selborne Care Ltd,1370.16, 09-Feb-2011
1744,Revenue,CCHD,Purchase of Non-Res Care - KD,Private & Voluntary Day Care,Selborne Care Ltd,851.48, 09-Feb-2011
1745,Revenue,CCHD,Purchase of Non-Res Care - KD,Private & Voluntary Day Care,Selborne Care Ltd,610.4, 10-Feb-2011
1746,Revenue,CCHD,Purchase of Non-Res Care - KD,Private & Voluntary Day Care,Selborne Care Ltd,780.24, 22-Feb-2011
1747,Revenue,CCHD,Purchase of Non-Res Care - KD,Private & Voluntary Day Care,Selborne Care Ltd,1427.68, 22-Feb-2011
1748,Revenue,CCHD,Purchase of Non-Res Care - KD,Private & Voluntary Day Care,Selborne Care Ltd,878.88, 22-Feb-2011
1749,Revenue,CCHD,Purchase of Non-Res Care - KD,Private & Voluntary Day Care,Selborne Care Ltd,818.72, 22-Feb-2011
1750,Revenue,CCHD,Purchase of Non-Res Care - KD,Private & Voluntary Day Care,Selborne Care Ltd,756.16, 22-Feb-2011
1751,Revenue,CCHD,Purchase of Non-Res Care - KD,Private & Voluntary Day Care,Selborne Care Ltd,616.08, 22-Feb-2011
1752,Revenue,CCHD,Purchase of Non-Res Care - KD,Private & Voluntary Day Care,Shaw Healthcare Specialist Services Ltd,1439.25, 21-Feb-2011
1753,Revenue,CCHD,Purchase of Non-Res Care - KD,Private & Voluntary Day Care,Shaw Healthcare Specialist Services Ltd,1270.63, 22-Feb-2011
1754,Revenue,CCHD,Purchase of Non-Res Care - KD,Private & Voluntary Day Care,Smile Independent Living Support Limited,848.6, 04-Feb-2011
1755,Revenue,CCHD,Purchase of Non-Res Care - KD,Private & Voluntary Day Care,Smile Independent Living Support Limited,1202.4, 04-Feb-2011
1756,Revenue,CCHD,Purchase of Non-Res Care - KD,Private & Voluntary Day Care,Smile Independent Living Support Limited,648.4, 04-Feb-2011
1757,Revenue,CCHD,Purchase of Non-Res Care - KD,Private & Voluntary Day Care,Smile Independent Living Support Limited,656.55, 04-Feb-2011
1758,Revenue,CCHD,Purchase of Non-Res Care - KD,Private & Voluntary Day Care,Smile Independent Living Support Limited,614.9, 04-Feb-2011
1759,Revenue,CCHD,Purchase of Non-Res Care - KD,Private & Voluntary Day Care,Smile Independent Living Support Limited,877.9, 04-Feb-2011
1760,Revenue,CCHD,Purchase of Non-Res Care - KD,Private & Voluntary Day Care,Smile Independent Living Support Limited,925, 04-Feb-2011
1761,Revenue,CCHD,Purchase of Non-Res Care - KD,Private & Voluntary Day Care,Smile Independent Living Support Limited,693.1, 04-Feb-2011
1762,Revenue,CCHD,Purchase of Non-Res Care - KD,Private & Voluntary Day Care,Smile Independent Living Support Limited,656.1, 03-Feb-2011
1763,Revenue,CCHD,Purchase of Non-Res Care - KD,Private & Voluntary Day Care,Smile Independent Living Support Limited,522.3, 04-Feb-2011
1764,Revenue,CCHD,Purchase of Non-Res Care - KD,Private & Voluntary Day Care,Smile Independent Living Support Limited,1669.65, 04-Feb-2011
1765,Revenue,CCHD,Purchase of Non-Res Care - KD,Private & Voluntary Day Care,Smile Independent Living Support Limited,892.59, 21-Feb-2011
1766,Revenue,CCHD,Purchase of Non-Res Care - KD,Private & Voluntary Day Care,Smile Independent Living Support Limited,983.5, 17-Feb-2011
1767,Revenue,CCHD,Purchase of Non-Res Care - KD,Private & Voluntary Day Care,Smile Independent Living Support Limited,961.45, 21-Feb-2011
1768,Revenue,CCHD,Purchase of Non-Res Care - KD,Private & Voluntary Day Care,Smile Independent Living Support Limited,1452, 17-Feb-2011
1769,Revenue,CCHD,Purchase of Non-Res Care - KD,Private & Voluntary Day Care,Smile Independent Living Support Limited,643.35, 21-Feb-2011
1770,Revenue,CCHD,Purchase of Non-Res Care - KD,Private & Voluntary Day Care,Smile Independent Living Support Limited,717.8, 17-Feb-2011
1771,Revenue,CCHD,Purchase of Non-Res Care - KD,Private & Voluntary Day Care,Smile Independent Living Support Limited,960.8, 17-Feb-2011
1772,Revenue,CCHD,Purchase of Non-Res Care - KD,Private & Voluntary Day Care,Smile Independent Living Support Limited,570.05, 17-Feb-2011
1773,Revenue,CCHD,Purchase of Non-Res Care - KD,Private & Voluntary Day Care,Smile Independent Living Support Limited,1102.2, 17-Feb-2011
1774,Revenue,CCHD,Purchase of Non-Res Care - KD,Private & Voluntary Day Care,Smile Independent Living Support Limited,692.1, 17-Feb-2011
1775,Revenue,CCHD,Purchase of Non-Res Care - KD,Private & Voluntary Day Care,Smile Independent Living Support Limited,1158.9, 17-Feb-2011
1776,Revenue,CCHD,Purchase of Non-Res Care - KD,Private & Voluntary Day Care,The Brandon Trust,2158.06, 24-Feb-2011
1777,Revenue,CCHD,Purchase of Non-Res Care - KD,Private & Voluntary Day Care,The Brandon Trust,1547.75, 04-Feb-2011
1778,Revenue,CCHD,Purchase of Non-Res Care - KD,Private & Voluntary Day Care,The Brandon Trust,1353, 24-Feb-2011
1779,Revenue,CCHD,Purchase of Non-Res Care - KD,Private & Voluntary Day Care,The Brandon Trust,3905.29, 16-Feb-2011
1780,Revenue,CCHD,Purchase of Non-Res Care - KD,Private & Voluntary Day Care,The Brandon Trust,2009, 16-Feb-2011
1781,Revenue,CCHD,Purchase of Non-Res Care - KD,Private & Voluntary Day Care,The Brandon Trust,2874.85, 22-Feb-2011
1782,Revenue,CCHD,Purchase of Non-Res Care - KD,Private & Voluntary Day Care,The Brandon Trust,615, 23-Feb-2011
1783,Revenue,CCHD,Purchase of Non-Res Care - KD,Private & Voluntary Day Care,The Brandon Trust,738, 22-Feb-2011
1784,Revenue,CCHD,Purchase of Non-Res Care - KD,Private & Voluntary Day Care,The Brandon Trust,1440.13, 22-Feb-2011
1785,Revenue,CCHD,Purchase of Non-Res Care - KD,Private & Voluntary Day Care,The Brandon Trust,989.13, 08-Feb-2011
1786,Revenue,CCHD,Purchase of Non-Res Care - KD,Private & Voluntary Day Care,Willowbank Care Limited,917.42, 22-Feb-2011
1787,Revenue,CCHD,Purchase of Non-Res Care - KH,Private & Voluntary Day Care,3 Trees Community Support Ltd,3553.42, 08-Feb-2011
1788,Revenue,CCHD,Purchase of Non-Res Care - KH,Private & Voluntary Day Care,Aspects and Milestones Trust,640.94, 04-Feb-2011
1789,Revenue,CCHD,Purchase of Non-Res Care - KH,Private & Voluntary Day Care,Aspects and Milestones Trust,1056.58, 04-Feb-2011
1790,Revenue,CCHD,Purchase of Non-Res Care - KH,Private & Voluntary Day Care,Aspects and Milestones Trust,1436.33, 04-Feb-2011
1791,Revenue,CCHD,Purchase of Non-Res Care - KH,Private & Voluntary Day Care,Aspects and Milestones Trust,1081.07, 04-Feb-2011
1792,Revenue,CCHD,Purchase of Non-Res Care - KH,Private & Voluntary Day Care,Aspects and Milestones Trust,1021.76, 04-Feb-2011
1793,Revenue,CCHD,Purchase of Non-Res Care - KH,Private & Voluntary Day Care,Aspects and Milestones Trust,1282.1, 17-Feb-2011
1794,Revenue,CCHD,Purchase of Non-Res Care - KH,Private & Voluntary Day Care,Aspects and Milestones Trust,650.75, 17-Feb-2011
1795,Revenue,CCHD,Purchase of Non-Res Care - KH,Private & Voluntary Day Care,Aspects and Milestones Trust,985.33, 17-Feb-2011
1796,Revenue,CCHD,Purchase of Non-Res Care - KH,Private & Voluntary Day Care,Aspects and Milestones Trust,951.3, 17-Feb-2011
1797,Revenue,CCHD,Purchase of Non-Res Care - KH,Private & Voluntary Day Care,Aspects and Milestones Trust,1451.12, 17-Feb-2011
1798,Revenue,CCHD,Purchase of Non-Res Care - KH,Private & Voluntary Day Care,Aspects and Milestones Trust,1069.6, 17-Feb-2011
1799,Revenue,CCHD,Purchase of Non-Res Care - KH,Private & Voluntary Day Care,Daneswood,5187, 09-Feb-2011
1800,Revenue,CCHD,Purchase of Non-Res Care - KH,Private & Voluntary Day Care,Servoca Nursing & Care,1480.57, 17-Feb-2011
1801,Revenue,CCHD,Purchase of Non-Res Care - KH,Private & Voluntary Day Care,Servoca Nursing & Care,510.48, 04-Feb-2011
1802,Revenue,CCHD,Purchase of Non-Res Care - KH,Private & Voluntary Day Care,Servoca Nursing & Care,797.23, 04-Feb-2011
1803,Revenue,CCHD,Purchase of Non-Res Care - KH,Private & Voluntary Day Care,Servoca Nursing & Care,628.44, 04-Feb-2011
1804,Revenue,CCHD,Purchase of Non-Res Care - KH,Private & Voluntary Day Care,Servoca Nursing & Care,1040.99, 04-Feb-2011
1805,Revenue,CCHD,Purchase of Non-Res Care - KH,Private & Voluntary Day Care,Servoca Nursing & Care,852.15, 04-Feb-2011
1806,Revenue,CCHD,Purchase of Non-Res Care - KH,Private & Voluntary Day Care,Servoca Nursing & Care,1138.9, 07-Feb-2011
1807,Revenue,CCHD,Purchase of Non-Res Care - KH,Private & Voluntary Day Care,Servoca Nursing & Care,770.8, 09-Feb-2011
1808,Revenue,CCHD,Purchase of Non-Res Care - KH,Private & Voluntary Day Care,Servoca Nursing & Care,762.67, 17-Feb-2011
1809,Revenue,CCHD,Purchase of Non-Res Care - KH,Private & Voluntary Day Care,Servoca Nursing & Care,1248.69, 18-Feb-2011
1810,Revenue,CCHD,Purchase of Non-Res Care - KH,Private & Voluntary Day Care,The Brandon Trust,948.13, 08-Feb-2011
1811,Revenue,CCHD,Purchase of Non-Res Care - KH,Private & Voluntary Day Care,The Brandon Trust,591.09, 08-Feb-2011
1812,Revenue,CCHD,Purchase of Non-Res Care - KH,Private & Voluntary Day Care,The Brandon Trust,622.2, 08-Feb-2011
1813,Revenue,CCHD,Purchase of Non-Res Care - KH,Private & Voluntary Day Care,The Brandon Trust,1214.25, 09-Feb-2011
1814,Revenue,CCHD,Purchase of Non-Res Care - KH,Private & Voluntary Day Care,The Brandon Trust,4355.7, 08-Feb-2011
1815,Revenue,CCHD,Purchase of Non-Res Care - KH,Private & Voluntary Day Care,The Brandon Trust,3267.71, 08-Feb-2011
1816,Revenue,CCHD,Purchase of Non-Res Care - KH,Private & Voluntary Day Care,The Brandon Trust,799.5, 08-Feb-2011
1817,Revenue,CCHD,Purchase of Non-Res Care - KH,Private & Voluntary Day Care,The Brandon Trust,952.88, 08-Feb-2011
1818,Revenue,CCHD,Purchase of Non-Res Care - KH,Private & Voluntary Day Care,The Brandon Trust,3016.96, 18-Feb-2011
1819,Revenue,CCHD,Purchase of Non-Res Care - KH,Private & Voluntary Day Care,The Brandon Trust,2457.81, 22-Feb-2011
1820,Revenue,CCHD,Purchase of Non-Res Care - KH,Private & Voluntary Day Care,The Brandon Trust,873.57, 18-Feb-2011
1821,Revenue,CCHD,Purchase of Non-Res Care - KH,Private & Voluntary Day Care,The Brandon Trust,507.55, 18-Feb-2011
1822,Revenue,CCHD,Blackhorse RAC,Contract Hire & Operational Leases,OCS Group UK Ltd,580.32, 25-Feb-2011
1823,Revenue,CCHD,Purchase of Non-Res Care - PS,Private & Voluntary Day Care,Aspects and Milestones Trust,713.36, 17-Feb-2011
1824,Revenue,CCHD,Purchase of Non-Res Care - PS,Private & Voluntary Day Care,Aspects and Milestones Trust,1213.87, 17-Feb-2011
1825,Revenue,CCHD,Purchase of Non-Res Care - PS,Private & Voluntary Day Care,Aspects and Milestones Trust,1315.9, 17-Feb-2011
1826,Revenue,CCHD,Purchase of Non-Res Care - PS,Private & Voluntary Day Care,Aspects and Milestones Trust,894.71, 17-Feb-2011
1827,Revenue,CCHD,Purchase of Non-Res Care - PS,Private & Voluntary Day Care,Aspects and Milestones Trust,745.82, 17-Feb-2011
1828,Revenue,CCHD,Purchase of Non-Res Care - PS,Private & Voluntary Day Care,Aspects and Milestones Trust,1124.92, 17-Feb-2011
1829,Revenue,CCHD,Purchase of Non-Res Care - PS,Private & Voluntary Day Care,Aspects and Milestones Trust,1290.94, 17-Feb-2011
1830,Revenue,CCHD,Purchase of Non-Res Care - PS,Private & Voluntary Day Care,Aspects and Milestones Trust,962.24, 17-Feb-2011
1831,Revenue,CCHD,Purchase of Non-Res Care - PS,Private & Voluntary Day Care,Aspects and Milestones Trust,1150.89, 17-Feb-2011
1832,Revenue,CCHD,Purchase of Non-Res Care - PS,Private & Voluntary Day Care,Care Horizons Limited,1427.75, 18-Feb-2011
1833,Revenue,CCHD,Purchase of Non-Res Care - PS,Private & Voluntary Day Care,Mrs W Thompson,927.6, 10-Feb-2011
1834,Revenue,CCHD,Purchase of Non-Res Care - PS,Private & Voluntary Day Care,Smile Independent Living Support Limited,751.3, 15-Feb-2011
1835,Revenue,CCHD,Purchase of Non-Res Care - PS,Private & Voluntary Day Care,Supported Independent Living Schemes,532.37, 24-Feb-2011
1836,Revenue,CCHD,Purchase of Non-Res Care - PS,Private & Voluntary Day Care,The Brandon Trust,635.5, 18-Feb-2011
1837,Revenue,CCHD,Purchase of Non-Res Care - PS,Private & Voluntary Day Care,The Brandon Trust,872.41, 22-Feb-2011
1838,Revenue,CCHD,Purchase of Non-Res Care - PS,Private & Voluntary Day Care,The Brandon Trust,929.7, 21-Feb-2011
1839,Revenue,CCHD,Chipping Sodbury Memorial Day,Agency Staff (Operational)/PCT Pay,South Gloucestershire Primary Care Trust,14792.32, 02-Feb-2011
1840,Revenue,CCHD,Chipping Sodbury Memorial Day,Prop.Serv. General Repairs,South Gloucestershire Primary Care Trust,838.18, 03-Feb-2011
1841,Revenue,CCHD,Chipping Sodbury Memorial Day,Motor Insurance,South Gloucestershire Primary Care Trust,65.56, 03-Feb-2011
1842,Revenue,CCHD,Chipping Sodbury Memorial Day,Staff Travel Expenses,South Gloucestershire Primary Care Trust,674.01, 03-Feb-2011
1843,Revenue,CCHD,Hydrotherapy,Agency Staff (Operational)/PCT Pay,South Gloucestershire Primary Care Trust,7517.71, 02-Feb-2011
1844,Revenue,CCHD,Hydrotherapy,Prop.Serv. General Repairs,South Gloucestershire Primary Care Trust,744.47, 03-Feb-2011
1845,Revenue,CCHD,Hydrotherapy,Electricity,South Gloucestershire Primary Care Trust,921.48, 03-Feb-2011
1846,Revenue,CCHD,Hydrotherapy,Printing & Stationery,South Gloucestershire Primary Care Trust,23.62, 03-Feb-2011
1847,Revenue,CCHD,Hydrotherapy,Other Consumable Materials,South Gloucestershire Primary Care Trust,3.54, 03-Feb-2011
1848,Revenue,CCHD,Hydrotherapy,Telephones,South Gloucestershire Primary Care Trust,160.2, 03-Feb-2011
1849,Revenue,CCHD,Hydrotherapy,Other Supplies & Services,South Gloucestershire Primary Care Trust,15207, 03-Feb-2011
1850,Revenue,CCHD,Home Care - Elderly LD - KH,Private & Voluntary Home Care,Mears Care,65.8, 01-Feb-2011
1851,Revenue,CCHD,Home Care - Elderly LD - KH,Private & Voluntary Home Care,Mears Care,65.8, 10-Feb-2011
1852,Revenue,CCHD,Home Care - Elderly LD - KH,Private & Voluntary Home Care,Mears Care,65.8, 11-Feb-2011
1853,Revenue,CCHD,Home Care - Elderly LD - KH,Private & Voluntary Home Care,Mears Care,65.8, 24-Feb-2011
1854,Revenue,CCHD,Home Care - Elderly LD - KH,Private & Voluntary Home Care,Mears Care,65.8, 24-Feb-2011
1855,Revenue,CCHD,LD - Kingswood PCT,Agency Staff (Operational)/PCT Pay,South Gloucestershire Primary Care Trust,18929.74, 02-Feb-2011
1856,Revenue,CCHD,LD - Kingswood PCT,Prop.Serv. General Repairs,South Gloucestershire Primary Care Trust,723.85, 03-Feb-2011
1857,Revenue,CCHD,LD - Kingswood PCT,Electricity,South Gloucestershire Primary Care Trust,622.56, 03-Feb-2011
1858,Revenue,CCHD,LD - Kingswood PCT,Staff Travel Expenses,South Gloucestershire Primary Care Trust,199.81, 03-Feb-2011
1859,Revenue,CCHD,Adult LD - Thornbury PCT,Agency Staff (Operational)/PCT Pay,South Gloucestershire Primary Care Trust,13831.81, 02-Feb-2011
1860,Revenue,CCHD,Adult LD - Thornbury PCT,Prop.Serv. General Repairs,South Gloucestershire Primary Care Trust,598.18, 03-Feb-2011
1861,Revenue,CCHD,Adult LD - Thornbury PCT,Electricity,South Gloucestershire Primary Care Trust,413.57, 03-Feb-2011
1862,Revenue,CCHD,Adult LD - Thornbury PCT,Gas,South Gloucestershire Primary Care Trust,134.42, 03-Feb-2011
1863,Revenue,CCHD,Adult LD - Thornbury PCT,Water Charges,South Gloucestershire Primary Care Trust,213.89, 03-Feb-2011
1864,Revenue,CCHD,Adult LD - Thornbury PCT,Staff Travel Expenses,South Gloucestershire Primary Care Trust,468.01, 03-Feb-2011
